Workbook

Sheet 1. Utility_Info_
AB1: Algoma Power Inc.
AB2: Atikokan Hydro Inc.
AB3: Attawapiskat Power Corporation
AB4: Bluewater Power Distribution Corp.
AB5: Brant County Power
AB6: Brantford Power Inc.
AB7: Burlington Hydro Inc.
AB8: Cambridge and North Dumfries Hydro
AB9: Canadian Niagara Power Inc. – Eastern Ontario Power/Fort Erie/Port Colborne
AB10: Centre Wellington Hydro Ltd.
AB11: Chapleau Public Utilities Corporation
AB12: COLLUS Power Corp.
H13: Version | I13: 3 | AB13: Cooperative Hydro Embrun Inc.
AB14: E.L.K. Energy Inc.
C15: Utility Name | D15: Northern Ontario Wires Inc. | AB15: Enersource Hydro Mississauga Inc.
AB16: Entegrus Powerlines Inc.
C17: Assigned EB Number | D17: EB-2012-0153 | AB17: ENWIN Utilities Ltd.
AB18: Erie Thames Powerlines Corp.
C19: Name and Title | D19: Geoffrey Sutton, Chief Financial Officer | AB19: Espanola Regional Hydro Distribution Corporation
AB20: Essex Powerlines Corporation
C21: Phone Number | D21: (705)272-6669 | AB21: Festival Hydro Inc.
AB22: Fort Albany Power Corporation
C23: Email Address | D23: geoffs@nowinc.ca | AB23: Fort Frances Power Corporation
AB24: Greater Sudbury Hydro Inc.
C25: Date | D25: August 16, 2012 | AB25: Grimsby Power Inc.
AB26: Guelph Hydro Electric Systems Inc.
C27: Last COS Re-based Year | D27: 2009 | AB27: Haldimand County Hydro Inc.
AB28: Halton Hills Hydro Inc.
AB29: Hearst Power Distribution Co. Ltd.
A30: Note: Drop-down lists are shaded blue; Input cells are shaded green.
AB32: Horizon Utilities Corporation
AB33: Hydro 2000 Inc.
AB34: Hydro Hawkesbury Inc.
AB35: Hydro One Brampton Networks Inc.
AB36: Hydro One Networks Inc.
AB37: Hydro One Remote Communities Inc.
AB38: Hydro Ottawa Limited
AB39: Innisfil Hydro Dist. Systems Limited
AB40: Kashechewan Power Corporation
AB41: Kenora Hydro Electric Corporation Ltd.
AB42: Kingston Hydro Corporation
AB43: Kitchener-Wilmot Hydro Inc.
AB44: Lakefront Utilities Inc.
AB45: Lakeland Power Distribution Ltd.
AB46: London Hydro Inc.
AB47: Midland Power Utility Corporation
AB48: Milton Hydro Distribution Inc.
AB49: Newmarket – Tay Power Distribution Ltd.
AB50: Niagara Peninsula Energy Inc.
AB51: Niagara-on-the-Lake Hydro Inc.
AB52: Norfolk Power Distribution Ltd.
AB53: North Bay Hydro Distribution Limited
AB54: Northern Ontario Wires Inc.
AB55: Oakville Hydro Distribution Inc.
AB56: Orangeville Hydro Limited
AB57: Orillia Power Distribution Corp.
AB58: Oshawa PUC Networks Inc.
AB59: Ottawa River Power Corporation
AB60: Parry Sound Power Corporation
AB61: Peterborough Distribution Inc.
AB62: PowerStream Inc.
AB63: PUC Distribution Inc.
AB64: Renfrew Hydro Inc.
AB65: Rideau St. Lawrence Distribution Inc.
AB66: St. Thomas Energy Inc.
AB67: Sioux Lookout Hydro Inc.
AB68: Thunder Bay Hydro Electricity Distribution
AB69: Tillsonburg Hydro Inc.
AB70: Toronto Hydro-Electric System Limited
AB71: Veridian Connections Inc.
AB72: Wasaga Distribution Inc.
AB73: Waterloo North Hydro Inc.
AB74: Welland Hydro Electric System Corp.
AB75: Wellington North Power Inc.
AB76: West Coast Huron Energy Inc.
AB77: Westario Power Inc.
AB78: Whitby Hydro Electric Corporation
AB79: Woodstock Hydro Services Inc.

Sheet 2. Smart_Meter_Costs
B13: Distributors must enter all incremental costs related to their smart meter program and all revenues recovered to date in the applicable tabs except for those costs (and associated revenues) for which the Board has approved on a final basis, i.e. capital costs have been included in rate base and OM&A costs in revenue requirement. For 2012, distributors that have completed their deployments by the end of 2011 are not expected to enter any capital costs. However, for OM&A, regardless of whether a distributor has deployments in 2012, distributors should enter the forecasted OM&A for 2012 for all smart meters in service.
G18: 2006 | I18: 2007 | K18: 2008 | M18: 2009 | O18: 2010 | Q18: 2011 | S18: 2012 | U18: 2013 | W18: Total
B19: Smart Meter Capital Cost and Operational Expense Data | G19: Audited Actual | I19: Audited Actual | K19: Audited Actual | M19: Audited Actual | O19: Audited Actual | Q19: Audited Actual | S19: Forecast | U19: Forecast
C21: Smart Meter Installation Plan
C23: Actual/Planned number of Smart Meters installed during the Calendar Year
C25: Residential | M25: 5150 | O25: 7 | Q25: 51 | S25: =5239-5208 -> 31 | W25: =SUM(G25,I25,K25,M25,O25,Q25,S25,U25) -> 5239
C27: General Service < 50 kW | M27: 262 | O27: 253 | Q27: 32 | S27: =750-547 -> 203 | W27: =SUM(G27,I27,K27,M27,O27,Q27,S27,U27) -> 750
C29: Actual/Planned number of Smart Meters installed (Residential and GS < 50 kW only) | G29: =G25+G27 -> 0 | I29: =I25+I27 -> 0 | K29: =K25+K27 -> 0 | M29: =M25+M27 -> 5412 | O29: =O25+O27 -> 260 | Q29: =Q25+Q27 -> 83 | S29: =S25+S27 -> 234 | U29: =U25+U27 -> 0 | W29: =SUM(G29,I29,K29,M29,O29,Q29,S29,U29) -> 5989
C31: Percentage of Residential and GS < 50 kW Smart Meter Installations Completed | G31: =IF($W29=0,0,G29/$W29) -> 0 | I31: =IF(G31=100%, 0, IF(ISERROR(SUM(G29:I29)/$W29),0,SUM(G29:I29)/$W29)) -> 0 | K31: =IF(I31=100%, 0, IF(ISERROR(SUM(G29:K29)/$W29), 0, SUM(G29:K29)/$W29)) -> 0 | M31: =IF(K31=100%,0,IF(ISERROR(SUM(G29:M29)/$W29),0,SUM(G29:M29)/$W29)) -> 0.903656704 | O31: =IF(M31=100%,0,IF(ISERROR(SUM(G29:O29)/$W29),0,SUM(G29:O29)/$W29)) -> 0.9470696277 | Q31: =IF(O31=100%,0,IF(ISERROR(SUM(G29:Q29)/$W29),0,SUM(G29:Q29)/$W29)) -> 0.9609283687 | S31: =IF(Q31=100%,0,IF(ISERROR(SUM(G29:S29)/$W29),0,SUM(G29:S29)/$W29)) -> 1 | U31: =IF(S31=100%,0,IF(ISERROR(SUM(I29:U29)/$W29),0,SUM(I29:U29)/$W29)) -> 0 | W31: =IF($W29=0,"",W29/$W29) -> 1
C33: Actual/Planned number of GS > 50 kW meters installed | Q33: 4 | S33: 2 | W33: =SUM(G33,I33,K33,M33,O33,Q33,S33,U33) -> 6
C35: Other (please identify) | W35: =SUM(G35,I35,K35,M35,O35,Q35,S35,U35) -> 0
C37: Total Number of Smart Meters installed or planned to be installed | G37: =SUM(G29,G33,G35) -> 0 | I37: =SUM(I29,I33,I35) -> 0 | K37: =SUM(K29,K33,K35) -> 0 | M37: =SUM(M29,M33,M35) -> 5412 | O37: =SUM(O29,O33,O35) -> 260 | Q37: =SUM(Q29,Q33,Q35) -> 87 | S37: =SUM(S29,S33,S35) -> 236 | U37: =SUM(U29,U33,U35) -> 0 | W37: =SUM(G37,I37,K37,M37,O37,Q37,S37,U37) -> 5995
B39: 1 | C39: Capital Costs
E40: Asset Type
C41: 1.1 ADVANCED METERING COMMUNICATION DEVICE (AMCD) | E41: Asset type must be selected to enable calculations | G41: =IF(ISBLANK(G19),"",G19) -> Audited Actual | I41: =IF(ISBLANK(I19),"",I19) -> Audited Actual | K41: =IF(ISBLANK(K19),"",K19) -> Audited Actual | M41: =IF(ISBLANK(M19),"",M19) -> Audited Actual | O41: =IF(ISBLANK(O19),"",O19) -> Audited Actual | Q41: =IF(ISBLANK(Q19),"",Q19) -> Audited Actual | S41: =IF(ISBLANK(S19),"",S19) -> Forecast | U41: =IF(ISBLANK(U19),"",U19) -> Forecast
C42: 1.1.1 Smart Meters (may include new meters and modules, etc.) | E42: Smart Meter | M42: 473588 | O42: 35500 | Q42: 82835.37 | S42: 14000 | W42: =SUM(G42,I42,K42,M42,O42,Q42,S42,U42) -> 605923.37
C44: 1.1.2 Installation Costs (may include socket kits, labour, vehicle, benefits, etc.) | E44: Smart Meter | M44: 97992 | O44: 70531 | Q44: 37446 | S44: =31000-14000 -> 17000 | W44: =SUM(G44,I44,K44,M44,O44,Q44,S44,U44) -> 222969
C46: 1.1.3a Workforce Automation Hardware (may include fieldwork handhelds, barcode hardware, etc.) | E46: Computer Hardware | M46: 8615 | W46: =SUM(G46,I46,K46,M46,O46,Q46,S46,U46) -> 8615
C48: 1.1.3b Workforce Automation Software (may include fieldwork handhelds, barcode hardware, etc.) | E48: Computer Software | M48: 14560 | W48: =SUM(G48,I48,K48,M48,O48,Q48,S48,U48) -> 14560
C50: Total Advanced Metering Communications Devices (AMCD) | G50: =SUM(G42,G44,G46,G48) -> 0 | I50: =SUM(I42,I44,I46,I48) -> 0 | K50: =SUM(K42,K44,K46,K48) -> 0 | M50: =SUM(M42,M44,M46,M48) -> 594755 | O50: =SUM(O42,O44,O46,O48) -> 106031 | Q50: =SUM(Q42,Q44,Q46,Q48) -> 120281.37 | S50: =SUM(S42,S44,S46,S48) -> 31000 | U50: =SUM(U42,U44,U46,U48) -> 0 | W50: =W42+W44+W46+W48 -> 852067.37
E52: =E40 -> Asset Type
C53: 1.2 ADVANCED METERING REGIONAL COLLECTOR (AMRC) (includes LAN) | G53: =G41 -> Audited Actual | I53: =I41 -> Audited Actual | K53: =K41 -> Audited Actual | M53: =M41 -> Audited Actual | O53: =O41 -> Audited Actual | Q53: =Q41 -> Audited Actual | S53: =S41 -> Forecast | U53: =U41 -> Forecast
C54: 1.2.1 Collectors | E54: Smart Meter | M54: 485125 | W54: =SUM(G54,I54,K54,M54,O54,Q54,S54,U54) -> 485125
C56: 1.2.2 Repeaters (may include radio licence, etc.) | W56: =SUM(G56,I56,K56,M56,O56,Q56,S56,U56) -> 0
C58: 1.2.3 Installation (may include meter seals and rings, collector computer hardware, etc.) | W58: =SUM(G58,I58,K58,M58,O58,Q58,S58,U58) -> 0
C60: Total Advanced Metering Regional Collector (AMRC) (Includes LAN) | G60: =G54+G56+G58 -> 0 | I60: =I54+I56+I58 -> 0 | K60: =K54+K56+K58 -> 0 | M60: =M54+M56+M58 -> 485125 | O60: =O54+O56+O58 -> 0 | Q60: =Q54+Q56+Q58 -> 0 | S60: =S54+S56+S58 -> 0 | U60: =U54+U56+U58 -> 0 | W60: =W54+W56+W58 -> 485125
E62: =E52 -> Asset Type
C63: 1.3 ADVANCED METERING CONTROL COMPUTER (AMCC) | G63: =G53 -> Audited Actual | I63: =I53 -> Audited Actual | K63: =K53 -> Audited Actual | M63: =M53 -> Audited Actual | O63: =O53 -> Audited Actual | Q63: =Q53 -> Audited Actual | S63: =S53 -> Forecast | U63: =U53 -> Forecast
C64: 1.3.1 Computer Hardware | W64: =SUM(G64,I64,K64,M64,O64,Q64,S64,U64) -> 0
C66: 1.3.2 Computer Software | W66: =SUM(G66,I66,K66,M66,O66,Q66,S66,U66) -> 0
C68: 1.3.3 Computer Software Licences & Installation (includes hardware and software) | W68: =SUM(G68,I68,K68,M68,O68,Q68,S68,U68) -> 0
C69: (may include AS/400 disk space, backup and recovery computer, UPS, etc.)
C70: Total Advanced Metering Control Computer (AMCC) | G70: =G64+G66+G68 -> 0 | I70: =I64+I66+I68 -> 0 | K70: =K64+K66+K68 -> 0 | M70: =M64+M66+M68 -> 0 | O70: =O64+O66+O68 -> 0 | Q70: =Q64+Q66+Q68 -> 0 | S70: =S64+S66+S68 -> 0 | U70: =U64+U66+U68 -> 0 | W70: =W64+W66+W68 -> 0
E72: =E62 -> Asset Type
C73: 1.4 WIDE AREA NETWORK (WAN) | G73: =G63 -> Audited Actual | I73: =I63 -> Audited Actual | K73: =K63 -> Audited Actual | M73: =M63 -> Audited Actual | O73: =O63 -> Audited Actual | Q73: =Q63 -> Audited Actual | S73: =S63 -> Forecast | U73: =U63 -> Forecast
C75: 1.4.1 Activiation Fees | W75: =SUM(G75,I75,K75,M75,O75,Q75,S75,U75) -> 0
C77: Total Wide Area Network (WAN) | G77: =G75 -> 0 | I77: =I75 -> 0 | K77: =K75 -> 0 | M77: =M75 -> 0 | O77: =O75 -> 0 | Q77: =Q75 -> 0 | S77: =S75 -> 0 | U77: =U75 -> 0 | W77: =W75 -> 0
E79: =E72 -> Asset Type
C80: 1.5 OTHER AMI CAPITAL COSTS RELATED TO MINIMUM FUNCTIONALITY | G80: =G73 -> Audited Actual | I80: =I73 -> Audited Actual | K80: =K73 -> Audited Actual | M80: =M73 -> Audited Actual | O80: =O73 -> Audited Actual | Q80: =Q73 -> Audited Actual | S80: =S73 -> Forecast | U80: =U73 -> Forecast
C82: 1.5.1 Customer Equipment (including repair of damaged equipment) | W82: =SUM(G82,I82,K82,M82,O82,Q82,S82,U82) -> 0
C84: 1.5.2 AMI Interface to CIS | E84: Computer Software | M84: 8273 | W84: =SUM(G84,I84,K84,M84,O84,Q84,S8,U84) -> 8273
C86: 1.5.3 Professional Fees | E86: Computer Hardware | I86: 13309 | K86: 15850 | M86: 15698 | W86: =SUM(G86,I86,K86,M86,O86,Q86,S86,U86) -> 44857
C88: 1.5.4 Integration | W88: =SUM(G88,I88,K88,M88,O88,Q88,S88,U88) -> 0
C90: 1.5.5 Program Management | W90: =SUM(G90,I90,K90,M90,O90,Q90,S90,U90) -> 0
C92: 1.5.6 Other AMI Capital | E92: Other Equipment | M92: 1501 | W92: =SUM(G92,I92,K92,M92,O92,Q92,S92,U92) -> 1501
C94: Total Other AMI Capital Costs Related to Minimum Functionality | G94: =SUM(G82,G84,G86,G88,G90,G92) -> 0 | I94: =SUM(I82,I84,I86,I88,I90,I92) -> 13309 | K94: =SUM(K82,K84,K86,K88,K90,K92) -> 15850 | M94: =SUM(M82,M84,M86,M88,M90,M92) -> 25472 | O94: =SUM(O82,O84,O86,O88,O90,O92) -> 0 | Q94: =SUM(Q82,Q84,Q86,Q88,Q90,Q92) -> 0 | S94: =SUM(S82,S84,S86,S88,S90,S92) -> 0 | U94: =SUM(U82,U84,U86,U88,U90,U92) -> 0 | W94: =SUM(W82,W84,W86,W88,W90,W92) -> 54631
C96: Total Capital Costs Related to Minimum Functionality | G96: =SUM(G50,G60,G70,G77,G94) -> 0 | I96: =SUM(I50,I60,I70,I77,I94) -> 13309 | K96: =SUM(K50,K60,K70,K77,K94) -> 15850 | M96: =SUM(M50,M60,M70,M77,M94) -> 1105352 | O96: =SUM(O50,O60,O70,O77,O94) -> 106031 | Q96: =SUM(Q50,Q60,Q70,Q77,Q94) -> 120281.37 | S96: =SUM(S50,S60,S70,S77,S94) -> 31000 | U96: =SUM(U50,U60,U70,U77,U94) -> 0 | W96: =SUM(W50,W60,W70,W77,W94) -> 1391823.37
E98: =E79 -> Asset Type
C99: 1.6 CAPITAL COSTS BEYOND MINIMUM FUNCTIONALITY | G99: =G80 -> Audited Actual | I99: =I80 -> Audited Actual | K99: =K80 -> Audited Actual | M99: =M80 -> Audited Actual | O99: =O80 -> Audited Actual | Q99: =Q80 -> Audited Actual | S99: =S80 -> Forecast | U99: =U80 -> Forecast
C100: (Please provide a descriptive title and identify nature of beyond minimum functionality costs)
C101: 1.6.1 Costs related to technical capabilities in the smart meters or related communications infrastructure that exceed those specified in O.Reg 425/06 | W101: =SUM(G101,I101,K101,M101,O101,Q101,S101,U101) -> 0
C103: 1.6.2 Costs for deployment of smart meters to customers other than residential and small general service | W103: =SUM(G103,I103,K103,M103,O103,Q103,S103,U103) -> 0
C105: 1.6.3 Costs for TOU rate implementation, CIS system upgrades, web presentation, integration with the MDM/R, etc. | E105: Computer Software | O105: 5533 | Q105: =2252 -> 2252 | W105: =SUM(G105,I105,K105,M105,O105,Q105,S105,U105) -> 7785
C107: Total Capital Costs Beyond Minimum Functionality | G107: =SUM(G101,G103,G105) -> 0 | I107: =SUM(I101,I103,I105) -> 0 | K107: =SUM(K101,K103,K105) -> 0 | M107: =SUM(M101,M103,M105) -> 0 | O107: =SUM(O101,O103,O105) -> 5533 | Q107: =SUM(Q101,Q103,Q105) -> 2252 | S107: =SUM(S101,S103,S105) -> 0 | U107: =SUM(U101,U103,U105) -> 0 | W107: =SUM(W101,W103,W105) -> 7785
C109: Total Smart Meter Capital Costs | G109: =G96+G107 -> 0 | I109: =I96+I107 -> 13309 | K109: =K96+K107 -> 15850 | M109: =M96+M107 -> 1105352 | O109: =O96+O107 -> 111564 | Q109: =Q96+Q107 -> 122533.37 | S109: =S96+S107 -> 31000 | U109: =U96+U107 -> 0 | W109: =W96+W107 -> 1399608.37
B111: 2 | C111: OM&A Expenses
C112: 2.1 ADVANCED METERING COMMUNICATION DEVICE (AMCD) | G112: =G99 -> Audited Actual | I112: =I99 -> Audited Actual | K112: =K99 -> Audited Actual | M112: =M99 -> Audited Actual | O112: =O99 -> Audited Actual | Q112: =Q99 -> Audited Actual | S112: =S99 -> Forecast | U112: =U99 -> Forecast
C114: 2.1.1 Maintenance (may include meter reverification costs, etc.) | M114: 6661 | W114: =SUM(G114,I114,K114,M114,O114,Q114,S114,U114) -> 6661
C116: 2.1.2 Other (please specifiy) | W116: =SUM(G116,I116,K116,M116,O116,Q116,S116,U116) -> 0
C118: Total Incremental AMCD OM&A Costs | G118: =SUM(G114,G116) -> 0 | I118: =SUM(I114,I116) -> 0 | K118: =SUM(K114,K116) -> 0 | M118: =SUM(M114,M116) -> 6661 | O118: =SUM(O114,O116) -> 0 | Q118: =SUM(Q114,Q116) -> 0 | S118: =SUM(S114,S116) -> 0 | U118: =SUM(U114,U116) -> 0 | W118: =SUM(W114,W116) -> 6661
C120: 2.2 ADVANCED METERING REGIONAL COLLECTOR (AMRC) (includes LAN)
C122: 2.2.1 Maintenance | M122: 4541 | O122: 3666 | Q122: 4270 | W122: =SUM(G122,I122,K122,M122,O122,Q122,S122,U122) -> 12477
C124: 2.2.2 Other (please specifiy) | W124: =SUM(G124,I124,K124,M124,O124,Q124,S124,U124) -> 0
C126: Total Incremental AMRC OM&A Costs | G126: =SUM(G122,G124) -> 0 | I126: =SUM(I122,I124) -> 0 | K126: =SUM(K122,K124) -> 0 | M126: =SUM(M122,M124) -> 4541 | O126: =SUM(O122,O124) -> 3666 | Q126: =SUM(Q122,Q124) -> 4270 | S126: =SUM(S122,S124) -> 0 | U126: =SUM(U122,U124) -> 0 | W126: =SUM(W122,W124) -> 12477
C128: 2.3 ADVANCED METERING CONTROL COMPUTER (AMCC)
C130: 2.3.1 Hardware Maintenance (may include server support, etc.) | M130: 55377 | O130: 79851 | Q130: 100859 | S130: 86236 | W130: =SUM(G130,I130,K130,M130,O130,Q130,S130,U130) -> 322323
C132: 2.3.2 Software Maintenance (may include maintenance support, etc.) | O132: 9117 | Q132: 9951 | S132: 9504 | W132: =SUM(G132,I132,K132,M132,O132,Q132,S132,U132) -> 28572
C134: 2.3.2 Other (please specifiy) | W134: =SUM(G134,I134,K134,M134,O134,Q134,S134,U134) -> 0
C136: Total Incremental AMCC OM&A Costs | G136: =SUM(G130,G132,G134) -> 0 | I136: =SUM(I130,I132,I134) -> 0 | K136: =SUM(K130,K132,K134) -> 0 | M136: =SUM(M130,M132,M134) -> 55377 | O136: =SUM(O130,O132,O134) -> 88968 | Q136: =SUM(Q130,Q132,Q134) -> 110810 | S136: =SUM(S130,S132,S134) -> 95740 | U136: =SUM(U130,U132,U134) -> 0 | W136: =SUM(W130,W132,W134) -> 350895
C138: 2.4 WIDE AREA NETWORK (WAN)
C140: 2.4.1 WAN Maintenance | W140: =SUM(G140,I140,K140,M140,O140,Q140,S140,U140) -> 0
C142: 2.4.2 Other (please specifiy) | W142: =SUM(G142,I142,K142,M142,O142,Q142,S142,U142) -> 0
C144: Total Incremental AMRC OM&A Costs | G144: =SUM(G140,G142) -> 0 | I144: =SUM(I140,I142) -> 0 | K144: =SUM(K140,K142) -> 0 | M144: =SUM(M140,M142) -> 0 | O144: =SUM(O140,O142) -> 0 | Q144: =SUM(Q140,Q142) -> 0 | S144: =SUM(S140,S142) -> 0 | U144: =SUM(U140,U142) -> 0 | W144: =SUM(W140,W142) -> 0
C146: 2.5 OTHER AMI OM&A COSTS RELATED TO MINIMUM FUNCTIONALITY
C148: 2.5.1 Business Process Redesign | W148: =SUM(G148,I148,K148,M148,O148,Q148,S148,U148) -> 0
C150: 2.5.2 Customer Communication (may include project communication, etc.) | M150: 13614 | O150: 90 | W150: =SUM(G150,I150,K150,M150,O150,Q150,S150,U150) -> 13704
C152: 2.5.3 Program Management | O152: 22751 | W152: =SUM(G152,I152,K152,M152,O152,Q152,S152,U152) -> 22751
C154: 2.5.4 Change Management (may include training, etc.) | M154: 2461 | W154: =SUM(G154,I154,K154,M154,O154,Q154,S154,U154) -> 2461
C156: 2.5.5 Administration Costs | W156: =SUM(G156,I156,K156,M156,O156,Q156,S156,U156) -> 0
C158: 2.5.6 Other AMI Expenses | M158: 686 | Q158: 4122 | S158: 4000 | W158: =SUM(G158,I158,K158,M158,O158,Q158,S158,U158) -> 8808
C159: (please specify)
C160: Total Other AMI OM&A Costs Related to Minimum Functionality | G160: =SUM(G158,G156,G154,G152,G150,G148) -> 0 | I160: =SUM(I158,I156,I154,I152,I150,I148) -> 0 | K160: =SUM(K158,K156,K154,K152,K150,K148) -> 0 | M160: =SUM(M158,M156,M154,M152,M150,M148) -> 16761 | O160: =SUM(O158,O156,O154,O152,O150,O148) -> 22841 | Q160: =SUM(Q158,Q156,Q154,Q152,Q150,Q148) -> 4122 | S160: =SUM(S158,S156,S154,S152,S150,S148) -> 4000 | U160: =SUM(U158,U156,U154,U152,U150,U148) -> 0 | W160: =SUM(W154,W156,W158,W152,W150,W148) -> 47724
C162: TOTAL OM&A COSTS RELATED TO MINIMUM FUNCTIONALITY | G162: =SUM(G118,G126,G136,G144,G160) -> 0 | I162: =SUM(I118,I126,I136,I144,I160) -> 0 | K162: =SUM(K118,K126,K136,K144,K160) -> 0 | M162: =SUM(M118,M126,M136,M144,M160) -> 83340 | O162: =SUM(O118,O126,O136,O144,O160) -> 115475 | Q162: =SUM(Q118,Q126,Q136,Q144,Q160) -> 119202 | S162: =SUM(S118,S126,S136,S144,S160) -> 99740 | U162: =SUM(U118,U126,U136,U144,U160) -> 0 | W162: =SUM(W118,W126,W136,W144,W160) -> 417757
C164: 2.6 OM&A COSTS RELATED TO BEYOND MINIMUM FUNCTIONALITY | G164: =G112 -> Audited Actual | I164: =I112 -> Audited Actual | K164: =K112 -> Audited Actual | M164: =M112 -> Audited Actual | O164: =O112 -> Audited Actual | Q164: =Q112 -> Audited Actual
C165: (Please provide a descriptive title and identify nature of beyond minimum functionality costs)
C166: 2.6.1 Costs related to technical capabilities in the smart meters or related communications infrastructure that exceed those specified in O.Reg 425/06 | W166: =SUM(G166,I166,K166,M166,O166,Q166,S166,U166) -> 0
C168: 2.6.2 Costs for deployment of smart meters to customers other than residential and small general service | W168: =SUM(G168,I168,K168,M168,O168,Q168,S168,U168) -> 0
C170: 2.6.3 Costs for TOU rate implementation, CIS system upgrades, web presentation, integration with the MDM/R, etc. | M170: 11577 | O170: 7080 | Q170: 46220 | S170: 22549 | W170: =SUM(G170,I170,K170,M170,O170,Q170,S170,U170) -> 87426
C172: Total OM&A Costs Beyond Minimum Functionality | G172: =SUM(G166,G168,G170) -> 0 | I172: =SUM(I166,I168,I170) -> 0 | K172: =SUM(K166,K168,K170) -> 0 | M172: =SUM(M166,M168,M170) -> 11577 | O172: =SUM(O166,O168,O170) -> 7080 | Q172: =SUM(Q166,Q168,Q170) -> 46220 | S172: =SUM(S166,S168,S170) -> 22549 | U172: =SUM(U166,U168,U170) -> 0 | W172: =SUM(W166,W168,W170) -> 87426
C174: Total Smart Meter OM&A Costs | G174: =G162+G172 -> 0 | I174: =I162+I172 -> 0 | K174: =K162+K172 -> 0 | M174: =M162+M172 -> 94917 | O174: =O162+O172 -> 122555 | Q174: =Q162+Q172 -> 165422 | S174: =S162+S172 -> 122289 | U174: =U162+U172 -> 0 | W174: =W162+W172 -> 505183
B177: 3 | C177: Aggregate Smart Meter Costs by Category
C179: 3.1 | D179: Capital
C181: 3.1.1 | D181: Smart Meter | G181: =SUMIF($E$42:$E$105,$D181,G$42:G$105) -> 0 | I181: =SUMIF($E$42:$E$105,$D181,I$42:I$105) -> 0 | K181: =SUMIF($E$42:$E$105,$D181,K$42:K$105) -> 0 | M181: =SUMIF($E$42:$E$105,$D181,M$42:M$105) -> 1056705 | O181: =SUMIF($E$42:$E$105,$D181,O$42:O$105) -> 106031 | Q181: =SUMIF($E$42:$E$105,$D181,Q$42:Q$105) -> 120281.37 | S181: =SUMIF($E$42:$E$105,$D181,S$42:S$105) -> 31000 | U181: =SUMIF($E$42:$E$105,$D181,U$42:U$105) -> 0 | W181: =SUM(G181:U181) -> 1314017.37
C183: 3.1.2 | D183: Computer Hardware | G183: =SUMIF($E$42:$E$105,$D183,G$42:G$105) -> 0 | I183: =SUMIF($E$42:$E$105,$D183,I$42:I$105) -> 13309 | K183: =SUMIF($E$42:$E$105,$D183,K$42:K$105) -> 15850 | M183: =SUMIF($E$42:$E$105,$D183,M$42:M$105) -> 24313 | O183: =SUMIF($E$42:$E$105,$D183,O$42:O$105) -> 0 | Q183: =SUMIF($E$42:$E$105,$D183,Q$42:Q$105) -> 0 | S183: =SUMIF($E$42:$E$105,$D183,S$42:S$105) -> 0 | U183: =SUMIF($E$42:$E$105,$D183,U$42:U$105) -> 0 | W183: =SUM(G183:U183) -> 53472
C185: 3.1.3 | D185: Computer Software | G185: =SUMIF($E$42:$E$105,$D185,G$42:G$105) -> 0 | I185: =SUMIF($E$42:$E$105,$D185,I$42:I$105) -> 0 | K185: =SUMIF($E$42:$E$105,$D185,K$42:K$105) -> 0 | M185: =SUMIF($E$42:$E$105,$D185,M$42:M$105) -> 22833 | O185: =SUMIF($E$42:$E$105,$D185,O$42:O$105) -> 5533 | Q185: =SUMIF($E$42:$E$105,$D185,Q$42:Q$105) -> 2252 | S185: =SUMIF($E$42:$E$105,$D185,S$42:S$105) -> 0 | U185: =SUMIF($E$42:$E$105,$D185,U$42:U$105) -> 0 | W185: =SUM(G185:U185) -> 30618
C187: 3.1.4 | D187: Tools & Equipment | G187: =SUMIF($E$42:$E$105,$D187,G$42:G$105) -> 0 | I187: =SUMIF($E$42:$E$105,$D187,I$42:I$105) -> 0 | K187: =SUMIF($E$42:$E$105,$D187,K$42:K$105) -> 0 | M187: =SUMIF($E$42:$E$105,$D187,M$42:M$105) -> 0 | O187: =SUMIF($E$42:$E$105,$D187,O$42:O$105) -> 0 | Q187: =SUMIF($E$42:$E$105,$D187,Q$42:Q$105) -> 0 | S187: =SUMIF($E$42:$E$105,$D187,S$42:S$105) -> 0 | U187: =SUMIF($E$42:$E$105,$D187,U$42:U$105) -> 0 | W187: =SUM(G187:U187) -> 0
C189: 3.1.5 | D189: Other Equipment | G189: =SUMIF($E$42:$E$105,$D189,G$42:G$105) -> 0 | I189: =SUMIF($E$42:$E$105,$D189,I$42:I$105) -> 0 | K189: =SUMIF($E$42:$E$105,$D189,K$42:K$105) -> 0 | M189: =SUMIF($E$42:$E$105,$D189,M$42:M$105) -> 1501 | O189: =SUMIF($E$42:$E$105,$D189,O$42:O$105) -> 0 | Q189: =SUMIF($E$42:$E$105,$D189,Q$42:Q$105) -> 0 | S189: =SUMIF($E$42:$E$105,$D189,S$42:S$105) -> 0 | U189: =SUMIF($E$42:$E$105,$D189,U$42:U$105) -> 0 | W189: =SUM(G189:U189) -> 1501
C191: 3.1.6 | D191: Applications Software | G191: =SUMIF($E$42:$E$105,$D191,G$42:G$105) -> 0 | I191: =SUMIF($E$42:$E$105,$D191,I$42:I$105) -> 0 | K191: =SUMIF($E$42:$E$105,$D191,K$42:K$105) -> 0 | M191: =SUMIF($E$42:$E$105,$D191,M$42:M$105) -> 0 | O191: =SUMIF($E$42:$E$105,$D191,O$42:O$105) -> 0 | Q191: =SUMIF($E$42:$E$105,$D191,Q$42:Q$105) -> 0 | S191: =SUMIF($E$42:$E$105,$D191,S$42:S$105) -> 0 | U191: =SUMIF($E$42:$E$105,$D191,U$42:U$105) -> 0 | W191: =SUM(G191:U191) -> 0
C193: 3.1.7 | D193: Total Capital Costs | G193: =SUM(G181:G191) -> 0 | I193: =SUM(I181:I191) -> 13309 | K193: =SUM(K181:K191) -> 15850 | M193: =SUM(M181:M191) -> 1105352 | O193: =SUM(O181:O191) -> 111564 | Q193: =SUM(Q181:Q191) -> 122533.37 | S193: =SUM(S181:S191) -> 31000 | U193: =SUM(U181:U191) -> 0 | W193: =SUM(W181:W191) -> 1399608.37
G194: =IF(G193=G109,"","Error") ->  | I194: =IF(I193=I109,"","Error") ->  | K194: =IF(K193=K109,"","Error") ->  | M194: =IF(M193=M109,"","Error") ->  | O194: =IF(O193=O109,"","Error") ->  | Q194: =IF(Q193=Q109,"","Error") ->  | S194: =IF(S193=S109,"","Error") ->  | U194: =IF(U193=U109,"","Error") ->  | W194: =IF(W193=W109,"","Error") -> 
C195: 3.2 | D195: OM&A Costs
C197: 3.2.1 | D197: Total OM&A Costs | G197: =G174 -> 0 | I197: =I174 -> 0 | K197: =K174 -> 0 | M197: =M174 -> 94917 | O197: =O174 -> 122555 | Q197: =Q174 -> 165422 | S197: =S174 -> 122289 | U197: =U174 -> 0 | W197: =W174 -> 505183

Sheet 3. Cost_of_Service_Parameters
G19: 2006 | I19: 2007 | K19: 2008 | M19: 2009 | O19: 2010 | Q19: 2011 | S19: 2012 | U19: 2013
B20: Cost of Capital
C21: Capital Structure1
D22: Deemed Short-term Debt Capitalization | K22: 0 | M22: 0.04 | O22: 0.04 | Q22: 0.04 | S22: 0.04 | U22: 0.04
D23: Deemed Long-term Debt Capitalization | G23: 0.5 | I23: =G23 -> 0.5 | K23: =IF(I23=50%,53.3%-K22,IF(I23=55%,57.5%-K22,IF(I23=65%,62.5%-K22,60%-K22))) -> 0.533 | M23: =IF(I23=50%,56.7%-M22,60%-M22) -> 0.527 | O23: =60%-O22 -> 0.56 | Q23: =O23-(Q22-O22) -> 0.56 | S23: =Q23-(S22-Q22) -> 0.56 | U23: =S23-(U22-S22) -> 0.56
D24: Deemed Equity Capitalization | G24: =100%-G23-G25 -> 0.5 | I24: =100%-I23-I25-I22 -> 0.5 | K24: =100%-K23-K25-K22 -> 0.467 | M24: =100%-M23-M25-M22 -> 0.433 | O24: =100%-O23-O25-O22 -> 0.4 | Q24: =100%-Q23-Q25-Q22 -> 0.4 | S24: =100%-S23-S25-S22 -> 0.4 | U24: =100%-U23-U25-U22 -> 0.4
D25: Preferred Shares
C26: Total | G26: =SUM(G22:G25) -> 1 | I26: =SUM(I22:I25) -> 1 | K26: =SUM(K22:K25) -> 1 | M26: =SUM(M22:M25) -> 1 | O26: =SUM(O22:O25) -> 1 | Q26: =SUM(Q22:Q25) -> 1 | S26: =SUM(S22:S25) -> 1 | U26: =SUM(U22:U25) -> 1
C28: Cost of Capital Parameters
D29: Deemed Short-term Debt Rate | M29: 0.0133 | O29: 0.0133 | Q29: 0.0133 | S29: 0.0133 | U29: 0.0133
D30: Long-term Debt Rate (actual/embedded/deemed)2 | G30: 0.0473 | I30: =G30 -> 0.0473 | K30: 0.0473 | M30: 0.0504 | O30: 0.0504 | Q30: 0.0504 | S30: 0.0504 | U30: 0.0504
D31: Target Return on Equity (ROE) | G31: 0.09 | I31: =G31 -> 0.09 | K31: 0.09 | M31: 0.0801 | O31: 0.0801 | Q31: 0.0801 | S31: 0.0801 | U31: 0.0801
D32: Return on Preferred Shares
C33: WACC | G33: =SUMPRODUCT(G22:G25,G29:G32) -> 0.06865 | I33: =SUMPRODUCT(I22:I25,I29:I32) -> 0.06865 | K33: =SUMPRODUCT(K22:K25,K29:K32) -> 0.0672409 | M33: =SUMPRODUCT(M22:M25,M29:M32) -> 0.0617761 | O33: =SUMPRODUCT(O22:O25,O29:O32) -> 0.060796 | Q33: =SUMPRODUCT(Q22:Q25,Q29:Q32) -> 0.060796 | S33: =SUMPRODUCT(S22:S25,S29:S32) -> 0.060796 | U33: =SUMPRODUCT(U22:U25,U29:U32) -> 0.060796
B35: Working Capital Allowance
C36: Working Capital Allowance Rate | G36: 0.15 | I36: 0.15 | K36: 0.15 | M36: 0.15 | O36: 0.15 | Q36: 0.15 | S36: 0.15 | U36: 0.15
C37: (% of the sum of Cost of Power + controllable expenses)
B39: Taxes/PILs
C40: Aggregate Corporate Income Tax Rate | G40: 0.1862 | I40: 0.1862 | K40: 0.165 | M40: 0.165 | O40: 0.16 | Q40: 0.155 | S40: 0.155 | U40: 0.155
C41: Capital Tax (until July 1st, 2010) | G41: 0.003 | I41: 0.00225 | K41: 0.00225 | M41: 0.00225 | O41: 0.00075 | Q41: 0 | S41: 0 | U41: 0
B43: Depreciation Rates
B44: (expressed as expected useful life in years)
C45: Smart Meters - years | G45: 15 | I45: 15 | K45: 15 | M45: 15 | O45: 15 | Q45: 15 | S45: 15 | U45: 15
C46: - rate (%) | G46: =IF(G45=0,0,1/G45) -> 0.06666666667 | I46: =IF(I45=0,0,1/I45) -> 0.06666666667 | K46: =IF(K45=0,0,1/K45) -> 0.06666666667 | M46: =IF(M45=0,0,1/M45) -> 0.06666666667 | O46: =IF(O45=0,0,1/O45) -> 0.06666666667 | Q46: =IF(Q45=0,0,1/Q45) -> 0.06666666667 | S46: =IF(S45=0,0,1/S45) -> 0.06666666667 | U46: =IF(U45=0,0,1/U45) -> 0.06666666667
C47: Computer Hardware - years | G47: 7 | I47: 7 | K47: 7 | M47: 7 | O47: 7 | Q47: 7 | S47: 7 | U47: 7
C48: - rate (%) | G48: =IF(G47=0,0,1/G47) -> 0.1428571429 | I48: =IF(I47=0,0,1/I47) -> 0.1428571429 | K48: =IF(K47=0,0,1/K47) -> 0.1428571429 | M48: =IF(M47=0,0,1/M47) -> 0.1428571429 | O48: =IF(O47=0,0,1/O47) -> 0.1428571429 | Q48: =IF(Q47=0,0,1/Q47) -> 0.1428571429 | S48: =IF(S47=0,0,1/S47) -> 0.1428571429 | U48: =IF(U47=0,0,1/U47) -> 0.1428571429
C49: Computer Software - years | G49: 7 | I49: 7 | K49: 7 | M49: 7 | O49: 7 | Q49: 7 | S49: 7 | U49: 7
C50: - rate (%) | G50: =IF(G49=0,0,1/G49) -> 0.1428571429 | I50: =IF(I49=0,0,1/I49) -> 0.1428571429 | K50: =IF(K49=0,0,1/K49) -> 0.1428571429 | M50: =IF(M49=0,0,1/M49) -> 0.1428571429 | O50: =IF(O49=0,0,1/O49) -> 0.1428571429 | Q50: =IF(Q49=0,0,1/Q49) -> 0.1428571429 | S50: =IF(S49=0,0,1/S49) -> 0.1428571429 | U50: =IF(U49=0,0,1/U49) -> 0.1428571429
C51: Tools & Equipment - years | G51: 7 | I51: 7 | K51: 7 | M51: 7 | O51: 7 | Q51: 7 | S51: 7 | U51: 7
C52: - rate (%) | G52: =IF(G51=0,0,1/G51) -> 0.1428571429 | I52: =IF(I51=0,0,1/I51) -> 0.1428571429 | K52: =IF(K51=0,0,1/K51) -> 0.1428571429 | M52: =IF(M51=0,0,1/M51) -> 0.1428571429 | O52: =IF(O51=0,0,1/O51) -> 0.1428571429 | Q52: =IF(Q51=0,0,1/Q51) -> 0.1428571429 | S52: =IF(S51=0,0,1/S51) -> 0.1428571429 | U52: =IF(U51=0,0,1/U51) -> 0.1428571429
C53: Other Equipment - years | G53: 7 | I53: 7 | K53: 7 | M53: 7 | O53: 7 | Q53: 7 | S53: 7 | U53: 7
C54: - rate (%) | G54: =IF(G53=0,0,1/G53) -> 0.1428571429 | I54: =IF(I53=0,0,1/I53) -> 0.1428571429 | K54: =IF(K53=0,0,1/K53) -> 0.1428571429 | M54: =IF(M53=0,0,1/M53) -> 0.1428571429 | O54: =IF(O53=0,0,1/O53) -> 0.1428571429 | Q54: =IF(Q53=0,0,1/Q53) -> 0.1428571429 | S54: =IF(S53=0,0,1/S53) -> 0.1428571429 | U54: =IF(U53=0,0,1/U53) -> 0.1428571429
B56: CCA Rates
C57: Smart Meters - CCA Class | G57: 47 | I57: 47 | K57: 47 | M57: 47 | O57: 47 | Q57: 47 | S57: 47 | U57: 47
C58: Smart Meters - CCA Rate | G58: 0.08 | I58: 0.08 | K58: 0.08 | M58: 0.08 | O58: 0.08 | Q58: 0.08 | S58: 0.08 | U58: 0.08
C60: Computer Equipment - CCA Class | G60: 45 | I60: 50 | K60: 50 | M60: 50 | O60: 50 | Q60: 50 | S60: 50 | U60: 50
C61: Computer Equipment - CCA Rate | G61: 0.45 | I61: 0.55 | K61: 0.55 | M61: 0.55 | O61: 0.55 | Q61: 0.55 | S61: 0.55 | U61: 0.55
C63: General Equipment - CCA Class | G63: 8 | I63: 8 | K63: 8 | M63: 8 | O63: 8 | Q63: 8 | S63: 8 | U63: 8
C64: General Equipment - CCA Rate | G64: 0.2 | I64: 0.2 | K64: 0.2 | M64: 0.2 | O64: 0.2 | Q64: 0.2 | S64: 0.2 | U64: 0.2
C66: Applications Software - CCA Class | G66: 12 | I66: 12 | K66: 12 | M66: 12 | O66: 12 | Q66: 12 | S66: 12 | U66: 12
C67: Applications Software - CCA Rate | G67: 1 | I67: 1 | K67: 1 | M67: 1 | O67: 1 | Q67: 1 | S67: 1 | U67: 1
B69: Assumptions
B70: 1 | C70: Planned smart meter installations occur evenly throughout the year.
B71: 2 | C71: Fiscal calendar year (January 1 to December 31) used.
B72: 3 | C72: Amortization is done on a striaght line basis and has the "half-year" rule applied.

Sheet 4. SM_Assets_and_Rate_Base
G18: 2006 | I18: 2007 | K18: 2008 | M18: 2009 | O18: 2010 | Q18: 2011 | S18: 2012 | U18: 2013
B19: Net Fixed Assets - Smart Meters
C21: Gross Book Value
D22: Opening Balance | I22: =G25 -> 0 | K22: =I25 -> 0 | M22: =K25 -> 0 | O22: =M25 -> 1056705 | Q22: =O25 -> 1162736 | S22: =Q25 -> 1283017.37 | U22: =S25 -> 1314017.37
D23: Capital Additions during year (from Smart Meter Costs) | G23: ='2. Smart_Meter_Costs'!G181 -> 0 | I23: ='2. Smart_Meter_Costs'!I181 -> 0 | K23: ='2. Smart_Meter_Costs'!K181 -> 0 | M23: ='2. Smart_Meter_Costs'!M181 -> 1056705 | O23: ='2. Smart_Meter_Costs'!O181 -> 106031 | Q23: ='2. Smart_Meter_Costs'!Q181 -> 120281.37 | S23: ='2. Smart_Meter_Costs'!S181 -> 31000 | U23: ='2. Smart_Meter_Costs'!U181 -> 0
D24: Retirements/Removals (if applicable)
D25: Closing Balance | G25: =G22+G23-G24 -> 0 | I25: =I22+I23-I24 -> 0 | K25: =K22+K23-K24 -> 0 | M25: =M22+M23-M24 -> 1056705 | O25: =O22+O23-O24 -> 1162736 | Q25: =Q22+Q23-Q24 -> 1283017.37 | S25: =S22+S23-S24 -> 1314017.37 | U25: =U22+U23-U24 -> 1314017.37
C27: Accumulated Depreciation
D28: Opening Balance | I28: =G31 -> 0 | K28: =I31 -> 0 | M28: =K31 -> 0 | O28: =M31 -> -35223.5 | Q28: =O31 -> -109204.8667 | S28: =Q31 -> -190729.979 | U28: =S31 -> -277297.8037
D29: Amortization expense during year | G29: =IF(ISERROR(-G23/('3. Cost_of_Service_Parameters'!G45*2)), 0, -G23/('3. Cost_of_Service_Parameters'!G45*2)) -> 0 | I29: =IF(ISERROR(-(I23/('3. Cost_of_Service_Parameters'!I45*2)+MIN((I22/'3. Cost_of_Service_Parameters'!I45),(I22+I28)))), 0, -(I23/('3. Cost_of_Service_Parameters'!I45*2)+MIN((I22/'3. Cost_of_Service_Parameters'!I45),(I22+I28)))) -> 0 | K29: =IF(ISERROR(-(K23/('3. Cost_of_Service_Parameters'!K45*2)+MIN((K22/'3. Cost_of_Service_Parameters'!K45),(K22+K28)))), 0, -(K23/('3. Cost_of_Service_Parameters'!K45*2)+MIN((K22/'3. Cost_of_Service_Parameters'!K45),(K22+K28)))) -> 0 | M29: =IF(ISERROR(-(M23/('3. Cost_of_Service_Parameters'!M45*2)+MIN((M22/'3. Cost_of_Service_Parameters'!M45),(M22+M28)))), 0,-(M23/('3. Cost_of_Service_Parameters'!M45*2)+MIN((M22/'3. Cost_of_Service_Parameters'!M45),(M22+M28)))) -> -35223.5 | O29: =IF(ISERROR(-(O23/('3. Cost_of_Service_Parameters'!O45*2)+MIN((O22/'3. Cost_of_Service_Parameters'!O45),(O22+O28)))), 0, -(O23/('3. Cost_of_Service_Parameters'!O45*2)+MIN((O22/'3. Cost_of_Service_Parameters'!O45),(O22+O28)))) -> -73981.36667 | Q29: =IF(ISERROR(-(Q23/('3. Cost_of_Service_Parameters'!Q45*2)+MIN((Q22/'3. Cost_of_Service_Parameters'!Q45),(Q22+Q28)))), 0, -(Q23/('3. Cost_of_Service_Parameters'!Q45*2)+MIN((Q22/'3. Cost_of_Service_Parameters'!Q45),(Q22+Q28)))) -> -81525.11233 | S29: =IF(ISERROR(-(S23/('3. Cost_of_Service_Parameters'!S45*2)+MIN((S22/'3. Cost_of_Service_Parameters'!S45),(S22+S28)))), 0, -(S23/('3. Cost_of_Service_Parameters'!S45*2)+MIN((S22/'3. Cost_of_Service_Parameters'!S45),(S22+S28)))) -> -86567.82467 | U29: =IF(ISERROR(-(U23/('3. Cost_of_Service_Parameters'!U45*2)+MIN((U22/'3. Cost_of_Service_Parameters'!U45),(U22+U28)))), 0, -(U23/('3. Cost_of_Service_Parameters'!U45*2)+MIN((U22/'3. Cost_of_Service_Parameters'!U45),(U22+U28)))) -> -87601.158
D30: Retirements/Removals (if applicable)
D31: Closing Balance | G31: =G28+G29-G30 -> 0 | I31: =I28+I29-I30 -> 0 | K31: =K28+K29-K30 -> 0 | M31: =M28+M29-M30 -> -35223.5 | O31: =O28+O29-O30 -> -109204.8667 | Q31: =Q28+Q29-Q30 -> -190729.979 | S31: =S28+S29-S30 -> -277297.8037 | U31: =U28+U29-U30 -> -364898.9617
C33: Net Book Value
D34: Opening Balance | G34: =G22+G28 -> 0 | I34: =G35 -> 0 | K34: =I35 -> 0 | M34: =K35 -> 0 | O34: =M35 -> 1021481.5 | Q34: =O35 -> 1053531.133 | S34: =Q35 -> 1092287.391 | U34: =S35 -> 1036719.566
D35: Closing Balance | G35: =G25+G31 -> 0 | I35: =I25+I31 -> 0 | K35: =K25+K31 -> 0 | M35: =M25+M31 -> 1021481.5 | O35: =O25+O31 -> 1053531.133 | Q35: =Q25+Q31 -> 1092287.391 | S35: =S25+S31 -> 1036719.566 | U35: =U25+U31 -> 949118.4083
D36: Average Net Book Value | G36: =AVERAGE(G34:G35) -> 0 | I36: =AVERAGE(I34:I35) -> 0 | K36: =AVERAGE(K34:K35) -> 0 | M36: =AVERAGE(M34:M35) -> 510740.75 | O36: =AVERAGE(O34:O35) -> 1037506.317 | Q36: =AVERAGE(Q34:Q35) -> 1072909.262 | S36: =AVERAGE(S34:S35) -> 1064503.479 | U36: =AVERAGE(U34:U35) -> 992918.9873
B38: Net Fixed Assets - Computer Hardware
C40: Gross Book Value
D41: Opening Balance | I41: =G44 -> 0 | K41: =I44 -> 13309 | M41: =K44 -> 29159 | O41: =M44 -> 53472 | Q41: =O44 -> 53472 | S41: =Q44 -> 53472 | U41: =S44 -> 53472
D42: Capital Additions during year (from Smart Meter Costs) | G42: ='2. Smart_Meter_Costs'!G183 -> 0 | I42: ='2. Smart_Meter_Costs'!I183 -> 13309 | K42: ='2. Smart_Meter_Costs'!K183 -> 15850 | M42: ='2. Smart_Meter_Costs'!M183 -> 24313 | O42: ='2. Smart_Meter_Costs'!O183 -> 0 | Q42: ='2. Smart_Meter_Costs'!Q183 -> 0 | S42: ='2. Smart_Meter_Costs'!S183 -> 0 | U42: ='2. Smart_Meter_Costs'!U183 -> 0
D43: Retirements/Removals (if applicable)
D44: Closing Balance | G44: =G41+G42-G43 -> 0 | I44: =I41+I42-I43 -> 13309 | K44: =K41+K42-K43 -> 29159 | M44: =M41+M42-M43 -> 53472 | O44: =O41+O42-O43 -> 53472 | Q44: =Q41+Q42-Q43 -> 53472 | S44: =S41+S42-S43 -> 53472 | U44: =U41+U42-U43 -> 53472
C46: Accumulated Depreciation
D47: Opening Balance | G47: 0 | I47: =G50 -> 0 | K47: =I50 -> -950.6428571 | M47: =K50 -> -3984.071429 | O47: =M50 -> -9886.285714 | Q47: =O50 -> -17525.14286 | S47: =Q50 -> -25164 | U47: =S50 -> -32802.85714
D48: Amortization expense during year | G48: =IF(ISERROR(-G42/('3. Cost_of_Service_Parameters'!G47*2)), 0, -G42/('3. Cost_of_Service_Parameters'!G47*2)) -> 0 | I48: =IF(ISERROR(-(I42/('3. Cost_of_Service_Parameters'!I47*2)+MIN((I41/'3. Cost_of_Service_Parameters'!I47),(I41+I47)))), 0, -(I42/('3. Cost_of_Service_Parameters'!I47*2)+MIN((I41/'3. Cost_of_Service_Parameters'!I47),(I41+I47)))) -> -950.6428571 | K48: =IF(ISERROR(-(K42/('3. Cost_of_Service_Parameters'!K47*2)+MIN((K41/'3. Cost_of_Service_Parameters'!K47),(K41+K47)))), 0, -(K42/('3. Cost_of_Service_Parameters'!K47*2)+MIN((K41/'3. Cost_of_Service_Parameters'!K47),(K41+K47)))) -> -3033.428571 | M48: =IF(ISERROR(-(M42/('3. Cost_of_Service_Parameters'!M47*2)+MIN((M41/'3. Cost_of_Service_Parameters'!M47),(M41+M47)))), 0,-(M42/('3. Cost_of_Service_Parameters'!M47*2)+MIN((M41/'3. Cost_of_Service_Parameters'!M47),(M41+M47)))) -> -5902.214286 | O48: =IF(ISERROR(-(O42/('3. Cost_of_Service_Parameters'!O47*2)+MIN((O41/'3. Cost_of_Service_Parameters'!O47),(O41+O47)))), 0, -(O42/('3. Cost_of_Service_Parameters'!O47*2)+MIN((O41/'3. Cost_of_Service_Parameters'!O47),(O41+O47)))) -> -7638.857143 | Q48: =IF(ISERROR(-(Q42/('3. Cost_of_Service_Parameters'!Q47*2)+MIN((Q41/'3. Cost_of_Service_Parameters'!Q47),(Q41+Q47)))), 0, -(Q42/('3. Cost_of_Service_Parameters'!Q47*2)+MIN((Q41/'3. Cost_of_Service_Parameters'!Q47),(Q41+Q47)))) -> -7638.857143 | S48: =IF(ISERROR(-(S42/('3. Cost_of_Service_Parameters'!S47*2)+MIN((S41/'3. Cost_of_Service_Parameters'!S47),(S41+S47)))), 0, -(S42/('3. Cost_of_Service_Parameters'!S47*2)+MIN((S41/'3. Cost_of_Service_Parameters'!S47),(S41+S47)))) -> -7638.857143 | U48: =IF(ISERROR(-(U42/('3. Cost_of_Service_Parameters'!U47*2)+MIN((U41/'3. Cost_of_Service_Parameters'!U47),(U41+U47)))), 0, -(U42/('3. Cost_of_Service_Parameters'!U47*2)+MIN((U41/'3. Cost_of_Service_Parameters'!U47),(U41+U47)))) -> -7638.857143
D49: Retirements/Removals (if applicable)
D50: Closing Balance | G50: =G47+G48-G49 -> 0 | I50: =I47+I48-I49 -> -950.6428571 | K50: =K47+K48-K49 -> -3984.071429 | M50: =M47+M48-M49 -> -9886.285714 | O50: =O47+O48-O49 -> -17525.14286 | Q50: =Q47+Q48-Q49 -> -25164 | S50: =S47+S48-S49 -> -32802.85714 | U50: =U47+U48-U49 -> -40441.71429
C52: Net Book Value
D53: Opening Balance | G53: =G41+G47 -> 0 | I53: =G54 -> 0 | K53: =I54 -> 12358.35714 | M53: =K54 -> 25174.92857 | O53: =M54 -> 43585.71429 | Q53: =O54 -> 35946.85714 | S53: =Q54 -> 28308 | U53: =S54 -> 20669.14286
D54: Closing Balance | G54: =G44+G50 -> 0 | I54: =I44+I50 -> 12358.35714 | K54: =K44+K50 -> 25174.92857 | M54: =M44+M50 -> 43585.71429 | O54: =O44+O50 -> 35946.85714 | Q54: =Q44+Q50 -> 28308 | S54: =S44+S50 -> 20669.14286 | U54: =U44+U50 -> 13030.28571
D55: Average Net Book Value | G55: =AVERAGE(G53:G54) -> 0 | I55: =AVERAGE(I53:I54) -> 6179.178571 | K55: =AVERAGE(K53:K54) -> 18766.64286 | M55: =AVERAGE(M53:M54) -> 34380.32143 | O55: =AVERAGE(O53:O54) -> 39766.28571 | Q55: =AVERAGE(Q53:Q54) -> 32127.42857 | S55: =AVERAGE(S53:S54) -> 24488.57143 | U55: =AVERAGE(U53:U54) -> 16849.71429
B57: Net Fixed Assets - Computer Software (including Applications Software)
C59: Gross Book Value
D60: Opening Balance | I60: =G63 -> 0 | K60: =I63 -> 0 | M60: =K63 -> 0 | O60: =M63 -> 22833 | Q60: =O63 -> 28366 | S60: =Q63 -> 30618 | U60: =S63 -> 30618
D61: Capital Additions during year (from Smart Meter Costs) | G61: ='2. Smart_Meter_Costs'!G185+'2. Smart_Meter_Costs'!G191 -> 0 | I61: ='2. Smart_Meter_Costs'!I185+'2. Smart_Meter_Costs'!I191 -> 0 | K61: ='2. Smart_Meter_Costs'!K185+'2. Smart_Meter_Costs'!K191 -> 0 | M61: ='2. Smart_Meter_Costs'!M185+'2. Smart_Meter_Costs'!M191 -> 22833 | O61: ='2. Smart_Meter_Costs'!O185+'2. Smart_Meter_Costs'!O191 -> 5533 | Q61: ='2. Smart_Meter_Costs'!Q185+'2. Smart_Meter_Costs'!Q191 -> 2252 | S61: ='2. Smart_Meter_Costs'!S185+'2. Smart_Meter_Costs'!S191 -> 0 | U61: ='2. Smart_Meter_Costs'!U185+'2. Smart_Meter_Costs'!U191 -> 0
D62: Retirements/Removals (if applicable)
D63: Closing Balance | G63: =G60+G61-G62 -> 0 | I63: =I60+I61-I62 -> 0 | K63: =K60+K61-K62 -> 0 | M63: =M60+M61-M62 -> 22833 | O63: =O60+O61-O62 -> 28366 | Q63: =Q60+Q61-Q62 -> 30618 | S63: =S60+S61-S62 -> 30618 | U63: =U60+U61-U62 -> 30618
C65: Accumulated Depreciation
D66: Opening Balance | G66: 0 | I66: =G69 -> 0 | K66: =I69 -> 0 | M66: =K69 -> 0 | O66: =M69 -> -1630.928571 | Q66: =O69 -> -5288 | S66: =Q69 -> -9501.142857 | U66: =S69 -> -13875.14286
D67: Amortization expense during year | G67: =IF(ISERROR(-G61/('3. Cost_of_Service_Parameters'!G49*2)), 0, -G61/('3. Cost_of_Service_Parameters'!G49*2)) -> 0 | I67: =IF(ISERROR(-(I61/('3. Cost_of_Service_Parameters'!I49*2)+MIN((I60/'3. Cost_of_Service_Parameters'!I49),(I60+I66)))), 0, -(I61/('3. Cost_of_Service_Parameters'!I49*2)+MIN((I60/'3. Cost_of_Service_Parameters'!I49),(I60+I66)))) -> 0 | K67: =IF(ISERROR(-(K61/('3. Cost_of_Service_Parameters'!K49*2)+MIN((K60/'3. Cost_of_Service_Parameters'!K49),(K60+K66)))), 0, -(K61/('3. Cost_of_Service_Parameters'!K49*2)+MIN((K60/'3. Cost_of_Service_Parameters'!K49),(K60+K66)))) -> 0 | M67: =IF(ISERROR(-(M61/('3. Cost_of_Service_Parameters'!M49*2)+MIN((M60/'3. Cost_of_Service_Parameters'!M49),(M60+M66)))), 0,-(M61/('3. Cost_of_Service_Parameters'!M49*2)+MIN((M60/'3. Cost_of_Service_Parameters'!M49),(M60+M66)))) -> -1630.928571 | O67: =IF(ISERROR(-(O61/('3. Cost_of_Service_Parameters'!O49*2)+MIN((O60/'3. Cost_of_Service_Parameters'!O49),(O60+O66)))), 0, -(O61/('3. Cost_of_Service_Parameters'!O49*2)+MIN((O60/'3. Cost_of_Service_Parameters'!O49),(O60+O66)))) -> -3657.071429 | Q67: =IF(ISERROR(-(Q61/('3. Cost_of_Service_Parameters'!Q49*2)+MIN((Q60/'3. Cost_of_Service_Parameters'!Q49),(Q60+Q66)))), 0, -(Q61/('3. Cost_of_Service_Parameters'!Q49*2)+MIN((Q60/'3. Cost_of_Service_Parameters'!Q49),(Q60+Q66)))) -> -4213.142857 | S67: =IF(ISERROR(-(S61/('3. Cost_of_Service_Parameters'!S49*2)+MIN((S60/'3. Cost_of_Service_Parameters'!S49),(S60+S66)))), 0, -(S61/('3. Cost_of_Service_Parameters'!S49*2)+MIN((S60/'3. Cost_of_Service_Parameters'!S49),(S60+S66)))) -> -4374 | U67: =IF(ISERROR(-(U61/('3. Cost_of_Service_Parameters'!U49*2)+MIN((U60/'3. Cost_of_Service_Parameters'!U49),(U60+U66)))), 0, -(U61/('3. Cost_of_Service_Parameters'!U49*2)+MIN((U60/'3. Cost_of_Service_Parameters'!U49),(U60+U66)))) -> -4374
D68: Retirements/Removals (if applicable)
D69: Closing Balance | G69: =G66+G67-G68 -> 0 | I69: =I66+I67-I68 -> 0 | K69: =K66+K67-K68 -> 0 | M69: =M66+M67-M68 -> -1630.928571 | O69: =O66+O67-O68 -> -5288 | Q69: =Q66+Q67-Q68 -> -9501.142857 | S69: =S66+S67-S68 -> -13875.14286 | U69: =U66+U67-U68 -> -18249.14286
C71: Net Book Value
D72: Opening Balance | G72: =G60+G66 -> 0 | I72: =G73 -> 0 | K72: =I73 -> 0 | M72: =K73 -> 0 | O72: =M73 -> 21202.07143 | Q72: =O73 -> 23078 | S72: =Q73 -> 21116.85714 | U72: =S73 -> 16742.85714
D73: Closing Balance | G73: =G63+G69 -> 0 | I73: =I63+I69 -> 0 | K73: =K63+K69 -> 0 | M73: =M63+M69 -> 21202.07143 | O73: =O63+O69 -> 23078 | Q73: =Q63+Q69 -> 21116.85714 | S73: =S63+S69 -> 16742.85714 | U73: =U63+U69 -> 12368.85714
D74: Average Net Book Value | G74: =AVERAGE(G72:G73) -> 0 | I74: =AVERAGE(I72:I73) -> 0 | K74: =AVERAGE(K72:K73) -> 0 | M74: =AVERAGE(M72:M73) -> 10601.03571 | O74: =AVERAGE(O72:O73) -> 22140.03571 | Q74: =AVERAGE(Q72:Q73) -> 22097.42857 | S74: =AVERAGE(S72:S73) -> 18929.85714 | U74: =AVERAGE(U72:U73) -> 14555.85714
B76: Net Fixed Assets - Tools and Equipment
C78: Gross Book Value
D79: Opening Balance | I79: =G82 -> 0 | K79: =I82 -> 0 | M79: =K82 -> 0 | O79: =M82 -> 0 | Q79: =O82 -> 0 | S79: =Q82 -> 0 | U79: =S82 -> 0
D80: Capital Additions during year (from Smart Meter Costs) | G80: ='2. Smart_Meter_Costs'!G187 -> 0 | I80: ='2. Smart_Meter_Costs'!I187 -> 0 | K80: ='2. Smart_Meter_Costs'!K187 -> 0 | M80: ='2. Smart_Meter_Costs'!M187 -> 0 | O80: ='2. Smart_Meter_Costs'!O187 -> 0 | Q80: ='2. Smart_Meter_Costs'!Q187 -> 0 | S80: ='2. Smart_Meter_Costs'!S187 -> 0 | U80: ='2. Smart_Meter_Costs'!U187 -> 0
D81: Retirements/Removals (if applicable)
D82: Closing Balance | G82: =G79+G80-G81 -> 0 | I82: =I79+I80-I81 -> 0 | K82: =K79+K80-K81 -> 0 | M82: =M79+M80-M81 -> 0 | O82: =O79+O80-O81 -> 0 | Q82: =Q79+Q80-Q81 -> 0 | S82: =S79+S80-S81 -> 0 | U82: =U79+U80-U81 -> 0
C84: Accumulated Depreciation
D85: Opening Balance | G85: 0 | I85: =G88 -> 0 | K85: =I88 -> 0 | M85: =K88 -> 0 | O85: =M88 -> 0 | Q85: =O88 -> 0 | S85: =Q88 -> 0 | U85: =S88 -> 0
D86: Amortization expense during year | G86: =IF(ISERROR(-G80/('3. Cost_of_Service_Parameters'!G51*2)), 0, -G80/('3. Cost_of_Service_Parameters'!G51*2)) -> 0 | I86: =IF(ISERROR(-(I80/('3. Cost_of_Service_Parameters'!I51*2)+MIN((I79/'3. Cost_of_Service_Parameters'!I51),(I79+I85)))), 0, -(I80/('3. Cost_of_Service_Parameters'!I51*2)+MIN((I79/'3. Cost_of_Service_Parameters'!I51),(I79+I85)))) -> 0 | K86: =IF(ISERROR(-(K80/('3. Cost_of_Service_Parameters'!K51*2)+MIN((K79/'3. Cost_of_Service_Parameters'!K51),(K79+K85)))), 0, -(K80/('3. Cost_of_Service_Parameters'!K51*2)+MIN((K79/'3. Cost_of_Service_Parameters'!K51),(K79+K85)))) -> 0 | M86: =IF(ISERROR(-(M80/('3. Cost_of_Service_Parameters'!M51*2)+MIN((M79/'3. Cost_of_Service_Parameters'!M51),(M79+M85)))), 0,-(M80/('3. Cost_of_Service_Parameters'!M51*2)+MIN((M79/'3. Cost_of_Service_Parameters'!M51),(M79+M85)))) -> 0 | O86: =IF(ISERROR(-(O80/('3. Cost_of_Service_Parameters'!O51*2)+MIN((O79/'3. Cost_of_Service_Parameters'!O51),(O79+O85)))), 0, -(O80/('3. Cost_of_Service_Parameters'!O51*2)+MIN((O79/'3. Cost_of_Service_Parameters'!O51),(O79+O85)))) -> 0 | Q86: =IF(ISERROR(-(Q80/('3. Cost_of_Service_Parameters'!Q51*2)+MIN((Q79/'3. Cost_of_Service_Parameters'!Q51),(Q79+Q85)))), 0, -(Q80/('3. Cost_of_Service_Parameters'!Q51*2)+MIN((Q79/'3. Cost_of_Service_Parameters'!Q51),(Q79+Q85)))) -> 0 | S86: =IF(ISERROR(-(S80/('3. Cost_of_Service_Parameters'!S51*2)+MIN((S79/'3. Cost_of_Service_Parameters'!S51),(S79+S85)))), 0, -(S80/('3. Cost_of_Service_Parameters'!S51*2)+MIN((S79/'3. Cost_of_Service_Parameters'!S51),(S79+S85)))) -> 0 | U86: =IF(ISERROR(-(U80/('3. Cost_of_Service_Parameters'!U51*2)+MIN((U79/'3. Cost_of_Service_Parameters'!U51),(U79+U85)))), 0, -(U80/('3. Cost_of_Service_Parameters'!U51*2)+MIN((U79/'3. Cost_of_Service_Parameters'!U51),(U79+U85)))) -> 0
D87: Retirements/Removals (if applicable)
D88: Closing Balance | G88: =G85+G86-G87 -> 0 | I88: =I85+I86-I87 -> 0 | K88: =K85+K86-K87 -> 0 | M88: =M85+M86-M87 -> 0 | O88: =O85+O86-O87 -> 0 | Q88: =Q85+Q86-Q87 -> 0 | S88: =S85+S86-S87 -> 0 | U88: =U85+U86-U87 -> 0
C90: Net Book Value
D91: Opening Balance | G91: =G79+G85 -> 0 | I91: =G92 -> 0 | K91: =I92 -> 0 | M91: =K92 -> 0 | O91: =M92 -> 0 | Q91: =O92 -> 0 | S91: =Q92 -> 0 | U91: =S92 -> 0
D92: Closing Balance | G92: =G82+G88 -> 0 | I92: =I82+I88 -> 0 | K92: =K82+K88 -> 0 | M92: =M82+M88 -> 0 | O92: =O82+O88 -> 0 | Q92: =Q82+Q88 -> 0 | S92: =S82+S88 -> 0 | U92: =U82+U88 -> 0
D93: Average Net Book Value | G93: =AVERAGE(G91:G92) -> 0 | I93: =AVERAGE(I91:I92) -> 0 | K93: =AVERAGE(K91:K92) -> 0 | M93: =AVERAGE(M91:M92) -> 0 | O93: =AVERAGE(O91:O92) -> 0 | Q93: =AVERAGE(Q91:Q92) -> 0 | S93: =AVERAGE(S91:S92) -> 0 | U93: =AVERAGE(U91:U92) -> 0
B95: Net Fixed Assets - Other Equipment
C97: Gross Book Value
D98: Opening Balance | I98: =G101 -> 0 | K98: =I101 -> 0 | M98: =K101 -> 0 | O98: =M101 -> 1501 | Q98: =O101 -> 1501 | S98: =Q101 -> 1501 | U98: =S101 -> 1501
D99: Capital Additions during year (from Smart Meter Costs) | G99: ='2. Smart_Meter_Costs'!G189 -> 0 | I99: ='2. Smart_Meter_Costs'!I189 -> 0 | K99: ='2. Smart_Meter_Costs'!K189 -> 0 | M99: ='2. Smart_Meter_Costs'!M189 -> 1501 | O99: ='2. Smart_Meter_Costs'!O189 -> 0 | Q99: ='2. Smart_Meter_Costs'!Q189 -> 0 | S99: ='2. Smart_Meter_Costs'!S189 -> 0 | U99: ='2. Smart_Meter_Costs'!U189 -> 0
D100: Retirements/Removals (if applicable)
D101: Closing Balance | G101: =G98+G99-G100 -> 0 | I101: =I98+I99-I100 -> 0 | K101: =K98+K99-K100 -> 0 | M101: =M98+M99-M100 -> 1501 | O101: =O98+O99-O100 -> 1501 | Q101: =Q98+Q99-Q100 -> 1501 | S101: =S98+S99-S100 -> 1501 | U101: =U98+U99-U100 -> 1501
C103: Accumulated Depreciation
D104: Opening Balance | G104: 0 | I104: =G107 -> 0 | K104: =I107 -> 0 | M104: =K107 -> 0 | O104: =M107 -> -107.2142857 | Q104: =O107 -> -321.6428571 | S104: =Q107 -> -536.0714286 | U104: =S107 -> -750.5
D105: Amortization expense during year | G105: =IF(ISERROR(-G99/('3. Cost_of_Service_Parameters'!G53*2)), 0, -G99/('3. Cost_of_Service_Parameters'!G53*2)) -> 0 | I105: =IF(ISERROR(-(I99/('3. Cost_of_Service_Parameters'!I53*2)+MIN((I98/'3. Cost_of_Service_Parameters'!I53),(I98+I104)))), 0, -(I99/('3. Cost_of_Service_Parameters'!I53*2)+MIN((I98/'3. Cost_of_Service_Parameters'!I53),(I98+I104)))) -> 0 | K105: =IF(ISERROR(-(K99/('3. Cost_of_Service_Parameters'!K53*2)+MIN((K98/'3. Cost_of_Service_Parameters'!K53),(K98+K104)))), 0, -(K99/('3. Cost_of_Service_Parameters'!K53*2)+MIN((K98/'3. Cost_of_Service_Parameters'!K53),(K98+K104)))) -> 0 | M105: =IF(ISERROR(-(M99/('3. Cost_of_Service_Parameters'!M53*2)+MIN((M98/'3. Cost_of_Service_Parameters'!M53),(M98+M104)))), 0,-(M99/('3. Cost_of_Service_Parameters'!M53*2)+MIN((M98/'3. Cost_of_Service_Parameters'!M53),(M98+M104)))) -> -107.2142857 | O105: =IF(ISERROR(-(O99/('3. Cost_of_Service_Parameters'!O53*2)+MIN((O98/'3. Cost_of_Service_Parameters'!O53),(O98+O104)))), 0, -(O99/('3. Cost_of_Service_Parameters'!O53*2)+MIN((O98/'3. Cost_of_Service_Parameters'!O53),(O98+O104)))) -> -214.4285714 | Q105: =IF(ISERROR(-(Q99/('3. Cost_of_Service_Parameters'!Q53*2)+MIN((Q98/'3. Cost_of_Service_Parameters'!Q53),(Q98+Q104)))), 0, -(Q99/('3. Cost_of_Service_Parameters'!Q53*2)+MIN((Q98/'3. Cost_of_Service_Parameters'!Q53),(Q98+Q104)))) -> -214.4285714 | S105: =IF(ISERROR(-(S99/('3. Cost_of_Service_Parameters'!S53*2)+MIN((S98/'3. Cost_of_Service_Parameters'!S53),(S98+S104)))), 0, -(S99/('3. Cost_of_Service_Parameters'!S53*2)+MIN((S98/'3. Cost_of_Service_Parameters'!S53),(S98+S104)))) -> -214.4285714 | U105: =IF(ISERROR(-(U99/('3. Cost_of_Service_Parameters'!U53*2)+MIN((U98/'3. Cost_of_Service_Parameters'!U53),(U98+U104)))), 0, -(U99/('3. Cost_of_Service_Parameters'!U53*2)+MIN((U98/'3. Cost_of_Service_Parameters'!U53),(U98+U104)))) -> -214.4285714
D106: Retirements/Removals (if applicable)
D107: Closing Balance | G107: =G104+G105-G106 -> 0 | I107: =I104+I105-I106 -> 0 | K107: =K104+K105-K106 -> 0 | M107: =M104+M105-M106 -> -107.2142857 | O107: =O104+O105-O106 -> -321.6428571 | Q107: =Q104+Q105-Q106 -> -536.0714286 | S107: =S104+S105-S106 -> -750.5 | U107: =U104+U105-U106 -> -964.9285714
C109: Net Book Value
D110: Opening Balance | G110: =G98+G104 -> 0 | I110: =G111 -> 0 | K110: =I111 -> 0 | M110: =K111 -> 0 | O110: =M111 -> 1393.785714 | Q110: =O111 -> 1179.357143 | S110: =Q111 -> 964.9285714 | U110: =S111 -> 750.5
D111: Closing Balance | G111: =G101+G107 -> 0 | I111: =I101+I107 -> 0 | K111: =K101+K107 -> 0 | M111: =M101+M107 -> 1393.785714 | O111: =O101+O107 -> 1179.357143 | Q111: =Q101+Q107 -> 964.9285714 | S111: =S101+S107 -> 750.5 | U111: =U101+U107 -> 536.0714286
D112: Average Net Book Value | G112: =AVERAGE(G110:G111) -> 0 | I112: =AVERAGE(I110:I111) -> 0 | K112: =AVERAGE(K110:K111) -> 0 | M112: =AVERAGE(M110:M111) -> 696.8928571 | O112: =AVERAGE(O110:O111) -> 1286.571429 | Q112: =AVERAGE(Q110:Q111) -> 1072.142857 | S112: =AVERAGE(S110:S111) -> 857.7142857 | U112: =AVERAGE(U110:U111) -> 643.2857143

Sheet 5. SM_Rev_Reqt
G18: 2006 | I18: 2007 | K18: 2008 | M18: 2009 | O18: 2010 | Q18: 2011 | S18: 2012 | U18: 2013
B19: Average Net Fixed Asset Values (from Sheet 4)
C20: Smart Meters | G20: ='4. SM_Assets_and_Rate_Base'!G36 -> 0 | I20: ='4. SM_Assets_and_Rate_Base'!I36 -> 0 | K20: ='4. SM_Assets_and_Rate_Base'!K36 -> 0 | M20: ='4. SM_Assets_and_Rate_Base'!M36 -> 510740.75 | O20: ='4. SM_Assets_and_Rate_Base'!O36 -> 1037506.317 | Q20: ='4. SM_Assets_and_Rate_Base'!Q36 -> 1072909.262 | S20: ='4. SM_Assets_and_Rate_Base'!S36 -> 1064503.479 | U20: ='4. SM_Assets_and_Rate_Base'!U36 -> 992918.9873
C21: Computer Hardware | G21: ='4. SM_Assets_and_Rate_Base'!G55 -> 0 | I21: ='4. SM_Assets_and_Rate_Base'!I55 -> 6179.178571 | K21: ='4. SM_Assets_and_Rate_Base'!K55 -> 18766.64286 | M21: ='4. SM_Assets_and_Rate_Base'!M55 -> 34380.32143 | O21: ='4. SM_Assets_and_Rate_Base'!O55 -> 39766.28571 | Q21: ='4. SM_Assets_and_Rate_Base'!Q55 -> 32127.42857 | S21: ='4. SM_Assets_and_Rate_Base'!S55 -> 24488.57143 | U21: ='4. SM_Assets_and_Rate_Base'!U55 -> 16849.71429
C22: Computer Software | G22: ='4. SM_Assets_and_Rate_Base'!G74 -> 0 | I22: ='4. SM_Assets_and_Rate_Base'!I74 -> 0 | K22: ='4. SM_Assets_and_Rate_Base'!K74 -> 0 | M22: ='4. SM_Assets_and_Rate_Base'!M74 -> 10601.03571 | O22: ='4. SM_Assets_and_Rate_Base'!O74 -> 22140.03571 | Q22: ='4. SM_Assets_and_Rate_Base'!Q74 -> 22097.42857 | S22: ='4. SM_Assets_and_Rate_Base'!S74 -> 18929.85714 | U22: ='4. SM_Assets_and_Rate_Base'!U74 -> 14555.85714
C23: Tools & Equipment | G23: ='4. SM_Assets_and_Rate_Base'!G93 -> 0 | I23: ='4. SM_Assets_and_Rate_Base'!I93 -> 0 | K23: ='4. SM_Assets_and_Rate_Base'!K93 -> 0 | M23: ='4. SM_Assets_and_Rate_Base'!M93 -> 0 | O23: ='4. SM_Assets_and_Rate_Base'!O93 -> 0 | Q23: ='4. SM_Assets_and_Rate_Base'!Q93 -> 0 | S23: ='4. SM_Assets_and_Rate_Base'!S93 -> 0 | U23: ='4. SM_Assets_and_Rate_Base'!U93 -> 0
C24: Other Equipment | G24: ='4. SM_Assets_and_Rate_Base'!G112 -> 0 | I24: ='4. SM_Assets_and_Rate_Base'!I112 -> 0 | K24: ='4. SM_Assets_and_Rate_Base'!K112 -> 0 | M24: ='4. SM_Assets_and_Rate_Base'!M112 -> 696.8928571 | O24: ='4. SM_Assets_and_Rate_Base'!O112 -> 1286.571429 | Q24: ='4. SM_Assets_and_Rate_Base'!Q112 -> 1072.142857 | S24: ='4. SM_Assets_and_Rate_Base'!S112 -> 857.7142857 | U24: ='4. SM_Assets_and_Rate_Base'!U112 -> 643.2857143
C25: Total Net Fixed Assets | G25: =SUM(G20:G24) -> 0 | I25: =SUM(I20:I24) -> 6179.178571 | K25: =SUM(K20:K24) -> 18766.64286 | M25: =SUM(M20:M24) -> 556419 | O25: =SUM(O20:O24) -> 1100699.21 | Q25: =SUM(Q20:Q24) -> 1128206.262 | S25: =SUM(S20:S24) -> 1108779.622 | U25: =SUM(U20:U24) -> 1024967.844
B27: Working Capital
C28: Operating Expenses (from Sheet 2) | G28: ='2. Smart_Meter_Costs'!G174 -> 0 | I28: ='2. Smart_Meter_Costs'!I174 -> 0 | K28: ='2. Smart_Meter_Costs'!K174 -> 0 | M28: ='2. Smart_Meter_Costs'!M174 -> 94917 | O28: ='2. Smart_Meter_Costs'!O174 -> 122555 | Q28: ='2. Smart_Meter_Costs'!Q174 -> 165422 | S28: ='2. Smart_Meter_Costs'!S174 -> 122289 | U28: ='2. Smart_Meter_Costs'!U174 -> 0
C29: Working Capital Factor (from Sheet 3) | G29: ='3. Cost_of_Service_Parameters'!G36 -> 0.15 | I29: ='3. Cost_of_Service_Parameters'!I36 -> 0.15 | K29: ='3. Cost_of_Service_Parameters'!K36 -> 0.15 | M29: ='3. Cost_of_Service_Parameters'!M36 -> 0.15 | O29: ='3. Cost_of_Service_Parameters'!O36 -> 0.15 | Q29: ='3. Cost_of_Service_Parameters'!Q36 -> 0.15 | S29: ='3. Cost_of_Service_Parameters'!S36 -> 0.15 | U29: ='3. Cost_of_Service_Parameters'!U36 -> 0.15
C30: Working Capital Allowance | G30: =G28*G29 -> 0 | I30: =I28*I29 -> 0 | K30: =K28*K29 -> 0 | M30: =M28*M29 -> 14237.55 | O30: =O28*O29 -> 18383.25 | Q30: =Q28*Q29 -> 24813.3 | S30: =S28*S29 -> 18343.35 | U30: =U28*U29 -> 0
B32: Incremental Smart Meter Rate Base | G32: =G25+G30 -> 0 | I32: =I25+I30 -> 6179.178571 | K32: =K25+K30 -> 18766.64286 | M32: =M25+M30 -> 570656.55 | O32: =O25+O30 -> 1119082.46 | Q32: =Q25+Q30 -> 1153019.562 | S32: =S25+S30 -> 1127122.972 | U32: =U25+U30 -> 1024967.844
B34: Return on Rate Base
C35: Capital Structure
C36: Deemed Short Term Debt | G36: =G$32*'3. Cost_of_Service_Parameters'!G22 -> 0 | I36: =I$32*'3. Cost_of_Service_Parameters'!I22 -> 0 | K36: =K$32*'3. Cost_of_Service_Parameters'!K22 -> 0 | M36: =M$32*'3. Cost_of_Service_Parameters'!M22 -> 22826.262 | O36: =O$32*'3. Cost_of_Service_Parameters'!O22 -> 44763.29838 | Q36: =Q$32*'3. Cost_of_Service_Parameters'!Q22 -> 46120.78249 | S36: =S$32*'3. Cost_of_Service_Parameters'!S22 -> 45084.91886 | U36: =U$32*'3. Cost_of_Service_Parameters'!U22 -> 40998.71378
C37: Deemed Long Term Debt | G37: =G$32*'3. Cost_of_Service_Parameters'!G23 -> 0 | I37: =I$32*'3. Cost_of_Service_Parameters'!I23 -> 3089.589286 | K37: =K$32*'3. Cost_of_Service_Parameters'!K23 -> 10002.62064 | M37: =M$32*'3. Cost_of_Service_Parameters'!M23 -> 300736.0019 | O37: =O$32*'3. Cost_of_Service_Parameters'!O23 -> 626686.1773 | Q37: =Q$32*'3. Cost_of_Service_Parameters'!Q23 -> 645690.9548 | S37: =S$32*'3. Cost_of_Service_Parameters'!S23 -> 631188.8641 | U37: =U$32*'3. Cost_of_Service_Parameters'!U23 -> 573981.9929
C38: Equity | G38: =G$32*'3. Cost_of_Service_Parameters'!G24 -> 0 | I38: =I$32*'3. Cost_of_Service_Parameters'!I24 -> 3089.589286 | K38: =K$32*'3. Cost_of_Service_Parameters'!K24 -> 8764.022214 | M38: =M$32*'3. Cost_of_Service_Parameters'!M24 -> 247094.2862 | O38: =O$32*'3. Cost_of_Service_Parameters'!O24 -> 447632.9838 | Q38: =Q$32*'3. Cost_of_Service_Parameters'!Q24 -> 461207.8249 | S38: =S$32*'3. Cost_of_Service_Parameters'!S24 -> 450849.1886 | U38: =U$32*'3. Cost_of_Service_Parameters'!U24 -> 409987.1378
C39: Preferred Shares | G39: =G$32*'3. Cost_of_Service_Parameters'!G25 -> 0 | I39: =I$32*'3. Cost_of_Service_Parameters'!I25 -> 0 | K39: =K$32*'3. Cost_of_Service_Parameters'!K25 -> 0 | M39: =M$32*'3. Cost_of_Service_Parameters'!M25 -> 0 | O39: =O$32*'3. Cost_of_Service_Parameters'!O25 -> 0 | Q39: =Q$32*'3. Cost_of_Service_Parameters'!Q25 -> 0 | S39: =S$32*'3. Cost_of_Service_Parameters'!S25 -> 0 | U39: =U$32*'3. Cost_of_Service_Parameters'!U25 -> 0
C40: Total Capitalization | G40: =SUM(G36:G39) -> 0 | I40: =SUM(I36:I39) -> 6179.178571 | K40: =SUM(K36:K39) -> 18766.64286 | M40: =SUM(M36:M39) -> 570656.55 | O40: =SUM(O36:O39) -> 1119082.46 | Q40: =SUM(Q36:Q39) -> 1153019.562 | S40: =SUM(S36:S39) -> 1127122.972 | U40: =SUM(U36:U39) -> 1024967.844
G41: =IF(G40=G32,"","Error") ->  | I41: =IF(I40=I32,"","Error") ->  | K41: =IF(K40=K32,"","Error") ->  | M41: =IF(M40=M32,"","Error") ->  | O41: =IF(O40=O32,"","Error") ->  | Q41: =IF(Q40=Q32,"","Error") ->  | S41: =IF(S40=S32,"","Error") ->  | U41: =IF(U40=U32,"","Error") -> 
C42: Return on
C43: Deemed Short Term Debt | G43: =G36*'3. Cost_of_Service_Parameters'!G29 -> 0 | I43: =I36*'3. Cost_of_Service_Parameters'!I29 -> 0 | K43: =K36*'3. Cost_of_Service_Parameters'!K29 -> 0 | M43: =M36*'3. Cost_of_Service_Parameters'!M29 -> 303.5892846 | O43: =O36*'3. Cost_of_Service_Parameters'!O29 -> 595.3518685 | Q43: =Q36*'3. Cost_of_Service_Parameters'!Q29 -> 613.4064071 | S43: =S36*'3. Cost_of_Service_Parameters'!S29 -> 599.6294209 | U43: =U36*'3. Cost_of_Service_Parameters'!U29 -> 545.2828933
C44: Deemed Long Term Debt | G44: =G37*'3. Cost_of_Service_Parameters'!G30 -> 0 | I44: =I37*'3. Cost_of_Service_Parameters'!I30 -> 146.1375732 | K44: =K37*'3. Cost_of_Service_Parameters'!K30 -> 473.1239564 | M44: =M37*'3. Cost_of_Service_Parameters'!M30 -> 15157.09449 | O44: =O37*'3. Cost_of_Service_Parameters'!O30 -> 31584.98334 | Q44: =Q37*'3. Cost_of_Service_Parameters'!Q30 -> 32542.82412 | S44: =S37*'3. Cost_of_Service_Parameters'!S30 -> 31811.91875 | U44: =U37*'3. Cost_of_Service_Parameters'!U30 -> 28928.69244
C45: Equity | G45: =G38*'3. Cost_of_Service_Parameters'!G31 -> 0 | I45: =I38*'3. Cost_of_Service_Parameters'!I31 -> 278.0630357 | K45: =K38*'3. Cost_of_Service_Parameters'!K31 -> 788.7619993 | M45: =M38*'3. Cost_of_Service_Parameters'!M31 -> 19792.25232 | O45: =O38*'3. Cost_of_Service_Parameters'!O31 -> 35855.402 | Q45: =Q38*'3. Cost_of_Service_Parameters'!Q31 -> 36942.74677 | S45: =S38*'3. Cost_of_Service_Parameters'!S31 -> 36113.02001 | U45: =U38*'3. Cost_of_Service_Parameters'!U31 -> 32839.96974
C46: Preferred Shares | G46: =G39*'3. Cost_of_Service_Parameters'!G32 -> 0 | I46: =I39*'3. Cost_of_Service_Parameters'!I32 -> 0 | K46: =K39*'3. Cost_of_Service_Parameters'!K32 -> 0 | M46: =M39*'3. Cost_of_Service_Parameters'!M32 -> 0 | O46: =O39*'3. Cost_of_Service_Parameters'!O32 -> 0 | Q46: =Q39*'3. Cost_of_Service_Parameters'!Q32 -> 0 | S46: =S39*'3. Cost_of_Service_Parameters'!S32 -> 0 | U46: =U39*'3. Cost_of_Service_Parameters'!U32 -> 0
C47: Total Return on Capital | G47: =SUM(G43:G46) -> 0 | I47: =SUM(I43:I46) -> 424.2006089 | K47: =SUM(K43:K46) -> 1261.885956 | M47: =SUM(M43:M46) -> 35252.9361 | O47: =SUM(O43:O46) -> 68035.73721 | Q47: =SUM(Q43:Q46) -> 70098.9773 | S47: =SUM(S43:S46) -> 68524.56818 | U47: =SUM(U43:U46) -> 62313.94507
B50: Operating Expenses | G50: =G28 -> 0 | I50: =I28 -> 0 | K50: =K28 -> 0 | M50: =M28 -> 94917 | O50: =O28 -> 122555 | Q50: =Q28 -> 165422 | S50: =S28 -> 122289 | U50: =U28 -> 0
B52: Amortization Expenses (from Sheet 4)
C53: Smart Meters | G53: =-'4. SM_Assets_and_Rate_Base'!G29 -> 0 | I53: =-'4. SM_Assets_and_Rate_Base'!I29 -> 0 | K53: =-'4. SM_Assets_and_Rate_Base'!K29 -> 0 | M53: =-'4. SM_Assets_and_Rate_Base'!M29 -> 35223.5 | O53: =-'4. SM_Assets_and_Rate_Base'!O29 -> 73981.36667 | Q53: =-'4. SM_Assets_and_Rate_Base'!Q29 -> 81525.11233 | S53: =-'4. SM_Assets_and_Rate_Base'!S29 -> 86567.82467 | U53: =-'4. SM_Assets_and_Rate_Base'!U29 -> 87601.158
C54: Computer Hardware | G54: =-'4. SM_Assets_and_Rate_Base'!G48 -> 0 | I54: =-'4. SM_Assets_and_Rate_Base'!I48 -> 950.6428571 | K54: =-'4. SM_Assets_and_Rate_Base'!K48 -> 3033.428571 | M54: =-'4. SM_Assets_and_Rate_Base'!M48 -> 5902.214286 | O54: =-'4. SM_Assets_and_Rate_Base'!O48 -> 7638.857143 | Q54: =-'4. SM_Assets_and_Rate_Base'!Q48 -> 7638.857143 | S54: =-'4. SM_Assets_and_Rate_Base'!S48 -> 7638.857143 | U54: =-'4. SM_Assets_and_Rate_Base'!U48 -> 7638.857143
C55: Computer Software | G55: =-'4. SM_Assets_and_Rate_Base'!G67 -> 0 | I55: =-'4. SM_Assets_and_Rate_Base'!I67 -> 0 | K55: =-'4. SM_Assets_and_Rate_Base'!K67 -> 0 | M55: =-'4. SM_Assets_and_Rate_Base'!M67 -> 1630.928571 | O55: =-'4. SM_Assets_and_Rate_Base'!O67 -> 3657.071429 | Q55: =-'4. SM_Assets_and_Rate_Base'!Q67 -> 4213.142857 | S55: =-'4. SM_Assets_and_Rate_Base'!S67 -> 4374 | U55: =-'4. SM_Assets_and_Rate_Base'!U67 -> 4374
C56: Tools & Equipment | G56: =-'4. SM_Assets_and_Rate_Base'!G86 -> 0 | I56: =-'4. SM_Assets_and_Rate_Base'!I86 -> 0 | K56: =-'4. SM_Assets_and_Rate_Base'!K86 -> 0 | M56: =-'4. SM_Assets_and_Rate_Base'!M86 -> 0 | O56: =-'4. SM_Assets_and_Rate_Base'!O86 -> 0 | Q56: =-'4. SM_Assets_and_Rate_Base'!Q86 -> 0 | S56: =-'4. SM_Assets_and_Rate_Base'!S86 -> 0 | U56: =-'4. SM_Assets_and_Rate_Base'!U86 -> 0
C57: Other Equipment | G57: =-'4. SM_Assets_and_Rate_Base'!G105 -> 0 | I57: =-'4. SM_Assets_and_Rate_Base'!I105 -> 0 | K57: =-'4. SM_Assets_and_Rate_Base'!K105 -> 0 | M57: =-'4. SM_Assets_and_Rate_Base'!M105 -> 107.2142857 | O57: =-'4. SM_Assets_and_Rate_Base'!O105 -> 214.4285714 | Q57: =-'4. SM_Assets_and_Rate_Base'!Q105 -> 214.4285714 | S57: =-'4. SM_Assets_and_Rate_Base'!S105 -> 214.4285714 | U57: =-'4. SM_Assets_and_Rate_Base'!U105 -> 214.4285714
C58: Total Amortization Expense in Year | G58: =SUM(G53:G57) -> 0 | I58: =SUM(I53:I57) -> 950.6428571 | K58: =SUM(K53:K57) -> 3033.428571 | M58: =SUM(M53:M57) -> 42863.85714 | O58: =SUM(O53:O57) -> 85491.72381 | Q58: =SUM(Q53:Q57) -> 93591.5409 | S58: =SUM(S53:S57) -> 98795.11038 | U58: =SUM(U53:U57) -> 99828.44371
B60: Incremental Revenue Requirement before Taxes/PILs | G60: =G47+G50+G58 -> 0 | I60: =I47+I50+I58 -> 1374.843466 | K60: =K47+K50+K58 -> 4295.314527 | M60: =M47+M50+M58 -> 173033.7932 | O60: =O47+O50+O58 -> 276082.461 | Q60: =Q47+Q50+Q58 -> 329112.5182 | S60: =S47+S50+S58 -> 289608.6786 | U60: =U47+U50+U58 -> 162142.3888
B62: Calculation of Taxable Income
C63: Incremental Operating Expenses | G63: =G50 -> 0 | I63: =I50 -> 0 | K63: =K50 -> 0 | M63: =M50 -> 94917 | O63: =O50 -> 122555 | Q63: =Q50 -> 165422 | S63: =S50 -> 122289 | U63: =U50 -> 0
C64: Amortization Expense | G64: =G58 -> 0 | I64: =I58 -> 950.6428571 | K64: =K58 -> 3033.428571 | M64: =M58 -> 42863.85714 | O64: =O58 -> 85491.72381 | Q64: =Q58 -> 93591.5409 | S64: =S58 -> 98795.11038 | U64: =U58 -> 99828.44371
C65: Interest Expense | G65: =G43+G44 -> 0 | I65: =I43+I44 -> 146.1375732 | K65: =K43+K44 -> 473.1239564 | M65: =M43+M44 -> 15460.68378 | O65: =O43+O44 -> 32180.33521 | Q65: =Q43+Q44 -> 33156.23053 | S65: =S43+S44 -> 32411.54817 | U65: =U43+U44 -> 29473.97534
C66: Net Income for Taxes/PILs | G66: =G60-SUM(G63:G65) -> 0 | I66: =I60-SUM(I63:I65) -> 278.0630357 | K66: =K60-SUM(K63:K65) -> 788.7619993 | M66: =M60-SUM(M63:M65) -> 19792.25232 | O66: =O60-SUM(O63:O65) -> 35855.402 | Q66: =Q60-SUM(Q63:Q65) -> 36942.74677 | S66: =S60-SUM(S63:S65) -> 36113.02001 | U66: =U60-SUM(U63:U65) -> 32839.96974
B68: Grossed-up Taxes/PILs (from Sheet 7) | G68: ='7_Taxes_PILs'!C59 -> 0 | I68: ='7_Taxes_PILs'!E59 -> -528.4757163 | K68: ='7_Taxes_PILs'!G59 -> -1098.064584 | M68: ='7_Taxes_PILs'!I59 -> 2163.548277 | O68: ='7_Taxes_PILs'!K59 -> 3014.534802 | Q68: ='7_Taxes_PILs'!M59 -> 5439.194044 | S68: ='7_Taxes_PILs'!O59 -> 7628.033235 | U68: ='7_Taxes_PILs'!Q59 -> 8922.652733
B70: Revenue Requirement, including Grossed-up Taxes/PILs | G70: =G60+G68 -> 0 | I70: =I60+I68 -> 846.3677498 | K70: =K60+K68 -> 3197.249943 | M70: =M60+M68 -> 175197.3415 | O70: =O60+O68 -> 279096.9958 | Q70: =Q60+Q68 -> 334551.7122 | S70: =S60+S68 -> 297236.7118 | U70: =U60+U68 -> 171065.0415

Sheet 6. UCC_Calculation
A18: For PILs Calculation
A20: UCC - Smart Meters | B20: ='2. Smart_Meter_Costs'!G18 -> 2006 | D20: ='2. Smart_Meter_Costs'!I18 -> 2007 | F20: ='2. Smart_Meter_Costs'!K18 -> 2008 | H20: ='2. Smart_Meter_Costs'!M18 -> 2009 | J20: ='2. Smart_Meter_Costs'!O18 -> 2010 | L20: ='2. Smart_Meter_Costs'!Q18 -> 2011 | N20: ='2. Smart_Meter_Costs'!S18 -> 2012 | P20: ='2. Smart_Meter_Costs'!U18 -> 2013
B21: ='2. Smart_Meter_Costs'!G19 -> Audited Actual | D21: ='2. Smart_Meter_Costs'!I19 -> Audited Actual | F21: ='2. Smart_Meter_Costs'!K19 -> Audited Actual | H21: ='2. Smart_Meter_Costs'!M19 -> Audited Actual | J21: ='2. Smart_Meter_Costs'!O19 -> Audited Actual | L21: ='2. Smart_Meter_Costs'!Q19 -> Audited Actual | N21: ='2. Smart_Meter_Costs'!S19 -> Forecast | P21: ='2. Smart_Meter_Costs'!U19 -> Forecast
A23: Opening UCC | B23: 0 | D23: =B26-B31 -> 0 | F23: =D26-D31 -> 0 | H23: =F26-F31 -> 0 | J23: =H26-H31 -> 1014436.8 | L23: =J26-J31 -> 1035071.616 | N23: =L26-L31 -> 1067736.002 | P23: =N26-N31 -> 1012077.122
A24: Capital Additions | B24: ='4. SM_Assets_and_Rate_Base'!G23 -> 0 | D24: ='4. SM_Assets_and_Rate_Base'!I23 -> 0 | F24: ='4. SM_Assets_and_Rate_Base'!K23 -> 0 | H24: ='4. SM_Assets_and_Rate_Base'!M23 -> 1056705 | J24: ='4. SM_Assets_and_Rate_Base'!O23 -> 106031 | L24: ='4. SM_Assets_and_Rate_Base'!Q23 -> 120281.37 | N24: ='4. SM_Assets_and_Rate_Base'!S23 -> 31000 | P24: ='4. SM_Assets_and_Rate_Base'!U23 -> 0
A25: Retirements/Removals (if applicable)
A26: UCC Before Half Year Rule | B26: =SUM(B23:B24)-B25 -> 0 | D26: =SUM(D23:D24)-D25 -> 0 | F26: =SUM(F23:F24)-F25 -> 0 | H26: =SUM(H23:H24)-H25 -> 1056705 | J26: =SUM(J23:J24)-J25 -> 1120467.8 | L26: =SUM(L23:L24)-L25 -> 1155352.986 | N26: =SUM(N23:N24)-N25 -> 1098736.002 | P26: =SUM(P23:P24)-P25 -> 1012077.122
A27: Half Year Rule (1/2 Additions - Disposals) | B27: =IF(((B24-B25)/2)<0, 0, (B24-B25)/2) -> 0 | D27: =IF(((D24-D25)/2)<0, 0, (D24-D25)/2) -> 0 | F27: =IF(((F24-F25)/2)<0, 0, (F24-F25)/2) -> 0 | H27: =IF(((H24-H25)/2)<0, 0, (H24-H25)/2) -> 528352.5 | J27: =IF(((J24-J25)/2)<0, 0, (J24-J25)/2) -> 53015.5 | L27: =IF(((L24-L25)/2)<0, 0, (L24-L25)/2) -> 60140.685 | N27: =IF(((N24-N25)/2)<0, 0, (N24-N25)/2) -> 15500 | P27: =IF(((P24-P25)/2)<0, 0, (P24-P25)/2) -> 0
A28: Reduced UCC | B28: =B27+B23 -> 0 | D28: =D27+D23 -> 0 | F28: =F27+F23 -> 0 | H28: =H27+H23 -> 528352.5 | J28: =J27+J23 -> 1067452.3 | L28: =L27+L23 -> 1095212.301 | N28: =N27+N23 -> 1083236.002 | P28: =P27+P23 -> 1012077.122
A29: CCA Rate Class | B29: ='3. Cost_of_Service_Parameters'!G57 -> 47 | D29: ='3. Cost_of_Service_Parameters'!I57 -> 47 | F29: ='3. Cost_of_Service_Parameters'!K57 -> 47 | H29: ='3. Cost_of_Service_Parameters'!M57 -> 47 | J29: ='3. Cost_of_Service_Parameters'!O57 -> 47 | L29: ='3. Cost_of_Service_Parameters'!Q57 -> 47 | N29: ='3. Cost_of_Service_Parameters'!S57 -> 47 | P29: ='3. Cost_of_Service_Parameters'!U57 -> 47
A30: CCA Rate | B30: ='3. Cost_of_Service_Parameters'!G58 -> 0.08 | D30: ='3. Cost_of_Service_Parameters'!I58 -> 0.08 | F30: ='3. Cost_of_Service_Parameters'!K58 -> 0.08 | H30: ='3. Cost_of_Service_Parameters'!M58 -> 0.08 | J30: ='3. Cost_of_Service_Parameters'!O58 -> 0.08 | L30: ='3. Cost_of_Service_Parameters'!Q58 -> 0.08 | N30: ='3. Cost_of_Service_Parameters'!S58 -> 0.08 | P30: ='3. Cost_of_Service_Parameters'!U58 -> 0.08
A31: CCA | B31: =B28*B30 -> 0 | D31: =D28*D30 -> 0 | F31: =F28*F30 -> 0 | H31: =H28*H30 -> 42268.2 | J31: =J28*J30 -> 85396.184 | L31: =L28*L30 -> 87616.98408 | N31: =N28*N30 -> 86658.88015 | P31: =P28*P30 -> 80966.16974
A32: Closing UCC | B32: =IF((B26-B31)<0, 0, B26-B31) -> 0 | D32: =IF((D26-D31)<0, 0, D26-D31) -> 0 | F32: =IF((F26-F31)<0, 0, F26-F31) -> 0 | H32: =IF((H26-H31)<0, 0, H26-H31) -> 1014436.8 | J32: =IF((J26-J31)<0, 0, J26-J31) -> 1035071.616 | L32: =IF((L26-L31)<0, 0, L26-L31) -> 1067736.002 | N32: =IF((N26-N31)<0, 0, N26-N31) -> 1012077.122 | P32: =IF((P26-P31)<0, 0, P26-P31) -> 931110.952
A34: UCC - Computer Equipment | B34: =B20 -> 2006 | D34: 2007 | F34: 2008 | H34: 2009 | J34: 2010 | L34: 2011 | N34: =N20 -> 2012 | P34: =P20 -> 2013
B35: Audited Actual | D35: Audited Actual | F35: Audited Actual | H35: Audited Actual | J35: Audited Actual | L35: Audited Actual | N35: =N21 -> Forecast | P35: =P21 -> Forecast
A37: Opening UCC | B37: 0 | D37: =B41-B46 -> 0 | F37: =D41-D46 -> 9649.025 | H37: =F41-F46 -> 15833.31125 | J37: =H41-H46 -> 41305.84006 | L37: =J41-J46 -> 22599.05303 | N37: =L41-L46 -> 11802.27386 | P37: =N41-N46 -> 5311.023238
A38: Capital Additions Computer Hardware | B38: ='2. Smart_Meter_Costs'!G183 -> 0 | D38: ='2. Smart_Meter_Costs'!I183 -> 13309 | F38: ='2. Smart_Meter_Costs'!K183 -> 15850 | H38: ='2. Smart_Meter_Costs'!M183 -> 24313 | J38: ='2. Smart_Meter_Costs'!O183 -> 0 | L38: ='2. Smart_Meter_Costs'!Q183 -> 0 | N38: ='2. Smart_Meter_Costs'!S183 -> 0 | P38: ='2. Smart_Meter_Costs'!U183 -> 0
A39: Capital Additions Computer Software | B39: ='2. Smart_Meter_Costs'!G185 -> 0 | D39: ='2. Smart_Meter_Costs'!I185 -> 0 | F39: ='2. Smart_Meter_Costs'!K185 -> 0 | H39: ='2. Smart_Meter_Costs'!M185 -> 22833 | J39: ='2. Smart_Meter_Costs'!O185 -> 5533 | L39: ='2. Smart_Meter_Costs'!Q185 -> 2252 | N39: ='2. Smart_Meter_Costs'!S185 -> 0 | P39: ='2. Smart_Meter_Costs'!U185 -> 0
A40: Retirements/Removals (if applicable)
A41: UCC Before Half Year Rule | B41: =SUM(B37:B39)-B40 -> 0 | D41: =SUM(D37:D39)-D40 -> 13309 | F41: =SUM(F37:F39)-F40 -> 25499.025 | H41: =SUM(H37:H39)-H40 -> 62979.31125 | J41: =SUM(J37:J39)-J40 -> 46838.84006 | L41: =SUM(L37:L39)-L40 -> 24851.05303 | N41: =SUM(N37:N39)-N40 -> 11802.27386 | P41: =SUM(P37:P39)-P40 -> 5311.023238
A42: Half Year Rule (1/2 Additions - Disposals) | B42: =IF((SUM(B38:B39)/2)<0, 0, SUM(B38:B39)/2) -> 0 | D42: =IF((SUM(D38:D39)/2)<0, 0, SUM(D38:D39)/2) -> 6654.5 | F42: =IF((SUM(F38:F39)/2)<0, 0, SUM(F38:F39)/2) -> 7925 | H42: =IF((SUM(H38:H39)/2)<0, 0, SUM(H38:H39)/2) -> 23573 | J42: =IF((SUM(J38:J39)/2)<0, 0, SUM(J38:J39)/2) -> 2766.5 | L42: =IF((SUM(L38:L39)/2)<0, 0, SUM(L38:L39)/2) -> 1126 | N42: =IF((SUM(N38:N39)/2)<0, 0, SUM(N38:N39)/2) -> 0 | P42: =IF((SUM(P38:P39)/2)<0, 0, SUM(P38:P39)/2) -> 0
A43: Reduced UCC | B43: =B42+B37 -> 0 | D43: =D42+D37 -> 6654.5 | F43: =F42+F37 -> 17574.025 | H43: =H42+H37 -> 39406.31125 | J43: =J42+J37 -> 44072.34006 | L43: =L42+L37 -> 23725.05303 | N43: =N42+N37 -> 11802.27386 | P43: =P42+P37 -> 5311.023238
A44: CCA Rate Class | B44: ='3. Cost_of_Service_Parameters'!G60 -> 45 | D44: ='3. Cost_of_Service_Parameters'!I60 -> 50 | F44: ='3. Cost_of_Service_Parameters'!K60 -> 50 | H44: ='3. Cost_of_Service_Parameters'!M60 -> 50 | J44: ='3. Cost_of_Service_Parameters'!O60 -> 50 | L44: ='3. Cost_of_Service_Parameters'!Q60 -> 50 | N44: ='3. Cost_of_Service_Parameters'!S60 -> 50 | P44: ='3. Cost_of_Service_Parameters'!U60 -> 50
A45: CCA Rate | B45: ='3. Cost_of_Service_Parameters'!G61 -> 0.45 | D45: ='3. Cost_of_Service_Parameters'!I61 -> 0.55 | F45: ='3. Cost_of_Service_Parameters'!K61 -> 0.55 | H45: ='3. Cost_of_Service_Parameters'!M61 -> 0.55 | J45: ='3. Cost_of_Service_Parameters'!O61 -> 0.55 | L45: ='3. Cost_of_Service_Parameters'!Q61 -> 0.55 | N45: ='3. Cost_of_Service_Parameters'!S61 -> 0.55 | P45: ='3. Cost_of_Service_Parameters'!U61 -> 0.55
A46: CCA | B46: =B45*B43 -> 0 | D46: =D45*D43 -> 3659.975 | F46: =F45*F43 -> 9665.71375 | H46: =H45*H43 -> 21673.47119 | J46: =J45*J43 -> 24239.78703 | L46: =L45*L43 -> 13048.77917 | N46: =N45*N43 -> 6491.250624 | P46: =P45*P43 -> 2921.062781
A47: Closing UCC | B47: =IF((B41-B46)<0, 0, B41-B46) -> 0 | D47: =IF((D41-D46)<0, 0, D41-D46) -> 9649.025 | F47: =IF((F41-F46)<0, 0, F41-F46) -> 15833.31125 | H47: =IF((H41-H46)<0, 0, H41-H46) -> 41305.84006 | J47: =IF((J41-J46)<0, 0, J41-J46) -> 22599.05303 | L47: =IF((L41-L46)<0, 0, L41-L46) -> 11802.27386 | N47: =IF((N41-N46)<0, 0, N41-N46) -> 5311.023238 | P47: =IF((P41-P46)<0, 0, P41-P46) -> 2389.960457
A49: UCC - General Equipment | B49: =B34 -> 2006 | D49: 2007 | F49: 2008 | H49: 2009 | J49: 2010 | L49: 2011 | N49: =N34 -> 2012 | P49: =P34 -> 2013
B50: Audited Actual | D50: Audited Actual | F50: Audited Actual | H50: Audited Actual | J50: Audited Actual | L50: Audited Actual | N50: =N35 -> Forecast | P50: =P35 -> Forecast
A52: Opening UCC | B52: 0 | D52: =B56-B61 -> 0 | F52: =D56-D61 -> 0 | H52: =F56-F61 -> 0 | J52: =H56-H61 -> 1350.9 | L52: =J56-J61 -> 1080.72 | N52: =L56-L61 -> 864.576 | P52: =N56-N61 -> 691.6608
A53: Capital Additions Tools & Equipment | B53: ='2. Smart_Meter_Costs'!G187 -> 0 | D53: ='2. Smart_Meter_Costs'!I187 -> 0 | F53: ='2. Smart_Meter_Costs'!K187 -> 0 | H53: ='2. Smart_Meter_Costs'!M187 -> 0 | J53: ='2. Smart_Meter_Costs'!O187 -> 0 | L53: ='2. Smart_Meter_Costs'!Q187 -> 0 | N53: ='2. Smart_Meter_Costs'!S187 -> 0 | P53: ='2. Smart_Meter_Costs'!U187 -> 0
A54: Capital Additions Other Equipment | B54: ='2. Smart_Meter_Costs'!G189 -> 0 | D54: ='2. Smart_Meter_Costs'!I189 -> 0 | F54: ='2. Smart_Meter_Costs'!K189 -> 0 | H54: ='2. Smart_Meter_Costs'!M189 -> 1501 | J54: ='2. Smart_Meter_Costs'!O189 -> 0 | L54: ='2. Smart_Meter_Costs'!Q189 -> 0 | N54: ='2. Smart_Meter_Costs'!S189 -> 0 | P54: ='2. Smart_Meter_Costs'!U189 -> 0
A55: Retirements/Removals (if applicable)
A56: UCC Before Half Year Rule | B56: =SUM(B52:B54)-B55 -> 0 | D56: =SUM(D52:D54)-D55 -> 0 | F56: =SUM(F52:F54)-F55 -> 0 | H56: =SUM(H52:H54)-H55 -> 1501 | J56: =SUM(J52:J54)-J55 -> 1350.9 | L56: =SUM(L52:L54)-L55 -> 1080.72 | N56: =SUM(N52:N54)-N55 -> 864.576 | P56: =SUM(P52:P54)-P55 -> 691.6608
A57: Half Year Rule (1/2 Additions - Disposals) | B57: =IF(((SUM(B53:B54)-B55)/2)<0, 0, (SUM(B53:B54)-B55)/2) -> 0 | D57: =IF(((SUM(D53:D54)-D55)/2)<0, 0, (SUM(D53:D54)-D55)/2) -> 0 | F57: =IF(((SUM(F53:F54)-F55)/2)<0, 0, (SUM(F53:F54)-F55)/2) -> 0 | H57: =IF(((SUM(H53:H54)-H55)/2)<0, 0, (SUM(H53:H54)-H55)/2) -> 750.5 | J57: =IF(((SUM(J53:J54)-J55)/2)<0, 0, (SUM(J53:J54)-J55)/2) -> 0 | L57: =IF(((SUM(L53:L54)-L55)/2)<0, 0, (SUM(L53:L54)-L55)/2) -> 0 | N57: =IF(((SUM(N53:N54)-N55)/2)<0, 0, (SUM(N53:N54)-N55)/2) -> 0 | P57: =IF(((SUM(P53:P54)-P55)/2)<0, 0, (SUM(P53:P54)-P55)/2) -> 0
A58: Reduced UCC | B58: =B57+B52 -> 0 | D58: =D57+D52 -> 0 | F58: =F57+F52 -> 0 | H58: =H57+H52 -> 750.5 | J58: =J57+J52 -> 1350.9 | L58: =L57+L52 -> 1080.72 | N58: =N57+N52 -> 864.576 | P58: =P57+P52 -> 691.6608
A59: CCA Rate Class | B59: ='3. Cost_of_Service_Parameters'!G63 -> 8 | D59: ='3. Cost_of_Service_Parameters'!I63 -> 8 | F59: ='3. Cost_of_Service_Parameters'!K63 -> 8 | H59: ='3. Cost_of_Service_Parameters'!M63 -> 8 | J59: ='3. Cost_of_Service_Parameters'!O63 -> 8 | L59: ='3. Cost_of_Service_Parameters'!Q63 -> 8 | N59: ='3. Cost_of_Service_Parameters'!S63 -> 8 | P59: ='3. Cost_of_Service_Parameters'!U63 -> 8
A60: CCA Rate | B60: ='3. Cost_of_Service_Parameters'!G64 -> 0.2 | D60: ='3. Cost_of_Service_Parameters'!I64 -> 0.2 | F60: ='3. Cost_of_Service_Parameters'!K64 -> 0.2 | H60: ='3. Cost_of_Service_Parameters'!M64 -> 0.2 | J60: ='3. Cost_of_Service_Parameters'!O64 -> 0.2 | L60: ='3. Cost_of_Service_Parameters'!Q64 -> 0.2 | N60: ='3. Cost_of_Service_Parameters'!S64 -> 0.2 | P60: ='3. Cost_of_Service_Parameters'!U64 -> 0.2
A61: CCA | B61: =B60*B58 -> 0 | D61: =D60*D58 -> 0 | F61: =F60*F58 -> 0 | H61: =H60*H58 -> 150.1 | J61: =J60*J58 -> 270.18 | L61: =L60*L58 -> 216.144 | N61: =N60*N58 -> 172.9152 | P61: =P60*P58 -> 138.33216
A62: Closing UCC | B62: =IF((B56-B61)<0, 0, B56-B61) -> 0 | D62: =IF((D56-D61)<0, 0, D56-D61) -> 0 | F62: =IF((F56-F61)<0, 0, F56-F61) -> 0 | H62: =IF((H56-H61)<0, 0, H56-H61) -> 1350.9 | J62: =IF((J56-J61)<0, 0, J56-J61) -> 1080.72 | L62: =IF((L56-L61)<0, 0, L56-L61) -> 864.576 | N62: =IF((N56-N61)<0, 0, N56-N61) -> 691.6608 | P62: =IF((P56-P61)<0, 0, P56-P61) -> 553.32864
A64: UCC - Applications Software | B64: =B49 -> 2006 | D64: =D49 -> 2007 | F64: =F49 -> 2008 | H64: =H49 -> 2009 | J64: =J49 -> 2010 | L64: =L49 -> 2011 | N64: =N49 -> 2012 | P64: =P49 -> 2013
B65: =B50 -> Audited Actual | D65: =D50 -> Audited Actual | F65: =F50 -> Audited Actual | H65: =H50 -> Audited Actual | J65: =J50 -> Audited Actual | L65: =L50 -> Audited Actual | N65: =N50 -> Forecast | P65: =P50 -> Forecast
A67: Opening UCC | B67: 0 | D67: =B70-B75 -> 0 | F67: =D70-D75 -> 0 | H67: =F70-F75 -> 0 | J67: =H70-H75 -> 0 | L67: =J70-J75 -> 0 | N67: =L70-L75 -> 0 | P67: =N70-N75 -> 0
A68: Capital Additions Applications Software | B68: ='2. Smart_Meter_Costs'!G191 -> 0 | D68: ='2. Smart_Meter_Costs'!I191 -> 0 | F68: ='2. Smart_Meter_Costs'!K191 -> 0 | H68: ='2. Smart_Meter_Costs'!M191 -> 0 | J68: ='2. Smart_Meter_Costs'!O191 -> 0 | L68: ='2. Smart_Meter_Costs'!Q191 -> 0 | N68: ='2. Smart_Meter_Costs'!S191 -> 0 | P68: ='2. Smart_Meter_Costs'!U191 -> 0
A69: Retirements/Removals (if applicable)
A70: UCC Before Half Year Rule | B70: =SUM(B67:B68)-B69 -> 0 | D70: =SUM(D67:D68)-D69 -> 0 | F70: =SUM(F67:F68)-F69 -> 0 | H70: =SUM(H67:H68)-H69 -> 0 | J70: =SUM(J67:J68)-J69 -> 0 | L70: =SUM(L67:L68)-L69 -> 0 | N70: =SUM(N67:N68)-N69 -> 0 | P70: =SUM(P67:P68)-P69 -> 0
A71: Half Year Rule (1/2 Additions - Disposals) | B71: =IF(((SUM(B68:B68)-B69)/2)<0, 0, (SUM(B68:B68)-B69)/2) -> 0 | D71: =IF(((SUM(D68:D68)-D69)/2)<0, 0, (SUM(D68:D68)-D69)/2) -> 0 | F71: =IF(((SUM(F68:F68)-F69)/2)<0, 0, (SUM(F68:F68)-F69)/2) -> 0 | H71: =IF(((SUM(H68:H68)-H69)/2)<0, 0, (SUM(H68:H68)-H69)/2) -> 0 | J71: =IF(((SUM(J68:J68)-J69)/2)<0, 0, (SUM(J68:J68)-J69)/2) -> 0 | L71: =IF(((SUM(L68:L68)-L69)/2)<0, 0, (SUM(L68:L68)-L69)/2) -> 0 | N71: =IF(((SUM(N68:N68)-N69)/2)<0, 0, (SUM(N68:N68)-N69)/2) -> 0 | P71: =IF(((SUM(P68:P68)-P69)/2)<0, 0, (SUM(P68:P68)-P69)/2) -> 0
A72: Reduced UCC | B72: =B71+B67 -> 0 | D72: =D71+D67 -> 0 | F72: =F71+F67 -> 0 | H72: =H71+H67 -> 0 | J72: =J71+J67 -> 0 | L72: =L71+L67 -> 0 | N72: =N71+N67 -> 0 | P72: =P71+P67 -> 0
A73: CCA Rate Class | B73: ='3. Cost_of_Service_Parameters'!G66 -> 12 | D73: ='3. Cost_of_Service_Parameters'!I66 -> 12 | F73: ='3. Cost_of_Service_Parameters'!K66 -> 12 | H73: ='3. Cost_of_Service_Parameters'!M66 -> 12 | J73: ='3. Cost_of_Service_Parameters'!O66 -> 12 | L73: ='3. Cost_of_Service_Parameters'!Q66 -> 12 | N73: ='3. Cost_of_Service_Parameters'!S66 -> 12 | P73: ='3. Cost_of_Service_Parameters'!U66 -> 12
A74: CCA Rate | B74: ='3. Cost_of_Service_Parameters'!G67 -> 1 | D74: ='3. Cost_of_Service_Parameters'!I67 -> 1 | F74: ='3. Cost_of_Service_Parameters'!K67 -> 1 | H74: ='3. Cost_of_Service_Parameters'!M67 -> 1 | J74: ='3. Cost_of_Service_Parameters'!O67 -> 1 | L74: ='3. Cost_of_Service_Parameters'!Q67 -> 1 | N74: ='3. Cost_of_Service_Parameters'!S67 -> 1 | P74: ='3. Cost_of_Service_Parameters'!U67 -> 1
A75: CCA | B75: =B74*B72 -> 0 | D75: =D74*D72 -> 0 | F75: =F74*F72 -> 0 | H75: =H74*H72 -> 0 | J75: =J74*J72 -> 0 | L75: =L74*L72 -> 0 | N75: =N74*N72 -> 0 | P75: =P74*P72 -> 0
A76: Closing UCC | B76: =IF((B70-B75)<0, 0, B70-B75) -> 0 | D76: =IF((D70-D75)<0, 0, D70-D75) -> 0 | F76: =IF((F70-F75)<0, 0, F70-F75) -> 0 | H76: =IF((H70-H75)<0, 0, H70-H75) -> 0 | J76: =IF((J70-J75)<0, 0, J70-J75) -> 0 | L76: =IF((L70-L75)<0, 0, L70-L75) -> 0 | N76: =IF((N70-N75)<0, 0, N70-N75) -> 0 | P76: =IF((P70-P75)<0, 0, P70-P75) -> 0

Sheet 7_Taxes_PILs
A18: PILs Calculation
C20: ='2. Smart_Meter_Costs'!G18& " " &'2. Smart_Meter_Costs'!G19 -> 2006 Audited Actual | E20: ='2. Smart_Meter_Costs'!I18& " " &'2. Smart_Meter_Costs'!I19 -> 2007 Audited Actual | G20: ='2. Smart_Meter_Costs'!K18& " " &'2. Smart_Meter_Costs'!K19 -> 2008 Audited Actual | I20: ='2. Smart_Meter_Costs'!M18& " " &'2. Smart_Meter_Costs'!M19 -> 2009 Audited Actual | K20: ='2. Smart_Meter_Costs'!O18& " " &'2. Smart_Meter_Costs'!O19 -> 2010 Audited Actual | M20: ='2. Smart_Meter_Costs'!Q18& " " &'2. Smart_Meter_Costs'!Q19 -> 2011 Audited Actual | O20: ='2. Smart_Meter_Costs'!S18& " " &'2. Smart_Meter_Costs'!S19 -> 2012 Forecast | Q20: ='2. Smart_Meter_Costs'!U18& " " &'2. Smart_Meter_Costs'!U19 -> 2013 Forecast
A22: INCOME TAX
B23: Net Income | C23: ='5. SM_Rev_Reqt'!G$66 -> 0 | E23: ='5. SM_Rev_Reqt'!I$66 -> 278.0630357 | G23: ='5. SM_Rev_Reqt'!K$66 -> 788.7619993 | I23: ='5. SM_Rev_Reqt'!M$66 -> 19792.25232 | K23: ='5. SM_Rev_Reqt'!O$66 -> 35855.402 | M23: ='5. SM_Rev_Reqt'!Q$66 -> 36942.74677 | O23: ='5. SM_Rev_Reqt'!S$66 -> 36113.02001 | Q23: ='5. SM_Rev_Reqt'!U$66 -> 32839.96974
B24: Amortization | C24: ='5. SM_Rev_Reqt'!G$64 -> 0 | E24: ='5. SM_Rev_Reqt'!I$64 -> 950.6428571 | G24: ='5. SM_Rev_Reqt'!K$64 -> 3033.428571 | I24: ='5. SM_Rev_Reqt'!M$64 -> 42863.85714 | K24: ='5. SM_Rev_Reqt'!O$64 -> 85491.72381 | M24: ='5. SM_Rev_Reqt'!Q$64 -> 93591.5409 | O24: ='5. SM_Rev_Reqt'!S$64 -> 98795.11038 | Q24: ='5. SM_Rev_Reqt'!U$64 -> 99828.44371
B25: CCA - Smart Meters | C25: =-'6. UCC_Calculation'!B31 -> 0 | E25: =-'6. UCC_Calculation'!D31 -> 0 | G25: =-'6. UCC_Calculation'!F31 -> 0 | I25: =-'6. UCC_Calculation'!H31 -> -42268.2 | K25: =-'6. UCC_Calculation'!J31 -> -85396.184 | M25: =-'6. UCC_Calculation'!L31 -> -87616.98408 | O25: =-'6. UCC_Calculation'!N31 -> -86658.88015 | Q25: =-'6. UCC_Calculation'!P31 -> -80966.16974
B26: CCA - Computers | C26: =-'6. UCC_Calculation'!B46 -> 0 | E26: =-'6. UCC_Calculation'!D46 -> -3659.975 | G26: =-'6. UCC_Calculation'!F46 -> -9665.71375 | I26: =-'6. UCC_Calculation'!H46 -> -21673.47119 | K26: =-'6. UCC_Calculation'!J46 -> -24239.78703 | M26: =-'6. UCC_Calculation'!L46 -> -13048.77917 | O26: =-'6. UCC_Calculation'!N46 -> -6491.250624 | Q26: =-'6. UCC_Calculation'!P46 -> -2921.062781
B27: CCA - Applications Software | C27: =-'6. UCC_Calculation'!B75 -> 0 | E27: =-'6. UCC_Calculation'!D75 -> 0 | G27: =-'6. UCC_Calculation'!F75 -> 0 | I27: =-'6. UCC_Calculation'!H75 -> 0 | K27: =-'6. UCC_Calculation'!J75 -> 0 | M27: =-'6. UCC_Calculation'!L75 -> 0 | O27: =-'6. UCC_Calculation'!N75 -> 0 | Q27: =-'6. UCC_Calculation'!P75 -> 0
B28: CCA - Other Equipment | C28: =-'6. UCC_Calculation'!B61 -> 0 | E28: =-'6. UCC_Calculation'!D61 -> 0 | G28: =-'6. UCC_Calculation'!F61 -> 0 | I28: =-'6. UCC_Calculation'!H61 -> -150.1 | K28: =-'6. UCC_Calculation'!J61 -> -270.18 | M28: =-'6. UCC_Calculation'!L61 -> -216.144 | O28: =-'6. UCC_Calculation'!N61 -> -172.9152 | Q28: =-'6. UCC_Calculation'!P61 -> -138.33216
B29: Change in taxable income | C29: =SUM(C23:C28) -> 0 | E29: -2431.269107 | G29: -5843.523179 | I29: -1435.661724 | K29: 11440.97478 | M29: 29652.38043 | O29: 41585.08441 | Q29: 48642.84877
B31: Tax Rate (from Sheet 3) | C31: ='3. Cost_of_Service_Parameters'!G40 -> 0.1862 | E31: ='3. Cost_of_Service_Parameters'!I40 -> 0.1862 | G31: ='3. Cost_of_Service_Parameters'!K40 -> 0.165 | I31: ='3. Cost_of_Service_Parameters'!M40 -> 0.165 | K31: ='3. Cost_of_Service_Parameters'!O40 -> 0.16 | M31: ='3. Cost_of_Service_Parameters'!Q40 -> 0.155 | O31: ='3. Cost_of_Service_Parameters'!S40 -> 0.155 | Q31: ='3. Cost_of_Service_Parameters'!U40 -> 0.155
B33: Income Taxes Payable | C33: =C29*C31 -> 0 | E33: -452.7023078 | G33: -964.1813246 | I33: -236.8841845 | K33: 1830.555965 | M33: 4596.118967 | O33: 6445.688084 | Q33: =Q29*Q31 -> 7539.641559
A35: ONTARIO CAPITAL TAX
B36: Smart Meters | C36: ='4. SM_Assets_and_Rate_Base'!G35 -> 0 | E36: ='4. SM_Assets_and_Rate_Base'!I35 -> 0 | G36: ='4. SM_Assets_and_Rate_Base'!K35 -> 0 | I36: ='4. SM_Assets_and_Rate_Base'!M35 -> 1021481.5 | K36: ='4. SM_Assets_and_Rate_Base'!O35 -> 1053531.133 | M36: ='4. SM_Assets_and_Rate_Base'!Q35 -> 1092287.391 | O36: ='4. SM_Assets_and_Rate_Base'!S35 -> 1036719.566 | Q36: ='4. SM_Assets_and_Rate_Base'!U35 -> 949118.4083
B37: Computer Hardware | C37: ='4. SM_Assets_and_Rate_Base'!G54 -> 0 | E37: ='4. SM_Assets_and_Rate_Base'!I54 -> 12358.35714 | G37: ='4. SM_Assets_and_Rate_Base'!K54 -> 25174.92857 | I37: ='4. SM_Assets_and_Rate_Base'!M54 -> 43585.71429 | K37: ='4. SM_Assets_and_Rate_Base'!O54 -> 35946.85714 | M37: ='4. SM_Assets_and_Rate_Base'!Q54 -> 28308 | O37: ='4. SM_Assets_and_Rate_Base'!S54 -> 20669.14286 | Q37: ='4. SM_Assets_and_Rate_Base'!U54 -> 13030.28571
B38: Computer Software (Including Application Software) | C38: ='4. SM_Assets_and_Rate_Base'!G73 -> 0 | E38: ='4. SM_Assets_and_Rate_Base'!I73 -> 0 | G38: ='4. SM_Assets_and_Rate_Base'!K73 -> 0 | I38: ='4. SM_Assets_and_Rate_Base'!M73 -> 21202.07143 | K38: ='4. SM_Assets_and_Rate_Base'!O73 -> 23078 | M38: ='4. SM_Assets_and_Rate_Base'!Q73 -> 21116.85714 | O38: ='4. SM_Assets_and_Rate_Base'!S73 -> 16742.85714 | Q38: ='4. SM_Assets_and_Rate_Base'!U73 -> 12368.85714
B39: Tools & Equipment | C39: ='4. SM_Assets_and_Rate_Base'!G92 -> 0 | E39: ='4. SM_Assets_and_Rate_Base'!I92 -> 0 | G39: ='4. SM_Assets_and_Rate_Base'!K92 -> 0 | I39: ='4. SM_Assets_and_Rate_Base'!M92 -> 0 | K39: ='4. SM_Assets_and_Rate_Base'!O92 -> 0 | M39: ='4. SM_Assets_and_Rate_Base'!Q92 -> 0 | O39: ='4. SM_Assets_and_Rate_Base'!S92 -> 0 | Q39: ='4. SM_Assets_and_Rate_Base'!U92 -> 0
B40: Other Equipment | C40: ='4. SM_Assets_and_Rate_Base'!G111 -> 0 | E40: ='4. SM_Assets_and_Rate_Base'!I111 -> 0 | G40: ='4. SM_Assets_and_Rate_Base'!K111 -> 0 | I40: ='4. SM_Assets_and_Rate_Base'!M111 -> 1393.785714 | K40: ='4. SM_Assets_and_Rate_Base'!O111 -> 1179.357143 | M40: ='4. SM_Assets_and_Rate_Base'!Q111 -> 964.9285714 | O40: ='4. SM_Assets_and_Rate_Base'!S111 -> 750.5 | Q40: ='4. SM_Assets_and_Rate_Base'!U111 -> 536.0714286
B41: Rate Base | C41: =SUM(C36:C40) -> 0 | E41: =SUM(E36:E40) -> 12358.35714 | G41: =SUM(G36:G40) -> 25174.92857 | I41: =SUM(I36:I40) -> 1087663.071 | K41: =SUM(K36:K40) -> 1113735.348 | M41: =SUM(M36:M40) -> 1142677.177 | O41: =SUM(O36:O40) -> 1074882.066 | Q41: =SUM(Q36:Q40) -> 975053.6226
B42: Less: Exemption
B43: Deemed Taxable Capital | C43: =C41-C42 -> 0 | E43: 12358.35714 | G43: 25174.92857 | I43: 1087663.071 | K43: 1113735.348 | M43: 1142677.177 | O43: 1074882.066 | Q43: 975053.6226
B45: Ontario Capital Tax Rate (from Sheet 3) | C45: ='3. Cost_of_Service_Parameters'!G41 -> 0.003 | E45: ='3. Cost_of_Service_Parameters'!I41 -> 0.00225 | G45: ='3. Cost_of_Service_Parameters'!K41 -> 0.00225 | I45: ='3. Cost_of_Service_Parameters'!M41 -> 0.00225 | K45: ='3. Cost_of_Service_Parameters'!O41 -> 0.00075 | M45: ='3. Cost_of_Service_Parameters'!Q41 -> 0 | O45: ='3. Cost_of_Service_Parameters'!S41 -> 0 | Q45: ='3. Cost_of_Service_Parameters'!U41 -> 0
B47: Net Amount (Taxable Capital x Rate) | C47: =C43*C45 -> 0 | E47: 27.80630357 | G47: 56.64358929 | I47: 2447.241911 | K47: 835.3015107 | M47: 0 | O47: 0 | Q47: =Q43*Q45 -> 0
B50: Change in Income Taxes Payable | C50: =C33 -> 0 | E50: -452.7023078 | G50: -964.1813246 | I50: -236.8841845 | K50: 1830.555965 | M50: 4596.118967 | O50: 6445.688084 | Q50: =Q33 -> 7539.641559
B51: Change in OCT | C51: =C47 -> 0 | E51: 27.80630357 | G51: 56.64358929 | I51: 2447.241911 | K51: 835.3015107 | M51: 0 | O51: 0 | Q51: =Q47 -> 0
B52: PILs | C52: =SUM(C50:C51) -> 0 | E52: -424.8960042 | G52: -907.5377353 | I52: 2210.357726 | K52: 2665.857475 | M52: 4596.118967 | O52: 6445.688084 | Q52: 7539.641559
A55: Gross Up PILs
B56: Tax Rate | C56: =C31 -> 0.1862 | E56: =E31 -> 0.1862 | G56: 0.165 | I56: 0.165 | K56: 0.16 | M56: 0.155 | O56: 0.155 | Q56: =Q31 -> 0.155
B57: Change in Income Taxes Payable | C57: =C50/(1-C56) -> 0 | E57: -556.2820198 | G57: -1154.708173 | I57: -283.6936341 | K57: 2179.233291 | M57: 5439.194044 | O57: 7628.033235 | Q57: 8922.652733
B58: Change in OCT | C58: =C51 -> 0 | E58: 27.80630357 | G58: 56.64358929 | I58: 2447.241911 | K58: 835.3015107 | M58: 0 | O58: 0 | Q58: =Q51 -> 0
B59: PILs | C59: =SUM(C57:C58) -> 0 | E59: -528.4757163 | G59: -1098.064584 | I59: 2163.548277 | K59: 3014.534802 | M59: 5439.194044 | O59: 7628.033235 | Q59: 8922.652733

Sheet 8. Funding_Adder_Revs
B13: This worksheet calculates the funding adder revenues.
J20: Account 1555 - Sub-account Funding Adder Revenues
B22: Interest Rates | C22: Approved Deferral and Variance Accounts | D22: CWIP | F22: Date | G22: Year | H22: Quarter | J22: Opening Balance (Principal) | K22: Funding Adder Revenues | L22: Interest Rate | M22: Interest | N22: Closing Balance | O22: Annual amounts | P22: Board Approved Smart Meter Funding Adder (from Tariff)
B24: 2006 Q1 | F24: 2006-01-01 | G24: =YEAR(F24) -> 2006 | H24: =IF(MONTH(F24)=0,"",IF(MONTH(F24)<4,"Q1",IF(MONTH(F24)<7,"Q2",IF(MONTH(F24)<10,"Q3","Q4")))) -> Q1 | I24: =CONCATENATE(G24," ",H24) -> 2006 Q1 | J24: 0 | L24: =VLOOKUP(I24,$B$22:$D$55,2) -> 0 | M24: =ROUND(J24*L24/12,2) -> 0 | N24: =J24+K24+M24 -> 0
B25: 2006 Q2 | C25: 0.0414 | D25: 0.0468 | F25: 2006-02-01 | G25: =YEAR(F25) -> 2006 | H25: =IF(MONTH(F25)=0,"",IF(MONTH(F25)<4,"Q1",IF(MONTH(F25)<7,"Q2",IF(MONTH(F25)<10,"Q3","Q4")))) -> Q1 | I25: =CONCATENATE(G25," ",H25) -> 2006 Q1 | J25: =J24+K24 -> 0 | L25: 0 | M25: =ROUND(J25*L25/12,2) -> 0 | N25: =J25+K25+M25 -> 0
B26: 2006 Q3 | C26: 0.0459 | D26: 0.0505 | F26: 2006-03-01 | G26: 2006 | H26: Q1 | I26: 2006 Q1 | J26: =J25+K25 -> 0 | L26: 0 | M26: 0 | N26: 0
B27: 2006 Q4 | C27: 0.0459 | D27: 0.0472 | F27: 2006-04-01 | G27: 2006 | H27: Q2 | I27: 2006 Q2 | J27: 0 | L27: 0.0414 | M27: 0 | N27: 0
B28: 2007 Q1 | C28: 0.0459 | D28: 0.0472 | F28: 2006-05-01 | G28: 2006 | H28: Q2 | I28: 2006 Q2 | J28: 0 | L28: 0.0414 | M28: 0 | N28: 0
B29: 2007 Q2 | C29: 0.0459 | D29: 0.0472 | F29: 2006-06-01 | G29: 2006 | H29: Q2 | I29: 2006 Q2 | J29: 0 | L29: 0.0414 | M29: 0 | N29: 0
B30: 2007 Q3 | C30: 0.0459 | D30: 0.0518 | F30: 2006-07-01 | G30: 2006 | H30: Q3 | I30: 2006 Q3 | J30: 0 | K30: 1439.82 | L30: 0.0459 | M30: 0 | N30: 1439.82 | P30: 0.26
B31: 2007 Q4 | C31: 0.0514 | D31: 0.0518 | F31: 2006-08-01 | G31: 2006 | H31: Q3 | I31: 2006 Q3 | J31: 1439.82 | K31: 1562.83 | L31: 0.0459 | M31: 5.51 | N31: 3008.16 | P31: 0.26
B32: 2008 Q1 | C32: 0.0514 | D32: 0.0518 | F32: 2006-09-01 | G32: 2006 | H32: Q3 | I32: 2006 Q3 | J32: 3002.65 | K32: 1580.18 | L32: 0.0459 | M32: 11.49 | N32: 4594.32 | P32: 0.26
B33: 2008 Q2 | C33: 0.0408 | D33: 0.0518 | F33: 2006-10-01 | G33: 2006 | H33: Q4 | I33: 2006 Q4 | J33: 4582.83 | K33: 1575.44 | L33: 0.0459 | M33: 17.53 | N33: 6175.8 | P33: 0.26
B34: 2008 Q3 | C34: 0.0335 | D34: 0.0543 | F34: 2006-11-01 | G34: 2006 | H34: Q4 | I34: 2006 Q4 | J34: 6158.27 | K34: 1599.75 | L34: 0.0459 | M34: 23.56 | N34: 7781.58 | P34: 0.26
B35: 2008 Q4 | C35: 0.0335 | D35: 0.0543 | F35: 2006-12-01 | G35: 2006 | H35: Q4 | I35: 2006 Q4 | J35: 7758.02 | K35: 1604.13 | L35: 0.0459 | M35: 29.67 | N35: 9391.82 | O35: =SUM(K24:K35)+SUM(M24:M35) -> 9449.91 | P35: 0.26
B36: 2009 Q1 | C36: 0.0245 | D36: 0.0661 | F36: 2007-01-01 | G36: 2007 | H36: Q1 | I36: 2007 Q1 | J36: 9362.15 | K36: 1604.22 | L36: 0.0459 | M36: 35.81 | N36: 11002.18 | P36: 0.26
B37: 2009 Q2 | C37: 0.01 | D37: 0.0661 | F37: 2007-02-01 | G37: 2007 | H37: Q1 | I37: 2007 Q1 | J37: 10966.37 | K37: 1568.8 | L37: 0.0459 | M37: 41.95 | N37: 12577.12 | P37: 0.26
B38: 2009 Q3 | C38: 0.0055 | D38: 0.0567 | F38: 2007-03-01 | G38: 2007 | H38: Q1 | I38: 2007 Q1 | J38: 12535.17 | K38: 1593.89 | L38: 0.0459 | M38: 47.95 | N38: 14177.01 | P38: 0.26
B39: 2009 Q4 | C39: 0.0055 | D39: 0.0466 | F39: 2007-04-01 | G39: 2007 | H39: Q2 | I39: 2007 Q2 | J39: 14129.06 | K39: 1594.51 | L39: 0.0459 | M39: 54.04 | N39: 15777.61 | P39: 0.26
B40: 2010 Q1 | C40: 0.0055 | D40: 0.0434 | F40: 2007-05-01 | G40: 2007 | H40: Q2 | I40: 2007 Q2 | J40: 15723.57 | K40: 1606.19 | L40: 0.0459 | M40: 60.14 | N40: 17389.9 | P40: 0.26
B41: 2010 Q2 | C41: 0.0055 | D41: 0.0434 | F41: 2007-06-01 | G41: 2007 | H41: Q2 | I41: 2007 Q2 | J41: 17329.76 | K41: 1585.38 | L41: 0.0459 | M41: 66.29 | N41: 18981.43 | P41: 0.26
B42: 2010 Q3 | C42: 0.0089 | D42: 0.0466 | F42: 2007-07-01 | G42: 2007 | H42: Q3 | I42: 2007 Q3 | J42: 18915.14 | K42: 1594.99 | L42: 0.0459 | M42: 72.35 | N42: 20582.48 | P42: 0.26
B43: 2010 Q4 | C43: 0.012 | D43: 0.0401 | F43: 2007-08-01 | G43: 2007 | H43: Q3 | I43: 2007 Q3 | J43: 20510.13 | K43: 1566.74 | L43: 0.0459 | M43: 78.45 | N43: 22155.32 | P43: 0.26
B44: 2011 Q1 | C44: 0.0147 | D44: 0.0429 | F44: 2007-09-01 | G44: 2007 | H44: Q3 | I44: 2007 Q3 | J44: 22076.87 | K44: 1548.32 | L44: 0.0459 | M44: 84.44 | N44: 23709.63 | P44: 0.26
B45: 2011 Q2 | C45: 0.0147 | D45: 0.0429 | F45: 2007-10-01 | G45: 2007 | H45: Q4 | I45: 2007 Q4 | J45: 23625.19 | K45: 1645.89 | L45: 0.0514 | M45: 101.19 | N45: 25372.27 | P45: 0.26
B46: 2011 Q3 | C46: 0.0147 | D46: 0.0429 | F46: 2007-11-01 | G46: 2007 | H46: Q4 | I46: 2007 Q4 | J46: 25271.08 | K46: 1515.23 | L46: 0.0514 | M46: 108.24 | N46: 26894.55 | P46: 0.26
B47: 2011 Q4 | C47: =C46 -> 0.0147 | D47: 0.0392 | F47: 2007-12-01 | G47: 2007 | H47: Q4 | I47: 2007 Q4 | J47: 26786.31 | K47: 1602.3 | L47: 0.0514 | M47: 114.73 | N47: 28503.34 | O47: =SUM(K36:K47)+SUM(M36:M47) -> 19892.04 | P47: 0.26
B48: 2012 Q1 | C48: 0.0147 | D48: 0.0392 | F48: 2008-01-01 | G48: 2008 | H48: Q1 | I48: 2008 Q1 | J48: 28388.61 | K48: 1878.22 | L48: 0.0514 | M48: 121.6 | N48: 30388.43 | P48: 0.26
B49: 2012 Q2 | C49: 0.0147 | D49: 0.0351 | F49: 2008-02-01 | G49: 2008 | H49: Q1 | I49: 2008 Q1 | J49: 30266.83 | K49: 1592.15 | L49: 0.0514 | M49: 129.64 | N49: 31988.62 | P49: 0.26
B50: 2012 Q3 | C50: 0.0147 | D50: 0.0351 | F50: 2008-03-01 | G50: 2008 | H50: Q1 | I50: 2008 Q1 | J50: 31858.98 | K50: 1567.14 | L50: 0.0514 | M50: 136.46 | N50: 33562.58 | P50: 0.26
B51: 2012 Q4 | C51: 0.0147 | F51: 2008-04-01 | G51: 2008 | H51: Q2 | I51: 2008 Q2 | J51: 33426.12 | K51: 1557.9 | L51: 0.0408 | M51: 113.65 | N51: 35097.67 | P51: 0.26
B52: 2013 Q1 | F52: 2008-05-01 | G52: 2008 | H52: Q2 | I52: 2008 Q2 | J52: 34984.02 | K52: 1494.18 | L52: 0.0408 | M52: 118.95 | N52: 36597.15 | P52: 0.26
B53: 2013 Q2 | F53: 2008-06-01 | G53: 2008 | H53: Q2 | I53: 2008 Q2 | J53: 36478.2 | K53: 1486.24 | L53: 0.0408 | M53: 124.03 | N53: 38088.47 | P53: 0.26
B54: 2013 Q3 | F54: 2008-07-01 | G54: 2008 | H54: Q3 | I54: 2008 Q3 | J54: 37964.44 | K54: 1732.35 | L54: 0.0335 | M54: 105.98 | N54: 39802.77 | P54: 0.26
B55: 2013 Q4 | F55: 2008-08-01 | G55: 2008 | H55: Q3 | I55: 2008 Q3 | J55: 39696.79 | K55: 1605.29 | L55: 0.0335 | M55: 110.82 | N55: 41412.9 | P55: 0.26
F56: 2008-09-01 | G56: 2008 | H56: Q3 | I56: 2008 Q3 | J56: 41302.08 | K56: 1516.48 | L56: =VLOOKUP(I56,$B$22:$D$55,2) -> 0.0335 | M56: 115.3 | N56: 42933.86 | P56: 0.26
F57: 2008-10-01 | G57: 2008 | H57: Q4 | I57: 2008 Q4 | J57: 42818.56 | K57: 1577.67 | L57: 0.0335 | M57: 119.54 | N57: 44515.77 | P57: 0.26
F58: 2008-11-01 | G58: 2008 | H58: Q4 | I58: 2008 Q4 | J58: 44396.23 | K58: 1563.51 | L58: 0.0335 | M58: 123.94 | N58: 46083.68 | P58: 0.26
F59: 2008-12-01 | G59: 2008 | H59: Q4 | I59: 2008 Q4 | J59: 45959.74 | K59: 1580.5 | L59: 0.0335 | M59: 128.3 | N59: 47668.54 | O59: =SUM(K48:K59)+SUM(M48:M59) -> 20599.84 | P59: 0.26
F60: 2009-01-01 | G60: 2009 | H60: Q1 | I60: 2009 Q1 | J60: 47540.24 | K60: 1692.51 | L60: 0.0245 | M60: 97.06 | N60: 49329.81 | P60: 0.26
F61: 2009-02-01 | G61: 2009 | H61: Q1 | I61: 2009 Q1 | J61: 49232.75 | K61: 1580.27 | L61: 0.0245 | M61: 100.52 | N61: 50913.54 | P61: 0.26
F62: 2009-03-01 | G62: 2009 | H62: Q1 | I62: 2009 Q1 | J62: 50813.02 | K62: 1552.46 | L62: 0.0245 | M62: 103.74 | N62: 52469.22 | P62: 0.26
F63: 2009-04-01 | G63: 2009 | H63: Q2 | I63: 2009 Q2 | J63: 52365.48 | K63: 1553.18 | L63: 0.01 | M63: 43.64 | N63: 53962.3 | P63: 0.26
F64: 2009-05-01 | G64: 2009 | H64: Q2 | I64: 2009 Q2 | J64: 53918.66 | K64: 1586.06 | L64: 0.01 | M64: 44.93 | N64: 55549.65 | P64: 0.26
F65: 2009-06-01 | G65: 2009 | H65: Q2 | I65: 2009 Q2 | J65: 55504.72 | K65: 5871.61 | L65: 0.01 | M65: 46.25 | N65: 61422.58 | P65: 1
F66: 2009-07-01 | G66: 2009 | H66: Q3 | I66: 2009 Q3 | J66: 61376.33 | K66: 6088.28 | L66: 0.0055 | M66: 28.13 | N66: 67492.74 | P66: 1
F67: 2009-08-01 | G67: 2009 | H67: Q3 | I67: 2009 Q3 | J67: 67464.61 | K67: 6127.79 | L67: 0.0055 | M67: 30.92 | N67: 73623.32 | P67: 1
F68: 2009-09-01 | G68: 2009 | H68: Q3 | I68: 2009 Q3 | J68: 73592.4 | K68: 5904.94 | L68: 0.0055 | M68: 33.73 | N68: 79531.07 | P68: 1
F69: 2009-10-01 | G69: 2009 | H69: Q4 | I69: 2009 Q4 | J69: 79497.34 | K69: 6400.74 | L69: 0.0055 | M69: 36.44 | N69: 85934.52 | P69: 1
F70: 2009-11-01 | G70: 2009 | H70: Q4 | I70: 2009 Q4 | J70: 85898.08 | K70: 6088.56 | L70: 0.0055 | M70: 39.37 | N70: 92026.01 | P70: 1
F71: 2009-12-01 | G71: 2009 | H71: Q4 | I71: 2009 Q4 | J71: 91986.64 | K71: 6045.7 | L71: 0.0055 | M71: 42.16 | N71: 98074.5 | O71: =SUM(K60:K71)+SUM(M60:M71) -> 51138.99 | P71: 1
F72: 2010-01-01 | G72: 2010 | H72: Q1 | I72: 2010 Q1 | J72: 98032.34 | K72: 6085.7 | L72: 0.0055 | M72: 44.93 | N72: 104162.97 | P72: 1
F73: 2010-02-01 | G73: 2010 | H73: Q1 | I73: 2010 Q1 | J73: 104118.04 | K73: 5951.79 | L73: 0.0055 | M73: 47.72 | N73: 110117.55 | P73: 1
F74: 2010-03-01 | G74: 2010 | H74: Q1 | I74: 2010 Q1 | J74: 110069.83 | K74: 6086.24 | L74: 0.0055 | M74: 50.45 | N74: 116206.52 | P74: 1
F75: 2010-04-01 | G75: 2010 | H75: Q2 | I75: 2010 Q2 | J75: 116156.07 | K75: 6050.87 | L75: 0.0055 | M75: 53.24 | N75: 122260.18 | P75: 1
F76: 2010-05-01 | G76: 2010 | H76: Q2 | I76: 2010 Q2 | J76: 122206.94 | K76: 6019.82 | L76: 0.0055 | M76: 56.01 | N76: 128282.77 | P76: 1
F77: 2010-06-01 | G77: 2010 | H77: Q2 | I77: 2010 Q2 | J77: 128226.76 | K77: 5985.1 | L77: 0.0055 | M77: 58.77 | N77: 134270.63 | P77: 1
F78: 2010-07-01 | G78: 2010 | H78: Q3 | I78: 2010 Q3 | J78: 134211.86 | K78: 6000.65 | L78: 0.0089 | M78: 99.54 | N78: 140312.05 | P78: 1
F79: 2010-08-01 | G79: 2010 | H79: Q3 | I79: 2010 Q3 | J79: 140212.51 | K79: 5945.61 | L79: 0.0089 | M79: 103.99 | N79: 146262.11 | P79: 1
F80: 2010-09-01 | G80: 2010 | H80: Q3 | I80: 2010 Q3 | J80: 146158.12 | K80: 6079.4 | L80: 0.0089 | M80: 108.4 | N80: 152345.92 | P80: 1
F81: 2010-10-01 | G81: 2010 | H81: Q4 | I81: 2010 Q4 | J81: 152237.52 | K81: 5985.23 | L81: 0.012 | M81: 152.24 | N81: 158374.99 | P81: 1
F82: 2010-11-01 | G82: 2010 | H82: Q4 | I82: 2010 Q4 | J82: 158222.75 | K82: 6012.05 | L82: 0.012 | M82: 158.22 | N82: 164393.02 | P82: 1
F83: 2010-12-01 | G83: 2010 | H83: Q4 | I83: 2010 Q4 | J83: 164234.8 | K83: 6045.61 | L83: 0.012 | M83: 164.23 | N83: 170444.64 | O83: =SUM(K72:K83)+SUM(M72:M83) -> 73345.81 | P83: 1
F84: 2011-01-01 | G84: 2011 | H84: Q1 | I84: 2011 Q1 | J84: 170280.41 | K84: 6010.16 | L84: 0.0147 | M84: 208.59 | N84: 176499.16 | P84: 1
F85: 2011-02-01 | G85: 2011 | H85: Q1 | I85: 2011 Q1 | J85: 176290.57 | K85: 5984.61 | L85: 0.0147 | M85: 215.96 | N85: 182491.14 | P85: 1
F86: 2011-03-01 | G86: 2011 | H86: Q1 | I86: 2011 Q1 | J86: 182275.18 | K86: 6013.34 | L86: 0.0147 | M86: 223.29 | N86: 188511.81 | P86: 1
F87: 2011-04-01 | G87: 2011 | H87: Q2 | I87: 2011 Q2 | J87: 188288.52 | K87: 6018.25 | L87: 0.0147 | M87: 230.65 | N87: 194537.42 | P87: 1
F88: 2011-05-01 | G88: 2011 | H88: Q2 | I88: 2011 Q2 | J88: 194306.77 | K88: 6039.97 | L88: =VLOOKUP(I88,$B$22:$D$55,2) -> 0.0147 | M88: 238.03 | N88: 200584.77 | P88: 1
F89: 2011-06-01 | G89: =YEAR(F89) -> 2011 | H89: =IF(MONTH(F89)=0,"",IF(MONTH(F89)<4,"Q1",IF(MONTH(F89)<7,"Q2",IF(MONTH(F89)<10,"Q3","Q4")))) -> Q2 | I89: =CONCATENATE(G89," ",H89) -> 2011 Q2 | J89: 200346.74 | K89: 15024.97 | L89: 0.0147 | M89: =ROUND(J89*L89/12,2) -> 245.42 | N89: =J89+K89+M89 -> 215617.13 | P89: 2.5
F90: 2011-07-01 | G90: 2011 | H90: Q3 | I90: 2011 Q3 | J90: =J89+K89 -> 215371.71 | K90: 14951.72 | L90: 0.0147 | M90: 263.83 | N90: 230587.26 | P90: 2.5
F91: 2011-08-01 | G91: 2011 | H91: Q3 | I91: 2011 Q3 | J91: 230323.43 | K91: 14985.9 | L91: 0.0147 | M91: 282.15 | N91: 245591.48 | P91: 2.5
F92: 2011-09-01 | G92: 2011 | H92: Q3 | I92: 2011 Q3 | J92: 245309.33 | K92: 15108.45 | L92: 0.0147 | M92: 300.5 | N92: 260718.28 | P92: 2.5
F93: 2011-10-01 | G93: 2011 | H93: Q4 | I93: 2011 Q4 | J93: 260417.78 | K93: 14951.58 | L93: 0.0147 | M93: 319.01 | N93: 275688.37 | P93: 2.5
F94: 2011-11-01 | G94: 2011 | H94: Q4 | I94: 2011 Q4 | J94: 275369.36 | K94: 15085.61 | L94: 0.0147 | M94: 337.33 | N94: 290792.3 | P94: 2.5
F95: 2011-12-01 | G95: 2011 | H95: Q4 | I95: 2011 Q4 | J95: 290454.97 | K95: 15085.17 | L95: 0.0147 | M95: 355.81 | N95: 305895.95 | O95: =SUM(K84:K95)+SUM(M84:M95) -> 138480.3 | P95: 2.5
F96: 2012-01-01 | G96: 2012 | H96: Q1 | I96: 2012 Q1 | J96: 305540.14 | K96: 15066.58 | L96: 0.0147 | M96: 374.29 | N96: 320981.01 | P96: 2.5
F97: 2012-02-01 | G97: 2012 | H97: Q1 | I97: 2012 Q1 | J97: 320606.72 | K97: 15082.06 | L97: 0.0147 | M97: 392.74 | N97: 336081.52 | P97: 2.5
F98: 2012-03-01 | G98: 2012 | H98: Q1 | I98: 2012 Q1 | J98: 335688.78 | K98: 15066.75 | L98: 0.0147 | M98: 411.22 | N98: 351166.75 | P98: 2.5
F99: 2012-04-01 | G99: 2012 | H99: Q2 | I99: 2012 Q2 | J99: 350755.53 | K99: 15086.73 | L99: 0.0147 | M99: 429.68 | N99: 366271.94 | P99: 2.5
F100: 2012-05-01 | G100: 2012 | H100: Q2 | I100: 2012 Q2 | J100: 365842.26 | K100: 15083.96 | L100: 0.0147 | M100: 448.16 | N100: 381374.38 | P100: 2.5
F101: 2012-06-01 | G101: 2012 | H101: Q2 | I101: 2012 Q2 | J101: 380926.22 | K101: 8.06 | L101: 0.0147 | M101: 466.63 | N101: 381400.91 | P101: 2.5
F102: 2012-07-01 | G102: 2012 | H102: Q3 | I102: 2012 Q3 | J102: 380934.28 | L102: 0.0147 | M102: 466.64 | N102: 381400.92
F103: 2012-08-01 | G103: 2012 | H103: Q3 | I103: 2012 Q3 | J103: 380934.28 | L103: 0.0147 | M103: 466.64 | N103: 381400.92
F104: 2012-09-01 | G104: 2012 | H104: Q3 | I104: 2012 Q3 | J104: 380934.28 | L104: 0.0147 | M104: 466.64 | N104: 381400.92
F105: 2012-10-01 | G105: 2012 | H105: Q4 | I105: 2012 Q4 | J105: 380934.28 | L105: 0.0147 | M105: 466.64 | N105: 381400.92
F106: 2012-11-01 | G106: 2012 | H106: Q4 | I106: 2012 Q4 | J106: 380934.28 | L106: 0.0147 | M106: 466.64 | N106: 381400.92
F107: 2012-12-01 | G107: 2012 | H107: Q4 | I107: 2012 Q4 | J107: 380934.28 | L107: 0.0147 | M107: 466.64 | N107: 381400.92 | O107: =SUM(K96:K107)+SUM(M96:M107) -> 80716.7
F108: 2013-01-01 | G108: 2013 | H108: Q1 | I108: 2013 Q1 | J108: 380934.28 | L108: 0 | M108: =ROUND(J108*L108/12,2) -> 0 | N108: =J108+K108+M108 -> 380934.28
F109: 2013-02-01 | G109: 2013 | H109: Q1 | I109: 2013 Q1 | J109: 380934.28 | L109: 0 | M109: 0 | N109: 380934.28
F110: 2013-03-01 | G110: 2013 | H110: Q1 | I110: 2013 Q1 | J110: 380934.28 | L110: 0 | M110: 0 | N110: 380934.28
F111: 2013-04-01 | G111: 2013 | H111: Q2 | I111: 2013 Q2 | J111: 380934.28 | L111: 0 | M111: 0 | N111: 380934.28
F112: 2013-05-01 | G112: 2013 | H112: Q2 | I112: 2013 Q2 | J112: 380934.28 | L112: 0 | M112: 0 | N112: 380934.28
F113: 2013-06-01 | G113: 2013 | H113: Q2 | I113: 2013 Q2 | J113: 380934.28 | L113: 0 | M113: 0 | N113: 380934.28
F114: 2013-07-01 | G114: 2013 | H114: Q3 | I114: 2013 Q3 | J114: 380934.28 | L114: 0 | M114: 0 | N114: 380934.28
F115: 2013-08-01 | G115: 2013 | H115: Q3 | I115: 2013 Q3 | J115: 380934.28 | L115: 0 | M115: 0 | N115: 380934.28
F116: 2013-09-01 | G116: 2013 | H116: Q3 | I116: 2013 Q3 | J116: 380934.28 | L116: 0 | M116: 0 | N116: 380934.28
F117: 2013-10-01 | G117: 2013 | H117: Q4 | I117: 2013 Q4 | J117: 380934.28 | L117: 0 | M117: 0 | N117: 380934.28
F118: 2013-11-01 | G118: 2013 | H118: Q4 | I118: 2013 Q4 | J118: 380934.28 | L118: 0 | M118: 0 | N118: 380934.28
F119: 2013-12-01 | G119: 2013 | H119: Q4 | I119: 2013 Q4 | J119: 380934.28 | L119: 0 | M119: 0 | N119: 380934.28 | O119: =SUM(K108:K119)+SUM(M108:M119) -> 0
F121: Total Funding Adder Revenues Collected | K121: =SUM(K24:K107) -> 380934.28 | M121: =SUM(M24:M107) -> 12689.31 | N121: =K121+M121 -> 393623.59 | O121: =SUM(O24:O107) -> 393623.59

Sheet 8A. Opex_Interest_monthly
B13: This worksheet calculates the interest on OM&A and amortization/depreciation expense, based on monthly data.
J21: Account 1556 - Sub-accounts Operating Expenses, Amortization Expenses, Carrying Charges
B23: Prescribed Interest Rates | C23: Approved Deferral and Variance Accounts | D23: CWIP | F23: Date | G23: Year | H23: Quarter | J23: Opening Balance (Principal) | K23: OM&A Expenses | L23: Amortization / Depreciation Expense | M23: Closing Balance (Principal) | N23: (Annual) Interest Rate | O23: Interest (on opening balance) | P23: Cumulative Interest
B25: ='8. Funding_Adder_Revs'!B24 -> 2006 Q1 | C25: ='8. Funding_Adder_Revs'!C24 -> 0 | D25: ='8. Funding_Adder_Revs'!D24 -> 0 | F25: ='8. Funding_Adder_Revs'!F24 -> 2006-01-01 | G25: ='8. Funding_Adder_Revs'!G24 -> 2006 | H25: ='8. Funding_Adder_Revs'!H24 -> Q1 | J25: 0 | M25: =J25+K25+L25 -> 0 | N25: ='8. Funding_Adder_Revs'!L24 -> 0 | O25: =J25*N25/12 -> 0 | P25: =O25 -> 0
B26: ='8. Funding_Adder_Revs'!B25 -> 2006 Q2 | C26: ='8. Funding_Adder_Revs'!C25 -> 0.0414 | D26: ='8. Funding_Adder_Revs'!D25 -> 0.0468 | F26: ='8. Funding_Adder_Revs'!F25 -> 2006-02-01 | G26: ='8. Funding_Adder_Revs'!G25 -> 2006 | H26: ='8. Funding_Adder_Revs'!H25 -> Q1 | J26: =M25 -> 0 | M26: =J26+K26+L26 -> 0 | N26: ='8. Funding_Adder_Revs'!L25 -> 0 | O26: =J26*N26/12 -> 0 | P26: =O26+P25 -> 0
B27: ='8. Funding_Adder_Revs'!B26 -> 2006 Q3 | C27: ='8. Funding_Adder_Revs'!C26 -> 0.0459 | D27: ='8. Funding_Adder_Revs'!D26 -> 0.0505 | F27: ='8. Funding_Adder_Revs'!F26 -> 2006-03-01 | G27: ='8. Funding_Adder_Revs'!G26 -> 2006 | H27: ='8. Funding_Adder_Revs'!H26 -> Q1 | J27: =M26 -> 0 | M27: 0 | N27: ='8. Funding_Adder_Revs'!L26 -> 0 | O27: 0 | P27: =O27+P26 -> 0
B28: ='8. Funding_Adder_Revs'!B27 -> 2006 Q4 | C28: ='8. Funding_Adder_Revs'!C27 -> 0.0459 | D28: ='8. Funding_Adder_Revs'!D27 -> 0.0472 | F28: ='8. Funding_Adder_Revs'!F27 -> 2006-04-01 | G28: ='8. Funding_Adder_Revs'!G27 -> 2006 | H28: ='8. Funding_Adder_Revs'!H27 -> Q2 | J28: 0 | M28: 0 | N28: ='8. Funding_Adder_Revs'!L27 -> 0.0414 | O28: 0 | P28: 0
B29: ='8. Funding_Adder_Revs'!B28 -> 2007 Q1 | C29: ='8. Funding_Adder_Revs'!C28 -> 0.0459 | D29: ='8. Funding_Adder_Revs'!D28 -> 0.0472 | F29: ='8. Funding_Adder_Revs'!F28 -> 2006-05-01 | G29: ='8. Funding_Adder_Revs'!G28 -> 2006 | H29: ='8. Funding_Adder_Revs'!H28 -> Q2 | J29: 0 | M29: 0 | N29: ='8. Funding_Adder_Revs'!L28 -> 0.0414 | O29: 0 | P29: 0
B30: ='8. Funding_Adder_Revs'!B29 -> 2007 Q2 | C30: ='8. Funding_Adder_Revs'!C29 -> 0.0459 | D30: ='8. Funding_Adder_Revs'!D29 -> 0.0472 | F30: ='8. Funding_Adder_Revs'!F29 -> 2006-06-01 | G30: ='8. Funding_Adder_Revs'!G29 -> 2006 | H30: ='8. Funding_Adder_Revs'!H29 -> Q2 | J30: 0 | M30: 0 | N30: ='8. Funding_Adder_Revs'!L29 -> 0.0414 | O30: 0 | P30: 0
B31: ='8. Funding_Adder_Revs'!B30 -> 2007 Q3 | C31: ='8. Funding_Adder_Revs'!C30 -> 0.0459 | D31: ='8. Funding_Adder_Revs'!D30 -> 0.0518 | F31: ='8. Funding_Adder_Revs'!F30 -> 2006-07-01 | G31: ='8. Funding_Adder_Revs'!G30 -> 2006 | H31: ='8. Funding_Adder_Revs'!H30 -> Q3 | J31: 0 | M31: 0 | N31: ='8. Funding_Adder_Revs'!L30 -> 0.0459 | O31: 0 | P31: 0
B32: ='8. Funding_Adder_Revs'!B31 -> 2007 Q4 | C32: ='8. Funding_Adder_Revs'!C31 -> 0.0514 | D32: ='8. Funding_Adder_Revs'!D31 -> 0.0518 | F32: ='8. Funding_Adder_Revs'!F31 -> 2006-08-01 | G32: ='8. Funding_Adder_Revs'!G31 -> 2006 | H32: ='8. Funding_Adder_Revs'!H31 -> Q3 | J32: 0 | M32: 0 | N32: ='8. Funding_Adder_Revs'!L31 -> 0.0459 | O32: 0 | P32: 0
B33: ='8. Funding_Adder_Revs'!B32 -> 2008 Q1 | C33: ='8. Funding_Adder_Revs'!C32 -> 0.0514 | D33: ='8. Funding_Adder_Revs'!D32 -> 0.0518 | F33: ='8. Funding_Adder_Revs'!F32 -> 2006-09-01 | G33: ='8. Funding_Adder_Revs'!G32 -> 2006 | H33: ='8. Funding_Adder_Revs'!H32 -> Q3 | J33: 0 | M33: 0 | N33: ='8. Funding_Adder_Revs'!L32 -> 0.0459 | O33: 0 | P33: 0
B34: ='8. Funding_Adder_Revs'!B33 -> 2008 Q2 | C34: ='8. Funding_Adder_Revs'!C33 -> 0.0408 | D34: ='8. Funding_Adder_Revs'!D33 -> 0.0518 | F34: ='8. Funding_Adder_Revs'!F33 -> 2006-10-01 | G34: ='8. Funding_Adder_Revs'!G33 -> 2006 | H34: ='8. Funding_Adder_Revs'!H33 -> Q4 | J34: 0 | M34: 0 | N34: ='8. Funding_Adder_Revs'!L33 -> 0.0459 | O34: 0 | P34: 0
B35: ='8. Funding_Adder_Revs'!B34 -> 2008 Q3 | C35: ='8. Funding_Adder_Revs'!C34 -> 0.0335 | D35: ='8. Funding_Adder_Revs'!D34 -> 0.0543 | F35: ='8. Funding_Adder_Revs'!F34 -> 2006-11-01 | G35: ='8. Funding_Adder_Revs'!G34 -> 2006 | H35: ='8. Funding_Adder_Revs'!H34 -> Q4 | J35: 0 | M35: 0 | N35: ='8. Funding_Adder_Revs'!L34 -> 0.0459 | O35: 0 | P35: 0
B36: ='8. Funding_Adder_Revs'!B35 -> 2008 Q4 | C36: ='8. Funding_Adder_Revs'!C35 -> 0.0335 | D36: ='8. Funding_Adder_Revs'!D35 -> 0.0543 | F36: ='8. Funding_Adder_Revs'!F35 -> 2006-12-01 | G36: ='8. Funding_Adder_Revs'!G35 -> 2006 | H36: ='8. Funding_Adder_Revs'!H35 -> Q4 | J36: 0 | M36: 0 | N36: ='8. Funding_Adder_Revs'!L35 -> 0.0459 | O36: 0 | P36: 0
B37: ='8. Funding_Adder_Revs'!B36 -> 2009 Q1 | C37: ='8. Funding_Adder_Revs'!C36 -> 0.0245 | D37: ='8. Funding_Adder_Revs'!D36 -> 0.0661 | F37: ='8. Funding_Adder_Revs'!F36 -> 2007-01-01 | G37: ='8. Funding_Adder_Revs'!G36 -> 2007 | H37: ='8. Funding_Adder_Revs'!H36 -> Q1 | J37: 0 | M37: 0 | N37: ='8. Funding_Adder_Revs'!L36 -> 0.0459 | O37: 0 | P37: 0
B38: ='8. Funding_Adder_Revs'!B37 -> 2009 Q2 | C38: ='8. Funding_Adder_Revs'!C37 -> 0.01 | D38: ='8. Funding_Adder_Revs'!D37 -> 0.0661 | F38: ='8. Funding_Adder_Revs'!F37 -> 2007-02-01 | G38: ='8. Funding_Adder_Revs'!G37 -> 2007 | H38: ='8. Funding_Adder_Revs'!H37 -> Q1 | J38: 0 | M38: 0 | N38: ='8. Funding_Adder_Revs'!L37 -> 0.0459 | O38: 0 | P38: 0
B39: ='8. Funding_Adder_Revs'!B38 -> 2009 Q3 | C39: ='8. Funding_Adder_Revs'!C38 -> 0.0055 | D39: ='8. Funding_Adder_Revs'!D38 -> 0.0567 | F39: ='8. Funding_Adder_Revs'!F38 -> 2007-03-01 | G39: ='8. Funding_Adder_Revs'!G38 -> 2007 | H39: ='8. Funding_Adder_Revs'!H38 -> Q1 | J39: 0 | M39: 0 | N39: ='8. Funding_Adder_Revs'!L38 -> 0.0459 | O39: 0 | P39: 0
B40: ='8. Funding_Adder_Revs'!B39 -> 2009 Q4 | C40: ='8. Funding_Adder_Revs'!C39 -> 0.0055 | D40: ='8. Funding_Adder_Revs'!D39 -> 0.0466 | F40: ='8. Funding_Adder_Revs'!F39 -> 2007-04-01 | G40: ='8. Funding_Adder_Revs'!G39 -> 2007 | H40: ='8. Funding_Adder_Revs'!H39 -> Q2 | J40: 0 | M40: 0 | N40: ='8. Funding_Adder_Revs'!L39 -> 0.0459 | O40: 0 | P40: 0
B41: ='8. Funding_Adder_Revs'!B40 -> 2010 Q1 | C41: ='8. Funding_Adder_Revs'!C40 -> 0.0055 | D41: ='8. Funding_Adder_Revs'!D40 -> 0.0434 | F41: ='8. Funding_Adder_Revs'!F40 -> 2007-05-01 | G41: ='8. Funding_Adder_Revs'!G40 -> 2007 | H41: ='8. Funding_Adder_Revs'!H40 -> Q2 | J41: 0 | M41: 0 | N41: ='8. Funding_Adder_Revs'!L40 -> 0.0459 | O41: 0 | P41: 0
B42: ='8. Funding_Adder_Revs'!B41 -> 2010 Q2 | C42: ='8. Funding_Adder_Revs'!C41 -> 0.0055 | D42: ='8. Funding_Adder_Revs'!D41 -> 0.0434 | F42: ='8. Funding_Adder_Revs'!F41 -> 2007-06-01 | G42: ='8. Funding_Adder_Revs'!G41 -> 2007 | H42: ='8. Funding_Adder_Revs'!H41 -> Q2 | J42: 0 | M42: 0 | N42: ='8. Funding_Adder_Revs'!L41 -> 0.0459 | O42: 0 | P42: 0
B43: ='8. Funding_Adder_Revs'!B42 -> 2010 Q3 | C43: ='8. Funding_Adder_Revs'!C42 -> 0.0089 | D43: ='8. Funding_Adder_Revs'!D42 -> 0.0466 | F43: ='8. Funding_Adder_Revs'!F42 -> 2007-07-01 | G43: ='8. Funding_Adder_Revs'!G42 -> 2007 | H43: ='8. Funding_Adder_Revs'!H42 -> Q3 | J43: 0 | M43: 0 | N43: ='8. Funding_Adder_Revs'!L42 -> 0.0459 | O43: 0 | P43: 0
B44: ='8. Funding_Adder_Revs'!B43 -> 2010 Q4 | C44: ='8. Funding_Adder_Revs'!C43 -> 0.012 | D44: ='8. Funding_Adder_Revs'!D43 -> 0.0401 | F44: ='8. Funding_Adder_Revs'!F43 -> 2007-08-01 | G44: ='8. Funding_Adder_Revs'!G43 -> 2007 | H44: ='8. Funding_Adder_Revs'!H43 -> Q3 | J44: 0 | M44: 0 | N44: ='8. Funding_Adder_Revs'!L43 -> 0.0459 | O44: 0 | P44: 0
B45: ='8. Funding_Adder_Revs'!B44 -> 2011 Q1 | C45: ='8. Funding_Adder_Revs'!C44 -> 0.0147 | D45: ='8. Funding_Adder_Revs'!D44 -> 0.0429 | F45: ='8. Funding_Adder_Revs'!F44 -> 2007-09-01 | G45: ='8. Funding_Adder_Revs'!G44 -> 2007 | H45: ='8. Funding_Adder_Revs'!H44 -> Q3 | J45: 0 | M45: 0 | N45: ='8. Funding_Adder_Revs'!L44 -> 0.0459 | O45: 0 | P45: 0
B46: ='8. Funding_Adder_Revs'!B45 -> 2011 Q2 | C46: ='8. Funding_Adder_Revs'!C45 -> 0.0147 | D46: ='8. Funding_Adder_Revs'!D45 -> 0.0429 | F46: ='8. Funding_Adder_Revs'!F45 -> 2007-10-01 | G46: ='8. Funding_Adder_Revs'!G45 -> 2007 | H46: ='8. Funding_Adder_Revs'!H45 -> Q4 | J46: 0 | M46: 0 | N46: ='8. Funding_Adder_Revs'!L45 -> 0.0514 | O46: 0 | P46: 0
B47: ='8. Funding_Adder_Revs'!B46 -> 2011 Q3 | C47: ='8. Funding_Adder_Revs'!C46 -> 0.0147 | D47: ='8. Funding_Adder_Revs'!D46 -> 0.0429 | F47: ='8. Funding_Adder_Revs'!F46 -> 2007-11-01 | G47: ='8. Funding_Adder_Revs'!G46 -> 2007 | H47: ='8. Funding_Adder_Revs'!H46 -> Q4 | J47: 0 | M47: 0 | N47: ='8. Funding_Adder_Revs'!L46 -> 0.0514 | O47: 0 | P47: 0
B48: ='8. Funding_Adder_Revs'!B47 -> 2011 Q4 | C48: ='8. Funding_Adder_Revs'!C47 -> 0.0147 | D48: ='8. Funding_Adder_Revs'!D47 -> 0.0392 | F48: ='8. Funding_Adder_Revs'!F47 -> 2007-12-01 | G48: ='8. Funding_Adder_Revs'!G47 -> 2007 | H48: ='8. Funding_Adder_Revs'!H47 -> Q4 | J48: 0 | M48: 0 | N48: ='8. Funding_Adder_Revs'!L47 -> 0.0514 | O48: 0 | P48: 0
B49: ='8. Funding_Adder_Revs'!B48 -> 2012 Q1 | C49: ='8. Funding_Adder_Revs'!C48 -> 0.0147 | D49: ='8. Funding_Adder_Revs'!D48 -> 0.0392 | F49: ='8. Funding_Adder_Revs'!F48 -> 2008-01-01 | G49: ='8. Funding_Adder_Revs'!G48 -> 2008 | H49: ='8. Funding_Adder_Revs'!H48 -> Q1 | J49: 0 | M49: 0 | N49: ='8. Funding_Adder_Revs'!L48 -> 0.0514 | O49: 0 | P49: 0
B50: ='8. Funding_Adder_Revs'!B49 -> 2012 Q2 | C50: ='8. Funding_Adder_Revs'!C49 -> 0.0147 | D50: ='8. Funding_Adder_Revs'!D49 -> 0.0351 | F50: ='8. Funding_Adder_Revs'!F49 -> 2008-02-01 | G50: ='8. Funding_Adder_Revs'!G49 -> 2008 | H50: ='8. Funding_Adder_Revs'!H49 -> Q1 | J50: 0 | M50: 0 | N50: ='8. Funding_Adder_Revs'!L49 -> 0.0514 | O50: 0 | P50: 0
B51: ='8. Funding_Adder_Revs'!B50 -> 2012 Q3 | C51: ='8. Funding_Adder_Revs'!C50 -> 0.0147 | D51: ='8. Funding_Adder_Revs'!D50 -> 0.0351 | F51: ='8. Funding_Adder_Revs'!F50 -> 2008-03-01 | G51: ='8. Funding_Adder_Revs'!G50 -> 2008 | H51: ='8. Funding_Adder_Revs'!H50 -> Q1 | J51: 0 | M51: 0 | N51: ='8. Funding_Adder_Revs'!L50 -> 0.0514 | O51: 0 | P51: 0
B52: ='8. Funding_Adder_Revs'!B51 -> 2012 Q4 | C52: ='8. Funding_Adder_Revs'!C51 -> 0.0147 | D52: ='8. Funding_Adder_Revs'!D51 -> 0 | F52: ='8. Funding_Adder_Revs'!F51 -> 2008-04-01 | G52: ='8. Funding_Adder_Revs'!G51 -> 2008 | H52: ='8. Funding_Adder_Revs'!H51 -> Q2 | J52: 0 | M52: 0 | N52: ='8. Funding_Adder_Revs'!L51 -> 0.0408 | O52: 0 | P52: 0
B53: ='8. Funding_Adder_Revs'!B52 -> 2013 Q1 | C53: ='8. Funding_Adder_Revs'!C52 -> 0 | D53: ='8. Funding_Adder_Revs'!D52 -> 0 | F53: ='8. Funding_Adder_Revs'!F52 -> 2008-05-01 | G53: ='8. Funding_Adder_Revs'!G52 -> 2008 | H53: ='8. Funding_Adder_Revs'!H52 -> Q2 | J53: 0 | M53: 0 | N53: ='8. Funding_Adder_Revs'!L52 -> 0.0408 | O53: 0 | P53: 0
B54: ='8. Funding_Adder_Revs'!B53 -> 2013 Q2 | C54: ='8. Funding_Adder_Revs'!C53 -> 0 | D54: ='8. Funding_Adder_Revs'!D53 -> 0 | F54: ='8. Funding_Adder_Revs'!F53 -> 2008-06-01 | G54: ='8. Funding_Adder_Revs'!G53 -> 2008 | H54: ='8. Funding_Adder_Revs'!H53 -> Q2 | J54: 0 | M54: 0 | N54: ='8. Funding_Adder_Revs'!L53 -> 0.0408 | O54: 0 | P54: 0
B55: ='8. Funding_Adder_Revs'!B54 -> 2013 Q3 | C55: ='8. Funding_Adder_Revs'!C54 -> 0 | D55: ='8. Funding_Adder_Revs'!D54 -> 0 | F55: ='8. Funding_Adder_Revs'!F54 -> 2008-07-01 | G55: ='8. Funding_Adder_Revs'!G54 -> 2008 | H55: ='8. Funding_Adder_Revs'!H54 -> Q3 | J55: 0 | M55: 0 | N55: ='8. Funding_Adder_Revs'!L54 -> 0.0335 | O55: 0 | P55: 0
B56: ='8. Funding_Adder_Revs'!B55 -> 2013 Q4 | C56: ='8. Funding_Adder_Revs'!C55 -> 0 | D56: ='8. Funding_Adder_Revs'!D55 -> 0 | F56: ='8. Funding_Adder_Revs'!F55 -> 2008-08-01 | G56: ='8. Funding_Adder_Revs'!G55 -> 2008 | H56: ='8. Funding_Adder_Revs'!H55 -> Q3 | J56: 0 | M56: 0 | N56: ='8. Funding_Adder_Revs'!L55 -> 0.0335 | O56: 0 | P56: 0
F57: ='8. Funding_Adder_Revs'!F56 -> 2008-09-01 | G57: ='8. Funding_Adder_Revs'!G56 -> 2008 | H57: ='8. Funding_Adder_Revs'!H56 -> Q3 | J57: 0 | M57: 0 | N57: ='8. Funding_Adder_Revs'!L56 -> 0.0335 | O57: 0 | P57: 0
F58: ='8. Funding_Adder_Revs'!F57 -> 2008-10-01 | G58: ='8. Funding_Adder_Revs'!G57 -> 2008 | H58: ='8. Funding_Adder_Revs'!H57 -> Q4 | J58: 0 | M58: 0 | N58: ='8. Funding_Adder_Revs'!L57 -> 0.0335 | O58: 0 | P58: 0
F59: ='8. Funding_Adder_Revs'!F58 -> 2008-11-01 | G59: ='8. Funding_Adder_Revs'!G58 -> 2008 | H59: ='8. Funding_Adder_Revs'!H58 -> Q4 | J59: 0 | M59: 0 | N59: ='8. Funding_Adder_Revs'!L58 -> 0.0335 | O59: 0 | P59: 0
F60: ='8. Funding_Adder_Revs'!F59 -> 2008-12-01 | G60: ='8. Funding_Adder_Revs'!G59 -> 2008 | H60: ='8. Funding_Adder_Revs'!H59 -> Q4 | J60: 0 | M60: 0 | N60: ='8. Funding_Adder_Revs'!L59 -> 0.0335 | O60: 0 | P60: 0
F61: ='8. Funding_Adder_Revs'!F60 -> 2009-01-01 | G61: ='8. Funding_Adder_Revs'!G60 -> 2009 | H61: ='8. Funding_Adder_Revs'!H60 -> Q1 | J61: 0 | M61: 0 | N61: ='8. Funding_Adder_Revs'!L60 -> 0.0245 | O61: 0 | P61: 0
F62: ='8. Funding_Adder_Revs'!F61 -> 2009-02-01 | G62: ='8. Funding_Adder_Revs'!G61 -> 2009 | H62: ='8. Funding_Adder_Revs'!H61 -> Q1 | J62: 0 | M62: 0 | N62: ='8. Funding_Adder_Revs'!L61 -> 0.0245 | O62: 0 | P62: 0
F63: ='8. Funding_Adder_Revs'!F62 -> 2009-03-01 | G63: ='8. Funding_Adder_Revs'!G62 -> 2009 | H63: ='8. Funding_Adder_Revs'!H62 -> Q1 | J63: 0 | M63: 0 | N63: ='8. Funding_Adder_Revs'!L62 -> 0.0245 | O63: 0 | P63: 0
F64: ='8. Funding_Adder_Revs'!F63 -> 2009-04-01 | G64: ='8. Funding_Adder_Revs'!G63 -> 2009 | H64: ='8. Funding_Adder_Revs'!H63 -> Q2 | J64: 0 | M64: 0 | N64: ='8. Funding_Adder_Revs'!L63 -> 0.01 | O64: 0 | P64: 0
F65: ='8. Funding_Adder_Revs'!F64 -> 2009-05-01 | G65: ='8. Funding_Adder_Revs'!G64 -> 2009 | H65: ='8. Funding_Adder_Revs'!H64 -> Q2 | J65: 0 | M65: 0 | N65: ='8. Funding_Adder_Revs'!L64 -> 0.01 | O65: 0 | P65: 0
F66: ='8. Funding_Adder_Revs'!F65 -> 2009-06-01 | G66: ='8. Funding_Adder_Revs'!G65 -> 2009 | H66: ='8. Funding_Adder_Revs'!H65 -> Q2 | J66: 0 | M66: 0 | N66: ='8. Funding_Adder_Revs'!L65 -> 0.01 | O66: 0 | P66: 0
F67: ='8. Funding_Adder_Revs'!F66 -> 2009-07-01 | G67: ='8. Funding_Adder_Revs'!G66 -> 2009 | H67: ='8. Funding_Adder_Revs'!H66 -> Q3 | J67: 0 | K67: 1527.27 | M67: 1527.27 | N67: ='8. Funding_Adder_Revs'!L66 -> 0.0055 | O67: 0 | P67: 0
F68: ='8. Funding_Adder_Revs'!F67 -> 2009-08-01 | G68: ='8. Funding_Adder_Revs'!G67 -> 2009 | H68: ='8. Funding_Adder_Revs'!H67 -> Q3 | J68: 1527.27 | K68: 4173 | M68: 5700.27 | N68: ='8. Funding_Adder_Revs'!L67 -> 0.0055 | O68: 0.69999875 | P68: 0.69999875
F69: ='8. Funding_Adder_Revs'!F68 -> 2009-09-01 | G69: ='8. Funding_Adder_Revs'!G68 -> 2009 | H69: ='8. Funding_Adder_Revs'!H68 -> Q3 | J69: 5700.27 | K69: 1350.61 | M69: 7050.88 | N69: ='8. Funding_Adder_Revs'!L68 -> 0.0055 | O69: 2.61262375 | P69: 3.3126225
F70: ='8. Funding_Adder_Revs'!F69 -> 2009-10-01 | G70: ='8. Funding_Adder_Revs'!G69 -> 2009 | H70: ='8. Funding_Adder_Revs'!H69 -> Q4 | J70: 7050.88 | K70: 7165.05 | M70: 14215.93 | N70: ='8. Funding_Adder_Revs'!L69 -> 0.0055 | O70: 3.231653333 | P70: 6.544275833
F71: ='8. Funding_Adder_Revs'!F70 -> 2009-11-01 | G71: ='8. Funding_Adder_Revs'!G70 -> 2009 | H71: ='8. Funding_Adder_Revs'!H70 -> Q4 | J71: 14215.93 | K71: 43614.83 | M71: 57830.76 | N71: ='8. Funding_Adder_Revs'!L70 -> 0.0055 | O71: 6.515634583 | P71: 13.05991042
F72: ='8. Funding_Adder_Revs'!F71 -> 2009-12-01 | G72: ='8. Funding_Adder_Revs'!G71 -> 2009 | H72: ='8. Funding_Adder_Revs'!H71 -> Q4 | J72: 57830.76 | K72: 37086.56 | L72: 37202 | M72: 132119.32 | N72: ='8. Funding_Adder_Revs'!L71 -> 0.0055 | O72: 26.505765 | P72: 39.56567542
F73: ='8. Funding_Adder_Revs'!F72 -> 2010-01-01 | G73: ='8. Funding_Adder_Revs'!G72 -> 2010 | H73: ='8. Funding_Adder_Revs'!H72 -> Q1 | J73: 132119.32 | K73: 7162.68 | L73: 6200 | M73: 145482 | N73: ='8. Funding_Adder_Revs'!L72 -> 0.0055 | O73: 60.55468833 | P73: 100.1203637
F74: ='8. Funding_Adder_Revs'!F73 -> 2010-02-01 | G74: ='8. Funding_Adder_Revs'!G73 -> 2010 | H74: ='8. Funding_Adder_Revs'!H73 -> Q1 | J74: 145482 | K74: 1094.28 | L74: 6200 | M74: 152776.28 | N74: ='8. Funding_Adder_Revs'!L73 -> 0.0055 | O74: 66.67925 | P74: 166.7996137
F75: ='8. Funding_Adder_Revs'!F74 -> 2010-03-01 | G75: ='8. Funding_Adder_Revs'!G74 -> 2010 | H75: ='8. Funding_Adder_Revs'!H74 -> Q1 | J75: 152776.28 | K75: 1148.83 | L75: 6200 | M75: 160125.11 | N75: ='8. Funding_Adder_Revs'!L74 -> 0.0055 | O75: 70.02246167 | P75: 236.8220754
F76: ='8. Funding_Adder_Revs'!F75 -> 2010-04-01 | G76: ='8. Funding_Adder_Revs'!G75 -> 2010 | H76: ='8. Funding_Adder_Revs'!H75 -> Q2 | J76: 160125.11 | K76: 24408.71 | L76: 6200 | M76: 190733.82 | N76: ='8. Funding_Adder_Revs'!L75 -> 0.0055 | O76: 73.39067542 | P76: 310.2127508
F77: ='8. Funding_Adder_Revs'!F76 -> 2010-05-01 | G77: ='8. Funding_Adder_Revs'!G76 -> 2010 | H77: ='8. Funding_Adder_Revs'!H76 -> Q2 | J77: 190733.82 | K77: 8964.85 | L77: 6200 | M77: 205898.67 | N77: ='8. Funding_Adder_Revs'!L76 -> 0.0055 | O77: 87.4196675 | P77: 397.6324183
F78: ='8. Funding_Adder_Revs'!F77 -> 2010-06-01 | G78: ='8. Funding_Adder_Revs'!G77 -> 2010 | H78: ='8. Funding_Adder_Revs'!H77 -> Q2 | J78: 205898.67 | K78: 1094.66 | L78: 6200 | M78: 213193.33 | N78: ='8. Funding_Adder_Revs'!L77 -> 0.0055 | O78: 94.37022375 | P78: 492.0026421
F79: ='8. Funding_Adder_Revs'!F78 -> 2010-07-01 | G79: ='8. Funding_Adder_Revs'!G78 -> 2010 | H79: ='8. Funding_Adder_Revs'!H78 -> Q3 | J79: 213193.33 | K79: 8743.18 | L79: 6200 | M79: 228136.51 | N79: ='8. Funding_Adder_Revs'!L78 -> 0.0089 | O79: 158.1183864 | P79: 650.1210285
F80: ='8. Funding_Adder_Revs'!F79 -> 2010-08-01 | G80: ='8. Funding_Adder_Revs'!G79 -> 2010 | H80: ='8. Funding_Adder_Revs'!H79 -> Q3 | J80: 228136.51 | K80: 8962.56 | L80: 6200 | M80: 243299.07 | N80: ='8. Funding_Adder_Revs'!L79 -> 0.0089 | O80: 169.2012449 | P80: 819.3222734
F81: ='8. Funding_Adder_Revs'!F80 -> 2010-09-01 | G81: ='8. Funding_Adder_Revs'!G80 -> 2010 | H81: ='8. Funding_Adder_Revs'!H80 -> Q3 | J81: 243299.07 | K81: 9588.89 | L81: 6200 | M81: 259087.96 | N81: ='8. Funding_Adder_Revs'!L80 -> 0.0089 | O81: 180.4468102 | P81: 999.7690837
F82: ='8. Funding_Adder_Revs'!F81 -> 2010-10-01 | G82: ='8. Funding_Adder_Revs'!G81 -> 2010 | H82: ='8. Funding_Adder_Revs'!H81 -> Q4 | J82: 259087.96 | K82: 9590.49 | L82: 6200 | M82: 274878.45 | N82: ='8. Funding_Adder_Revs'!L81 -> 0.012 | O82: 259.08796 | P82: 1258.857044
F83: ='8. Funding_Adder_Revs'!F82 -> 2010-11-01 | G83: ='8. Funding_Adder_Revs'!G82 -> 2010 | H83: ='8. Funding_Adder_Revs'!H82 -> Q4 | J83: 274878.45 | K83: 9710.83 | L83: 6200 | M83: 290789.28 | N83: ='8. Funding_Adder_Revs'!L82 -> 0.012 | O83: 274.87845 | P83: 1533.735494
F84: ='8. Funding_Adder_Revs'!F83 -> 2010-12-01 | G84: ='8. Funding_Adder_Revs'!G83 -> 2010 | H84: ='8. Funding_Adder_Revs'!H83 -> Q4 | J84: 290789.28 | K84: 32087.4 | L84: 31015 | M84: 353891.68 | N84: ='8. Funding_Adder_Revs'!L83 -> 0.012 | O84: 290.78928 | P84: 1824.524774
F85: ='8. Funding_Adder_Revs'!F84 -> 2011-01-01 | G85: ='8. Funding_Adder_Revs'!G84 -> 2011 | H85: ='8. Funding_Adder_Revs'!H84 -> Q1 | J85: 353891.68 | K85: 19617.67 | L85: 6985 | M85: 380494.35 | N85: ='8. Funding_Adder_Revs'!L84 -> 0.0147 | O85: 433.517308 | P85: 2258.042082
F86: ='8. Funding_Adder_Revs'!F85 -> 2011-02-01 | G86: ='8. Funding_Adder_Revs'!G85 -> 2011 | H86: ='8. Funding_Adder_Revs'!H85 -> Q1 | J86: 380494.35 | K86: 10026.47 | L86: 6985 | M86: 397505.82 | N86: ='8. Funding_Adder_Revs'!L85 -> 0.0147 | O86: 466.1055787 | P86: 2724.14766
F87: ='8. Funding_Adder_Revs'!F86 -> 2011-03-01 | G87: ='8. Funding_Adder_Revs'!G86 -> 2011 | H87: ='8. Funding_Adder_Revs'!H86 -> Q1 | J87: 397505.82 | K87: 10183 | L87: 6985 | M87: 414673.82 | N87: ='8. Funding_Adder_Revs'!L86 -> 0.0147 | O87: 486.9446295 | P87: 3211.09229
F88: ='8. Funding_Adder_Revs'!F87 -> 2011-04-01 | G88: ='8. Funding_Adder_Revs'!G87 -> 2011 | H88: ='8. Funding_Adder_Revs'!H87 -> Q2 | J88: 414673.82 | K88: 15630.31 | L88: 6985 | M88: 437289.13 | N88: ='8. Funding_Adder_Revs'!L87 -> 0.0147 | O88: 507.9754295 | P88: 3719.067719
F89: ='8. Funding_Adder_Revs'!F88 -> 2011-05-01 | G89: ='8. Funding_Adder_Revs'!G88 -> 2011 | H89: ='8. Funding_Adder_Revs'!H88 -> Q2 | J89: 437289.13 | K89: 10089.8 | L89: 6985 | M89: 454363.93 | N89: ='8. Funding_Adder_Revs'!L88 -> 0.0147 | O89: 535.6791842 | P89: 4254.746904
F90: ='8. Funding_Adder_Revs'!F89 -> 2011-06-01 | G90: ='8. Funding_Adder_Revs'!G89 -> 2011 | H90: ='8. Funding_Adder_Revs'!H89 -> Q2 | J90: 454363.93 | K90: 9464.95 | L90: 6985 | M90: =J90+K90+L90 -> 470813.88 | N90: ='8. Funding_Adder_Revs'!L89 -> 0.0147 | O90: =J90*N90/12 -> 556.5958142 | P90: 4811.342718
F91: ='8. Funding_Adder_Revs'!F90 -> 2011-07-01 | G91: ='8. Funding_Adder_Revs'!G90 -> 2011 | H91: ='8. Funding_Adder_Revs'!H90 -> Q3 | J91: =M90 -> 470813.88 | K91: 9051.84 | L91: 6985 | M91: 486850.72 | N91: ='8. Funding_Adder_Revs'!L90 -> 0.0147 | O91: 576.747003 | P91: =O91+P90 -> 5388.089721
F92: ='8. Funding_Adder_Revs'!F91 -> 2011-08-01 | G92: ='8. Funding_Adder_Revs'!G91 -> 2011 | H92: ='8. Funding_Adder_Revs'!H91 -> Q3 | J92: 486850.72 | K92: 8151.74 | L92: 6985 | M92: 501987.46 | N92: ='8. Funding_Adder_Revs'!L91 -> 0.0147 | O92: 596.392132 | P92: 5984.481853
F93: ='8. Funding_Adder_Revs'!F92 -> 2011-09-01 | G93: ='8. Funding_Adder_Revs'!G92 -> 2011 | H93: ='8. Funding_Adder_Revs'!H92 -> Q3 | J93: 501987.46 | K93: 8155.59 | L93: 6985 | M93: 517128.05 | N93: ='8. Funding_Adder_Revs'!L92 -> 0.0147 | O93: 614.9346385 | P93: 6599.416491
F94: ='8. Funding_Adder_Revs'!F93 -> 2011-10-01 | G94: ='8. Funding_Adder_Revs'!G93 -> 2011 | H94: ='8. Funding_Adder_Revs'!H93 -> Q4 | J94: 517128.05 | K94: 15029.01 | L94: 6985 | M94: 539142.06 | N94: ='8. Funding_Adder_Revs'!L93 -> 0.0147 | O94: 633.4818612 | P94: 7232.898353
F95: ='8. Funding_Adder_Revs'!F94 -> 2011-11-01 | G95: ='8. Funding_Adder_Revs'!G94 -> 2011 | H95: ='8. Funding_Adder_Revs'!H94 -> Q4 | J95: 539142.06 | K95: 10624.11 | L95: 6985 | M95: 556751.17 | N95: ='8. Funding_Adder_Revs'!L94 -> 0.0147 | O95: 660.4490235 | P95: 7893.347376
F96: ='8. Funding_Adder_Revs'!F95 -> 2011-12-01 | G96: ='8. Funding_Adder_Revs'!G95 -> 2011 | H96: ='8. Funding_Adder_Revs'!H95 -> Q4 | J96: 556751.17 | K96: 39396.34 | L96: 11731 | M96: 607878.51 | N96: ='8. Funding_Adder_Revs'!L95 -> 0.0147 | O96: 682.0201832 | P96: 8575.367559
F97: ='8. Funding_Adder_Revs'!F96 -> 2012-01-01 | G97: ='8. Funding_Adder_Revs'!G96 -> 2012 | H97: ='8. Funding_Adder_Revs'!H96 -> Q1 | J97: 607878.51 | K97: ='2. Smart_Meter_Costs'!$S$197/12 -> 10190.75 | L97: ='5. SM_Rev_Reqt'!$S$64/12 -> 8232.925865 | M97: 626302.1859 | N97: ='8. Funding_Adder_Revs'!L96 -> 0.0147 | O97: 744.6511747 | P97: 9320.018734
F98: ='8. Funding_Adder_Revs'!F97 -> 2012-02-01 | G98: ='8. Funding_Adder_Revs'!G97 -> 2012 | H98: ='8. Funding_Adder_Revs'!H97 -> Q1 | J98: 626302.1859 | K98: ='2. Smart_Meter_Costs'!$S$197/12 -> 10190.75 | L98: ='5. SM_Rev_Reqt'!$S$64/12 -> 8232.925865 | M98: 644725.8617 | N98: ='8. Funding_Adder_Revs'!L97 -> 0.0147 | O98: 767.2201777 | P98: 10087.23891
F99: ='8. Funding_Adder_Revs'!F98 -> 2012-03-01 | G99: ='8. Funding_Adder_Revs'!G98 -> 2012 | H99: ='8. Funding_Adder_Revs'!H98 -> Q1 | J99: 644725.8617 | K99: ='2. Smart_Meter_Costs'!$S$197/12 -> 10190.75 | L99: ='5. SM_Rev_Reqt'!$S$64/12 -> 8232.925865 | M99: 663149.5376 | N99: ='8. Funding_Adder_Revs'!L98 -> 0.0147 | O99: 789.7891806 | P99: 10877.02809
F100: ='8. Funding_Adder_Revs'!F99 -> 2012-04-01 | G100: ='8. Funding_Adder_Revs'!G99 -> 2012 | H100: ='8. Funding_Adder_Revs'!H99 -> Q2 | J100: 663149.5376 | K100: ='2. Smart_Meter_Costs'!$S$197/12 -> 10190.75 | L100: ='5. SM_Rev_Reqt'!$S$64/12 -> 8232.925865 | M100: 681573.2135 | N100: ='8. Funding_Adder_Revs'!L99 -> 0.0147 | O100: 812.3581836 | P100: 11689.38628
F101: ='8. Funding_Adder_Revs'!F100 -> 2012-05-01 | G101: ='8. Funding_Adder_Revs'!G100 -> 2012 | H101: ='8. Funding_Adder_Revs'!H100 -> Q2 | J101: 681573.2135 | K101: ='2. Smart_Meter_Costs'!$S$197/12 -> 10190.75 | L101: ='5. SM_Rev_Reqt'!$S$64/12 -> 8232.925865 | M101: 699996.8893 | N101: ='8. Funding_Adder_Revs'!L100 -> 0.0147 | O101: 834.9271865 | P101: 12524.31346
F102: ='8. Funding_Adder_Revs'!F101 -> 2012-06-01 | G102: ='8. Funding_Adder_Revs'!G101 -> 2012 | H102: ='8. Funding_Adder_Revs'!H101 -> Q2 | J102: 699996.8893 | K102: ='2. Smart_Meter_Costs'!$S$197/12 -> 10190.75 | L102: ='5. SM_Rev_Reqt'!$S$64/12 -> 8232.925865 | M102: 718420.5652 | N102: ='8. Funding_Adder_Revs'!L101 -> 0.0147 | O102: 857.4961894 | P102: 13381.80965
F103: ='8. Funding_Adder_Revs'!F102 -> 2012-07-01 | G103: ='8. Funding_Adder_Revs'!G102 -> 2012 | H103: ='8. Funding_Adder_Revs'!H102 -> Q3 | J103: 718420.5652 | K103: ='2. Smart_Meter_Costs'!$S$197/12 -> 10190.75 | L103: ='5. SM_Rev_Reqt'!$S$64/12 -> 8232.925865 | M103: 736844.2411 | N103: ='8. Funding_Adder_Revs'!L102 -> 0.0147 | O103: 880.0651924 | P103: 14261.87484
F104: ='8. Funding_Adder_Revs'!F103 -> 2012-08-01 | G104: ='8. Funding_Adder_Revs'!G103 -> 2012 | H104: ='8. Funding_Adder_Revs'!H103 -> Q3 | J104: 736844.2411 | K104: ='2. Smart_Meter_Costs'!$S$197/12 -> 10190.75 | L104: ='5. SM_Rev_Reqt'!$S$64/12 -> 8232.925865 | M104: 755267.9169 | N104: ='8. Funding_Adder_Revs'!L103 -> 0.0147 | O104: 902.6341953 | P104: 15164.50904
F105: ='8. Funding_Adder_Revs'!F104 -> 2012-09-01 | G105: ='8. Funding_Adder_Revs'!G104 -> 2012 | H105: ='8. Funding_Adder_Revs'!H104 -> Q3 | J105: 755267.9169 | K105: ='2. Smart_Meter_Costs'!$S$197/12 -> 10190.75 | L105: ='5. SM_Rev_Reqt'!$S$64/12 -> 8232.925865 | M105: 773691.5928 | N105: ='8. Funding_Adder_Revs'!L104 -> 0.0147 | O105: 925.2031982 | P105: 16089.71224
F106: ='8. Funding_Adder_Revs'!F105 -> 2012-10-01 | G106: ='8. Funding_Adder_Revs'!G105 -> 2012 | H106: ='8. Funding_Adder_Revs'!H105 -> Q4 | J106: 773691.5928 | K106: ='2. Smart_Meter_Costs'!$S$197/12 -> 10190.75 | L106: ='5. SM_Rev_Reqt'!$S$64/12 -> 8232.925865 | M106: 792115.2687 | N106: ='8. Funding_Adder_Revs'!L105 -> 0.0147 | O106: 947.7722012 | P106: 17037.48444
F107: ='8. Funding_Adder_Revs'!F106 -> 2012-11-01 | G107: ='8. Funding_Adder_Revs'!G106 -> 2012 | H107: ='8. Funding_Adder_Revs'!H106 -> Q4 | J107: 792115.2687 | K107: ='2. Smart_Meter_Costs'!$S$197/12 -> 10190.75 | L107: ='5. SM_Rev_Reqt'!$S$64/12 -> 8232.925865 | M107: 810538.9445 | N107: ='8. Funding_Adder_Revs'!L106 -> 0.0147 | O107: 970.3412041 | P107: 18007.82564
F108: ='8. Funding_Adder_Revs'!F107 -> 2012-12-01 | G108: ='8. Funding_Adder_Revs'!G107 -> 2012 | H108: ='8. Funding_Adder_Revs'!H107 -> Q4 | J108: 810538.9445 | K108: ='2. Smart_Meter_Costs'!$S$197/12 -> 10190.75 | L108: ='5. SM_Rev_Reqt'!$S$64/12 -> 8232.925865 | M108: 828962.6204 | N108: ='8. Funding_Adder_Revs'!L107 -> 0.0147 | O108: 992.910207 | P108: 19000.73585
F109: ='8. Funding_Adder_Revs'!F108 -> 2013-01-01 | G109: ='8. Funding_Adder_Revs'!G108 -> 2013 | H109: ='8. Funding_Adder_Revs'!H108 -> Q1 | J109: =M108 -> 828962.6204 | M109: =J109+K109+L109 -> 828962.6204 | N109: ='8. Funding_Adder_Revs'!L108 -> 0 | O109: =J109*N109/12 -> 0 | P109: =O109+P108 -> 19000.73585
F110: ='8. Funding_Adder_Revs'!F109 -> 2013-02-01 | G110: ='8. Funding_Adder_Revs'!G109 -> 2013 | H110: ='8. Funding_Adder_Revs'!H109 -> Q1 | J110: 828962.6204 | M110: 828962.6204 | N110: ='8. Funding_Adder_Revs'!L109 -> 0 | O110: 0 | P110: 19000.73585
F111: ='8. Funding_Adder_Revs'!F110 -> 2013-03-01 | G111: ='8. Funding_Adder_Revs'!G110 -> 2013 | H111: ='8. Funding_Adder_Revs'!H110 -> Q1 | J111: 828962.6204 | M111: 828962.6204 | N111: ='8. Funding_Adder_Revs'!L110 -> 0 | O111: 0 | P111: 19000.73585
F112: ='8. Funding_Adder_Revs'!F111 -> 2013-04-01 | G112: ='8. Funding_Adder_Revs'!G111 -> 2013 | H112: ='8. Funding_Adder_Revs'!H111 -> Q2 | J112: 828962.6204 | M112: 828962.6204 | N112: ='8. Funding_Adder_Revs'!L111 -> 0 | O112: 0 | P112: 19000.73585
F113: ='8. Funding_Adder_Revs'!F112 -> 2013-05-01 | G113: ='8. Funding_Adder_Revs'!G112 -> 2013 | H113: ='8. Funding_Adder_Revs'!H112 -> Q2 | J113: 828962.6204 | M113: 828962.6204 | N113: ='8. Funding_Adder_Revs'!L112 -> 0 | O113: 0 | P113: 19000.73585
F114: ='8. Funding_Adder_Revs'!F113 -> 2013-06-01 | G114: ='8. Funding_Adder_Revs'!G113 -> 2013 | H114: ='8. Funding_Adder_Revs'!H113 -> Q2 | J114: 828962.6204 | M114: 828962.6204 | N114: ='8. Funding_Adder_Revs'!L113 -> 0 | O114: 0 | P114: 19000.73585
F115: ='8. Funding_Adder_Revs'!F114 -> 2013-07-01 | G115: ='8. Funding_Adder_Revs'!G114 -> 2013 | H115: ='8. Funding_Adder_Revs'!H114 -> Q3 | J115: 828962.6204 | M115: 828962.6204 | N115: ='8. Funding_Adder_Revs'!L114 -> 0 | O115: 0 | P115: 19000.73585
F116: ='8. Funding_Adder_Revs'!F115 -> 2013-08-01 | G116: ='8. Funding_Adder_Revs'!G115 -> 2013 | H116: ='8. Funding_Adder_Revs'!H115 -> Q3 | J116: 828962.6204 | M116: 828962.6204 | N116: ='8. Funding_Adder_Revs'!L115 -> 0 | O116: 0 | P116: 19000.73585
F117: ='8. Funding_Adder_Revs'!F116 -> 2013-09-01 | G117: ='8. Funding_Adder_Revs'!G116 -> 2013 | H117: ='8. Funding_Adder_Revs'!H116 -> Q3 | J117: 828962.6204 | M117: 828962.6204 | N117: ='8. Funding_Adder_Revs'!L116 -> 0 | O117: 0 | P117: 19000.73585
F118: ='8. Funding_Adder_Revs'!F117 -> 2013-10-01 | G118: ='8. Funding_Adder_Revs'!G117 -> 2013 | H118: ='8. Funding_Adder_Revs'!H117 -> Q4 | J118: 828962.6204 | M118: 828962.6204 | N118: ='8. Funding_Adder_Revs'!L117 -> 0 | O118: 0 | P118: 19000.73585
F119: ='8. Funding_Adder_Revs'!F118 -> 2013-11-01 | G119: ='8. Funding_Adder_Revs'!G118 -> 2013 | H119: ='8. Funding_Adder_Revs'!H118 -> Q4 | J119: 828962.6204 | M119: 828962.6204 | N119: ='8. Funding_Adder_Revs'!L118 -> 0 | O119: 0 | P119: 19000.73585
F120: ='8. Funding_Adder_Revs'!F119 -> 2013-12-01 | G120: ='8. Funding_Adder_Revs'!G119 -> 2013 | H120: ='8. Funding_Adder_Revs'!H119 -> Q4 | J120: 828962.6204 | M120: 828962.6204 | N120: ='8. Funding_Adder_Revs'!L119 -> 0 | O120: 0 | P120: 19000.73585
K122: =SUM(K25:K108) -> 505184.51 | L122: =SUM(L25:L108) -> 323778.1104 | M122: =K122+L122 -> 828962.6204

Sheet 8B. Opex_Interest_annual
B13: This worksheet calculates the interest on OM&A and amortization/depreciation expense, in the absence of monthly data.
B21: Year | D21: OM&A | F21: Amortization Expense | H21: Cumulative OM&A and Amortization Expense | J21: Average Cumulative OM&A and Amortization Expense | L21: Average Annual Prescribed Interest Rate for Deferral and Variance Accounts (from Sheets 8A and 8B) | N21: Simple Interest on OM&A and Amortization Expenses
D22: (from Sheet 5) | F22: (from Sheet 5)
B23: 2006 | D23: ='5. SM_Rev_Reqt'!G50 -> 0 | F23: ='5. SM_Rev_Reqt'!G58 -> 0 | H23: =D23+F23 -> 0 | J23: =H23/2 -> 0 | L23: =AVERAGE('8A. Opex_Interest_monthly'!$C$26:$C$28,'8A. Opex_Interest_monthly'!$C$26) -> 0.04365 | N23: =J23*L23 -> 0
B24: 2007 | D24: ='5. SM_Rev_Reqt'!I50 -> 0 | F24: ='5. SM_Rev_Reqt'!I58 -> 950.6428571 | H24: =H23+D24+F24 -> 950.6428571 | J24: =(H24+H23)/2 -> 475.3214286 | L24: =AVERAGE('8A. Opex_Interest_monthly'!$C$29:$C$32) -> 0.047275 | N24: 22.47082054
B25: 2008 | D25: ='5. SM_Rev_Reqt'!K50 -> 0 | F25: ='5. SM_Rev_Reqt'!K58 -> 3033.428571 | H25: 3984.071429 | J25: 2467.357143 | L25: =AVERAGE('8A. Opex_Interest_monthly'!$C$33:$C$36) -> 0.0398 | N25: 98.20081429
B26: 2009 | D26: ='5. SM_Rev_Reqt'!M50 -> 94917 | F26: ='5. SM_Rev_Reqt'!M58 -> 42863.85714 | H26: 141764.9286 | J26: 72874.5 | L26: =AVERAGE('8A. Opex_Interest_monthly'!$C$37:$C$40) -> 0.011375 | N26: 828.9474375
B27: 2010 | D27: ='5. SM_Rev_Reqt'!O50 -> 122555 | F27: ='5. SM_Rev_Reqt'!O58 -> 85491.72381 | H27: 349811.6524 | J27: 245788.2905 | L27: =AVERAGE('8A. Opex_Interest_monthly'!$C$41:$C$44) -> 0.007975 | N27: 1960.161617
B28: 2011 | D28: ='5. SM_Rev_Reqt'!Q50 -> 165422 | F28: ='5. SM_Rev_Reqt'!Q58 -> 93591.5409 | H28: 608825.1933 | J28: 479318.4228 | L28: =AVERAGE('8A. Opex_Interest_monthly'!$C$45:$C$48) -> 0.0147 | N28: 7045.980816
B29: 2012 | D29: ='5. SM_Rev_Reqt'!S50 -> 122289 | F29: ='5. SM_Rev_Reqt'!S58 -> 98795.11038 | H29: 829909.3037 | J29: 719367.2485 | L29: =AVERAGE('8A. Opex_Interest_monthly'!N97:N108) -> 0.0147 | N29: 10574.69855
B30: 2013 | D30: ='5. SM_Rev_Reqt'!U50 -> 0 | F30: ='5. SM_Rev_Reqt'!U58 -> 99828.44371 | H30: 929737.7474 | J30: 879823.5255 | L30: =AVERAGE('8A. Opex_Interest_monthly'!N109:N120) -> 0 | N30: 0
B32: Cumulative Interest to 2011 | N32: =SUM(N23:N28) -> 9955.761505
B33: Cumulative Interest to 2012 | N33: =SUM(N23:N29) -> 20530.46006
B34: Cumulative Interest to 2013 | N34: =SUM(N23:N30) -> 20530.46006

Sheet 9. SMFA_SMDR_SMIRR
B14: This worksheet calculates the Smart Meter Disposition Rider and the Smart Meter Incremental Revenue Requirement Rate Rider, if applicable. This worksheet also calculates any new Smart Meter Funding Adder that a distributor may wish to request. However, please note that in many 2011 IRM decisions, the Board noted that current funding adders will cease on April 30, 2011 and that the Board's expectation is that distributors will file for a final review of prudence at the earliest opportunity. The Board also noted that the SMFA is a tool designed to provide advance funding and to mitigate the anticipated rate impact of smart meter costs when recovery of those costs is approved by the Board. The Board observed that the SMFA was not intended to be compensatory (return on and of capital) on a cumulative basis over the term the SMFA was in effect. The SMFA was initially designed to fund future investment, and not fully fund prior capital investment. Distributors that seek a new SMFA should provide evidence to support its proposal. This would include documentation of where the distributor is with respect to its smart meter deployment program, and reasons as to why the distributor's circumstances are such that continuation of the SMFA is warranted. Press the "UPDATE WORKSHEET" button after choosing the applicable adders/riders.
B20: Check if applicable
E22: Smart Meter Funding Adder (SMFA)
C24: X | E24: Smart Meter Disposition Rider (SMDR) | G24: The SMDR is calculated based on costs to December 31, 2011
C26: X | E26: Smart Meter Incremental Revenue Requirement Rate Rider (SMIRR) | G26: The SMIRR is calculated based on the incremental revenue requirement associated with the recovery of capital related costs to December 31, 2012 and associated OM&A.
G28: 2006 | I28: 2007 | K28: 2008 | M28: 2009 | O28: 2010 | Q28: 2011 | S28: 2012 | U28: 2013 | W28: Total
C30: Deferred and forecasted Smart Meter Incremental Revenue Requirement (from Sheet 5) | G30: ='5. SM_Rev_Reqt'!G70 -> 0 | I30: ='5. SM_Rev_Reqt'!I70 -> 846.3677498 | K30: ='5. SM_Rev_Reqt'!K70 -> 3197.249943 | M30: ='5. SM_Rev_Reqt'!M70 -> 175197.3415 | O30: ='5. SM_Rev_Reqt'!O70 -> 279096.9958 | Q30: ='5. SM_Rev_Reqt'!Q70 -> 334551.7122 | S30: ='5. SM_Rev_Reqt'!S70 -> 297236.7118 | U30: ='5. SM_Rev_Reqt'!U70 -> 171065.0415 | W30: =SUM(G30:S30) -> 1090126.379
C32: Interest on Deferred and forecasted OM&A and Amortization Expense (Sheet 8A/8B) | G32: =IF($C35="X",G35,IF($C37="X",G37,0)) -> 0 | I32: =IF($C35="X",I35,IF($C37="X",I37,0)) -> 0 | K32: =IF($C35="X",K35,IF($C37="X",K37,0)) -> 0 | M32: =IF($C35="X",M35,IF($C37="X",M37,0)) -> 39.56567542 | O32: =IF($C35="X",O35,IF($C37="X",O37,0)) -> 1784.959098 | Q32: =IF($C35="X",Q35,IF($C37="X",Q37,0)) -> 6750.842786 | S32: =IF($C35="X",S35,IF($C37="X",S37,0)) -> 10425.36829 | W32: =SUM(G32:S32) -> 19000.73585
C33: (Check one of the boxes below)
C35: X | E35: Sheet 8A (Interest calculated on monthly balances) | G35: =IF($C35="X",SUM('8A. Opex_Interest_monthly'!O25:O36),"") -> 0 | I35: =IF($C35="X",SUM('8A. Opex_Interest_monthly'!O37:O48),"") -> 0 | K35: =IF($C35="X",SUM('8A. Opex_Interest_monthly'!O49:O60),"") -> 0 | M35: =IF($C35="X",SUM('8A. Opex_Interest_monthly'!O61:O72),"") -> 39.56567542 | O35: =IF($C35="X",SUM('8A. Opex_Interest_monthly'!O73:O84),"") -> 1784.959098 | Q35: =IF($C35="X",SUM('8A. Opex_Interest_monthly'!O85:O96),"") -> 6750.842786 | S35: =IF($C35="X",SUM('8A. Opex_Interest_monthly'!O97:O108),"") -> 10425.36829 | U35: =IF($C35="X",SUM('8A. Opex_Interest_monthly'!O109:O120),"") -> 0 | W35: =IF($C$35="X",SUM(G35:S35),"") -> 19000.73585
E37: Sheet 8B (Interest calculated on average annual balances) | G37: =IF($C37="X",'8B. Opex_Interest_annual'!N23,"") ->  | I37: =IF($C37="X",'8B. Opex_Interest_annual'!N24,"") ->  | K37: =IF($C37="X",'8B. Opex_Interest_annual'!N25,"") ->  | M37: =IF($C37="X",'8B. Opex_Interest_annual'!N26,"") ->  | O37: =IF($C37="X",'8B. Opex_Interest_annual'!N27,"") ->  | Q37: =IF($C37="X",'8B. Opex_Interest_annual'!N28,"") ->  | S37: =IF($C37="X",'8B. Opex_Interest_annual'!N29,"") ->  | U37: =IF($C37="X",'8B. Opex_Interest_annual'!N30,"") ->  | W37: =IF($C$37="X",SUM(G37:S37),"") -> 
C40: SMFA Revenues (from Sheet 8) | G40: =SUM('8. Funding_Adder_Revs'!K24:K35) -> 9362.15 | I40: =SUM('8. Funding_Adder_Revs'!K36:K47) -> 19026.46 | K40: =SUM('8. Funding_Adder_Revs'!K48:K59) -> 19151.63 | M40: =SUM('8. Funding_Adder_Revs'!K60:K71) -> 50492.1 | O40: =SUM('8. Funding_Adder_Revs'!K72:K83) -> 72248.07 | Q40: =SUM('8. Funding_Adder_Revs'!K84:K95) -> 135259.73 | S40: =SUM('8. Funding_Adder_Revs'!K96:K107) -> 75394.14 | U40: =SUM('8. Funding_Adder_Revs'!K108:K119) -> 0 | W40: =SUM(G40:U40) -> 380934.28
C42: SMFA Interest (from Sheet 8) | G42: =SUM('8. Funding_Adder_Revs'!M24:M35) -> 87.76 | I42: =SUM('8. Funding_Adder_Revs'!M36:M47) -> 865.58 | K42: =SUM('8. Funding_Adder_Revs'!M48:M59) -> 1448.21 | M42: =SUM('8. Funding_Adder_Revs'!M60:M71) -> 646.89 | O42: =SUM('8. Funding_Adder_Revs'!M72:M83) -> 1097.74 | Q42: =SUM('8. Funding_Adder_Revs'!M84:M95) -> 3220.57 | S42: =SUM('8. Funding_Adder_Revs'!M96:M107) -> 5322.56 | U42: =SUM('8. Funding_Adder_Revs'!M108:M119) -> 0 | W42: =SUM(G42:U42) -> 12689.31
C44: Net Deferred Revenue Requirement | G44: =(G30+G32)-(G40+G42) -> -9449.91 | I44: =(I30+I32)-(I40+I42) -> -19045.67225 | K44: =(K30+K32)-(K40+K42) -> -17402.59006 | M44: =(M30+M32)-(M40+M42) -> 124097.9172 | O44: =(O30+O32)-(O40+O42) -> 207536.1449 | Q44: =(Q30+Q32)-(Q40+Q42) -> 202822.255 | S44: =(S30+S32)-(S40+S42) -> 226945.3801 | U44: =(U30+U32)-(U40+U42) -> 171065.0415 | W44: =(W30+W32)-(W40+W42) -> 715503.5249
C46: Number of Metered Customers (average for 2013 test year) | U46: 6020
D47: - Number of metered customers for which smart meter were deployed as part of program). Residential and GS < 50 kW customer classes and any other metered classes involved (e.g. GS 50 to 4999 kW for which interval meters were upgraded to utilize AMI and ODS assets)
C49: Calculation of Smart Meter Funding Adder (per metered customer per month)
D51: Net Deferred Revenues | F51: May 1, 2006 to December 31, 2012 | G51: =W44 -> 715503.5249
D53: SMFA | F53: May 1, 2012 to April 30, 201X | G53: =IF(U46=0,"",ROUND(S44/(U46*12),2)) -> 3.14
D55: Check: Forecasted SMFA Revenues for 2012 test year | G55: =IF(S46=0,"",G53*S46*12) -> 
C57: Calculation of Smart Meter Disposition Rider (per metered customer per month)
D59: Years for collection or refunding | G59: =16/12 -> 1.333333333
D61: Deferred Incremental Revenue Requirement from 2006 to December 31, 2012 | G61: =SUM(G30:S30)+SUM(G32:S32) -> 1109127.115
E62: plus Interest on OM&A and Amortization
D63: SMFA Revenues collected from 2006 to 2013 test year (inclusive) | G63: =W40+SUM(G42:U42) -> 393623.59
E64: Plus Simple Interest on SMFA Revenues
D65: Net Deferred Revenue Requirement | G65: =G61-G63 -> 715503.5249
D67: SMDR | F67: Jan 1, 2013 to April 30, 2014 | G67: =IF(U46=0,"",ROUND(G65/(U46*12*G59),2)) -> 7.43 | I67: =IF(ISERROR(G69/G65), "Error", IF(G69/G65>=95%, "Match", "Error")) -> Match
D69: Check: Forecasted SMDR Revenues | G69: =IF(ISERROR(G67*U46*12*G59), "", G67*U46*12*G59) -> 715657.6
C71: Calculation of Smart Meter Incremental Revenue Requirement Rate Rider (per metered customer per month)
D73: Incremental Revenue Requirement for 2013 | G73: =U30 -> 171065.0415
D75: SMIRR | G75: =IF(ISERROR(ROUND(G73/(U46*12),2)), "", ROUND(G73/(U46*12),2)) -> 2.37 | I75: =IF(ISERROR(G77/G73), "Error", IF(G77/G73>=95%, "Match", "Error")) -> Match
D77: Check: Forecasted SMIRR Revenues | G77: =IF(ISERROR(G75*U46*12), "", G75*U46*12) -> 171208.8

Sheet 10A. Cost_Alloc_SMDR
B13: This worksheet calculates the class-specific SMDRs according to accepted practice. A distributor may choose to use its own methodology, but should provide analogous support for its allocation and derivation of class-specific SMDRs and SMIRRs.
B20: Class-specific SMDRs
B22: Revenue Requirement for Historical Years | C22: 2006 | E22: 2007 | G22: 2008 | I22: 2009 | K22: 2010 | M22: 2011 | O22: 2012 | Q22: Total 2006 to 2012 | R22: Explanation / Allocator | T22: Residential | V22: GS < 50 kW | X22: GS 50 to 4999 kW | Z22: Other (please specify) | AB22: Total
R23: Check Row if SMDR/SMIRR apply to class | T23: X | V23: X | AB23: =COUNTIF(T23:Z23,"X") -> 2
T24: % | V24: % | X24: % | Z24: %
R25: Weighted Meter Cost - Capital | T25: 0.7964303453 | V25: =1-T25 -> 0.2035696547 | AB25: =T25+V25+X25+Z25 -> 1
B26: Return on Capital | C26: ='5. SM_Rev_Reqt'!G47 -> 0 | E26: ='5. SM_Rev_Reqt'!I47 -> 424.2006089 | G26: ='5. SM_Rev_Reqt'!K47 -> 1261.885956 | I26: ='5. SM_Rev_Reqt'!M47 -> 35252.9361 | K26: ='5. SM_Rev_Reqt'!O47 -> 68035.73721 | M26: ='5. SM_Rev_Reqt'!Q47 -> 70098.9773 | O26: ='5. SM_Rev_Reqt'!S47 -> 68524.56818 | Q26: =SUM(C26,E26,G26,I26,K26,M26,O26) -> 243598.3054 | R26: Allocated per class | T26: =Q26*T25 -> 194009.0825 | V26: =Q26*V25 -> 49589.22289 | X26: =Q26*X25 -> 0 | Z26: =Q26*Z25 -> 0
B28: Depreciation/Amortization expense and related interest | C28: ='5. SM_Rev_Reqt'!G58 -> 0 | E28: ='5. SM_Rev_Reqt'!I58 -> 950.6428571 | G28: ='5. SM_Rev_Reqt'!K58 -> 3033.428571 | I28: ='5. SM_Rev_Reqt'!M58 -> 42863.85714 | K28: ='5. SM_Rev_Reqt'!O58 -> 85491.72381 | M28: ='5. SM_Rev_Reqt'!Q58 -> 93591.5409 | O28: ='5. SM_Rev_Reqt'!S58 -> 98795.11038
C29: =IF(C28+C32=0,0,'9. SMFA_SMDR_SMIRR'!G32*C28/(C28+C32)) -> 0 | E29: =IF(E28+E32=0,0,'9. SMFA_SMDR_SMIRR'!I32*E28/(E28+E32)) -> 0 | G29: =IF(G28+G32=0,0,'9. SMFA_SMDR_SMIRR'!K32*G28/(G28+G32)) -> 0 | I29: =IF(I28+I32=0,0,'9. SMFA_SMDR_SMIRR'!M32*I28/(I28+I32)) -> 12.30894838 | K29: =IF(K28+K32=0,0,'9. SMFA_SMDR_SMIRR'!O32*K28/(K28+K32)) -> 733.4853798 | M29: =IF(M28+M32=0,0,'9. SMFA_SMDR_SMIRR'!Q32*M28/(M28+M32)) -> 2439.338795 | O29: =IF(O28+O32=0,0,'9. SMFA_SMDR_SMIRR'!S32*O28/(O28+O32)) -> 4658.749149 | R29: =R25 -> Weighted Meter Cost - Capital | T29: =T25 -> 0.7964303453 | V29: =V25 -> 0.2035696547 | X29: =X25 -> 0 | Z29: =Z25 -> 0 | AB29: =T29+V29+X29+Z29 -> 1
C30: =C28+C29 -> 0 | E30: =E28+E29 -> 950.6428571 | G30: =G28+G29 -> 3033.428571 | I30: =I28+I29 -> 42876.16609 | K30: =K28+K29 -> 86225.20919 | M30: =M28+M29 -> 96030.8797 | O30: =O28+O29 -> 103453.8595 | Q30: =SUM(C30,E30,G30,I30,K30,M30,O30) -> 332570.1859 | R30: =R26 -> Allocated per class | T30: =Q30*T29 -> 264868.988 | V30: =Q30*V29 -> 67701.1979 | X30: =Q30*X29 -> 0 | Z30: =Q30*Z29 -> 0
B32: Operating Expenses and related interest | C32: ='5. SM_Rev_Reqt'!G50 -> 0 | E32: ='5. SM_Rev_Reqt'!I50 -> 0 | G32: ='5. SM_Rev_Reqt'!K50 -> 0 | I32: ='5. SM_Rev_Reqt'!M50 -> 94917 | K32: ='5. SM_Rev_Reqt'!O50 -> 122555 | M32: ='5. SM_Rev_Reqt'!Q50 -> 165422 | O32: ='5. SM_Rev_Reqt'!S50 -> 122289 | R32: Number of Smart Meters installed by Class | T32: # | V32: # | X32: # | Z32: #
C33: ='9. SMFA_SMDR_SMIRR'!G32 -> 0 | E33: ='9. SMFA_SMDR_SMIRR'!I32 -> 0 | G33: =IF((G28+G32)=0,0,'9. SMFA_SMDR_SMIRR'!K32*G32/(G28+G32)) -> 0 | I33: =IF((I28+I32)=0,0,'9. SMFA_SMDR_SMIRR'!M32*I32/(I28+I32)) -> 27.25672703 | K33: =IF((K28+K32)=0,0,'9. SMFA_SMDR_SMIRR'!O32*K32/(K28+K32)) -> 1051.473718 | M33: =IF((M28+M32)=0,0,'9. SMFA_SMDR_SMIRR'!Q32*M32/(M28+M32)) -> 4311.503991 | O33: =IF((O28+O32)=0,0,'9. SMFA_SMDR_SMIRR'!S32*O32/(O28+O32)) -> 5766.619142 | T33: 5239 | V33: 750
C34: =C32+C33 -> 0 | E34: =E32+E33 -> 0 | G34: =G32+G33 -> 0 | I34: =I32+I33 -> 94944.25673 | K34: =K32+K33 -> 123606.4737 | M34: =M32+M33 -> 169733.504 | O34: =O32+O33 -> 128055.6191 | Q34: =SUM(C34,E34,G34,I34,K34,M34,O34) -> 516339.8536 | R34: Allocated per class | T34: =IF(SUM($T33,$V33,$X33,$Z33)=0,0,$Q34*T33/(SUM($T33,$V33,$X33,$Z33))) -> 451678.8267 | V34: =IF(SUM($T33,$V33,$X33,$Z33)=0,0,$Q34*V33/(SUM($T33,$V33,$X33,$Z33))) -> 64661.02691 | X34: =IF(SUM($T33,$V33,$X33,$Z33)=0,0,$Q34*X33/(SUM($T33,$V33,$X33,$Z33))) -> 0 | Z34: =IF(SUM($T33,$V33,$X33,$Z33)=0,0,$Q34*Z33/(SUM($T33,$V33,$X33,$Z33))) -> 0
B36: Revenue Requirement before Taxes/PILs | Q36: =Q26+Q30+Q34 -> 1092508.345 | T36: =T26+T30+T34 -> 910556.8972 | V36: =V26+V30+V34 -> 181951.4477 | X36: =X26+X30+X34 -> 0 | Z36: =Z26+Z30+Z34 -> 0 | AB36: =Q36-SUM(T36,V36,X36,Z36) -> 0
R38: Revenue Requirement before PILs | T38: =IF(T36=0,0,T36/SUM($T36,$V36,$X36,$Z36)) -> 0.8334553246 | V38: =IF(V36=0,0,V36/SUM($T36,$V36,$X36,$Z36)) -> 0.1665446754 | X38: =IF(X36=0,0,X36/SUM($T36,$V36,$X36,$Z36)) -> 0 | Z38: =IF(Z36=0,0,Z36/SUM($T36,$V36,$X36,$Z36)) -> 0 | AB38: =T38+V38+X38+Z38 -> 1
B40: Grossed-up Taxes/PILs | C40: ='5. SM_Rev_Reqt'!G68 -> 0 | E40: ='5. SM_Rev_Reqt'!I68 -> -528.4757163 | G40: ='5. SM_Rev_Reqt'!K68 -> -1098.064584 | I40: ='5. SM_Rev_Reqt'!M68 -> 2163.548277 | K40: ='5. SM_Rev_Reqt'!O68 -> 3014.534802 | M40: ='5. SM_Rev_Reqt'!Q68 -> 5439.194044 | O40: ='5. SM_Rev_Reqt'!S68 -> 7628.033235 | Q40: =SUM(C40,E40,G40,I40,K40,M40,O40) -> 16618.77006 | T40: =Q40*T38 -> 13851.00239 | V40: =Q40*V38 -> 2767.767665 | X40: =Q40*X38 -> 0 | Z40: =Q40*Z38 -> 0
B42: Total Revenue Requirement plus interest on OM&A and depreciation expense | Q42: =Q36+Q40 -> 1109127.115 | T42: =T36+T40 -> 924407.8996 | V42: =V36+V40 -> 184719.2154 | X42: =X40+X36 -> 0 | Z42: =Z40+Z36 -> 0
R43: Percentage of costs allocated to each class | T43: =IF(SUM($T42,$V42,$X42,$Z42)=0,0,T42/(SUM($T42,$V42,$X42,$Z42))) -> 0.8334553246 | V43: =IF(SUM($T42,$V42,$X42,$Z42)=0,0,V42/(SUM($T42,$V42,$X42,$Z42))) -> 0.1665446754 | X43: =IF(SUM($T42,$V42,$X42,$Z42)=0,0,X42/(SUM($T42,$V42,$X42,$Z42))) -> 0 | Z43: =IF(SUM($T42,$V42,$X42,$Z42)=0,0,Z42/(SUM($T42,$V42,$X42,$Z42))) -> 0
Q44: =Q42-'9. SMFA_SMDR_SMIRR'!G61 -> 0 | R44: Percentage of costs for classes with SMDR/SMIRR | T44: =IF(T23="X",T43,0) -> 0.8334553246 | V44: =IF(V23="X",V43,0) -> 0.1665446754 | X44: =IF(X23="X",X43,0) -> 0 | Z44: =IF(Z23="X",Z43,0) -> 0
T45: =IF(SUM($T44,$V44,$X44,$Z44)=0,0,T44/SUM($T44,$V44,$X44,$Z44)) -> 0.8334553246 | V45: =IF(SUM($T44,$V44,$X44,$Z44)=0,0,V44/SUM($T44,$V44,$X44,$Z44)) -> 0.1665446754 | X45: =IF(SUM($T44,$V44,$X44,$Z44)=0,0,X44/SUM($T44,$V44,$X44,$Z44)) -> 0 | Z45: =IF(SUM($T44,$V44,$X44,$Z44)=0,0,Z44/SUM($T44,$V44,$X44,$Z44)) -> 0
T47: % | V47: % | X47: % | Z47: %
O48: SMFA Revenues directly attributable to class | T48: 0.8697267999 | V48: 0.1302732001 | AB48: =T48+V48+X48+Z48 -> 1
O49: Residual SMFA Revenues (from other metered classes) attributed evenly | T49: =IF(T23="X",T48,0) -> 0.8697267999 | V49: =IF(V23="X",V48,0) -> 0.1302732001 | X49: =IF(X23="X",X48,0) -> 0 | Z49: =IF(Z23="X",Z48,0) -> 0 | AB49: =T49+V49+X49+Z49 -> 1
T50: =IF(T23="X",(100%-$AB49)/$AB$23,0) -> 5.551115123e-17 | V50: =IF(V23="X",(100%-$AB49)/$AB$23,0) -> 5.551115123e-17 | X50: =IF(X23="X",(100%-$AB49)/$AB$23,0) -> 0 | Z50: =IF(Z23="X",(100%-$AB49)/$AB$23,0) -> 0
O51: Total | T51: =T48+T50 -> 0.8697267999 | V51: =V48+V50 -> 0.1302732001 | X51: =X48+X50 -> 0 | Z51: =Z48+Z50 -> 0
B53: SMFA Revenues plus interest expense | Q53: ='9. SMFA_SMDR_SMIRR'!G63 -> 393623.59 | T53: =Q53*T51 -> 342344.9853 | V53: =Q53*V51 -> 51278.6047 | X53: =Q53*X51 -> 0 | Z53: =Q53*Z51 -> 0
B55: Net Deferred Revenue Requirement to be recovered via SMDR | Q55: =Q42-Q53 -> 715503.5249 | T55: =IF(T23="X",T42-T53,0) -> 582062.9142 | V55: =IF(V23="X",V42-V53,0) -> 133440.6107 | X55: =IF(X23="X",X42-X53,0) -> 0 | Z55: =IF(Z23="X",Z42-Z53,0) -> 0
B57: Average number of metered customers by class (2013) | Q57: Average number of customers (2013) | T57: 5255 | V57: 767 | X57: 0 | Z57: 0
B59: Number of Years for SMDR recovery | Q59: ='9. SMFA_SMDR_SMIRR'!G59 -> 1.333333333 | R59: years | T59: =Q59 -> 1.333333333 | V59: =Q59 -> 1.333333333 | X59: =Q59 -> 1.333333333 | Z59: =Q59 -> 1.333333333
B61: Smart Meter Disposition Rider ($/month per metered customer in the customer class) | T61: =IF(T23="X",IF(T57*T59=0,"",ROUND(T55/(T57*T59*12),2)),"") -> 6.92 | V61: =IF(V23="X",IF(V57*V59=0,"",ROUND(V55/(V57*V59*12),2)),"") -> 10.87 | X61: =IF(X23="X",IF(X57*X59=0,"",ROUND(X55/(X57*X59*12),2)),"") ->  | Z61: =IF(Z23="X",IF(Z57*Z59=0,"",ROUND(Z55/(Z57*Z59*12),2)),"") -> 
B63: Estimated SMDR Revenues | Q63: =T63+V63+X63+Z63 -> 715230.24 | T63: =IF(T23="X",IF(T57=0,0,T61*T59*T57*12),0) -> 581833.6 | V63: =IF(V23="X",IF(V57=0,0,V61*V59*V57*12),0) -> 133396.64 | X63: =IF(X23="X",IF(X57=0,0,X61*X59*X57*12),0) -> 0 | Z63: =IF(Z23="X",IF(Z57=0,0,Z61*Z59*Z57*12),0) -> 0
Q65: =Q55-Q63 -> 273.2849243

Sheet 10B. Adjusted SMDR (hidden)

Sheet 10B. Cost_Alloc_SMIRR
B13: This worksheet calculates the class-specific SMIRRs according to accepted practice. A distributor may choose to use its own methodology, but should provide analogous support for its allocation and derivation of class-specific SMDRs and SMIRRs.
B20: Class-specific SMDRs
B22: Revenue Requirement for 2013 | C22: 2006 | E22: 2007 | G22: 2008 | I22: 2009 | K22: 2010 | M22: 2011 | O22: 2012 | Q22: 2013 | R22: Explanation / Allocator | T22: Residential | V22: GS < 50 kW | X22: GS 50 to 4999 kW | Z22: ='10A. Cost_Alloc_SMDR'!Z22 -> Other (please specify) | AB22: Total
R23: Check Row if SMDR/SMIRR apply to class | T23: =IF('10A. Cost_Alloc_SMDR'!T23="X","X","") -> X | V23: =IF('10A. Cost_Alloc_SMDR'!V23="X","X","") -> X | X23: =IF('10A. Cost_Alloc_SMDR'!X23="X","X","") ->  | Z23: =IF('10A. Cost_Alloc_SMDR'!Z23="X","X","") ->  | AB23: =COUNTIF(T23:Z23,"X") -> 2
T24: % | V24: % | X24: % | Z24: %
R25: Weighted Meter Cost - Capital | T25: ='10A. Cost_Alloc_SMDR'!T25 -> 0.7964303453 | V25: ='10A. Cost_Alloc_SMDR'!V25 -> 0.2035696547 | X25: ='10A. Cost_Alloc_SMDR'!X25 -> 0 | Z25: ='10A. Cost_Alloc_SMDR'!Z25 -> 0 | AB25: =T25+V25+X25+Z25 -> 1
B26: Return on Capital | C26: ='5. SM_Rev_Reqt'!G47 -> 0 | E26: ='5. SM_Rev_Reqt'!I47 -> 424.2006089 | G26: ='5. SM_Rev_Reqt'!K47 -> 1261.885956 | I26: ='5. SM_Rev_Reqt'!M47 -> 35252.9361 | K26: ='5. SM_Rev_Reqt'!O47 -> 68035.73721 | M26: ='5. SM_Rev_Reqt'!Q47 -> 70098.9773 | O26: ='5. SM_Rev_Reqt'!S47 -> 68524.56818 | Q26: ='5. SM_Rev_Reqt'!U47 -> 62313.94507 | R26: Allocated per class | T26: =Q26*T25 -> 49628.71679 | V26: =Q26*V25 -> 12685.22828 | X26: =Q26*X25 -> 0 | Z26: =Q26*Z25 -> 0
B28: Depreciation/Amortization expense | C28: ='5. SM_Rev_Reqt'!G58 -> 0 | E28: ='5. SM_Rev_Reqt'!I58 -> 950.6428571 | G28: ='5. SM_Rev_Reqt'!K58 -> 3033.428571 | I28: ='5. SM_Rev_Reqt'!M58 -> 42863.85714 | K28: ='5. SM_Rev_Reqt'!O58 -> 85491.72381 | M28: ='5. SM_Rev_Reqt'!Q58 -> 93591.5409 | O28: ='5. SM_Rev_Reqt'!S58 -> 98795.11038
C29: =IF(C28+C32=0,0,'9. SMFA_SMDR_SMIRR'!G32*C28/(C28+C32)) -> 0 | E29: =IF(E28+E32=0,0,'9. SMFA_SMDR_SMIRR'!I32*E28/(E28+E32)) -> 0 | G29: =IF(G28+G32=0,0,'9. SMFA_SMDR_SMIRR'!K32*G28/(G28+G32)) -> 0 | I29: =IF(I28+I32=0,0,'9. SMFA_SMDR_SMIRR'!M32*I28/(I28+I32)) -> 12.30894838 | K29: =IF(K28+K32=0,0,'9. SMFA_SMDR_SMIRR'!O32*K28/(K28+K32)) -> 733.4853798 | M29: =IF(M28+M32=0,0,'9. SMFA_SMDR_SMIRR'!Q32*M28/(M28+M32)) -> 2439.338795 | O29: =IF(O28+O32=0,0,'9. SMFA_SMDR_SMIRR'!S32*O28/(O28+O32)) -> 4658.749149 | R29: =R25 -> Weighted Meter Cost - Capital | T29: =T25 -> 0.7964303453 | V29: =V25 -> 0.2035696547 | X29: =X25 -> 0 | Z29: =Z25 -> 0 | AB29: =T29+V29+X29+Z29 -> 1
C30: =C28+C29 -> 0 | E30: =E28+E29 -> 950.6428571 | G30: =G28+G29 -> 3033.428571 | I30: =I28+I29 -> 42876.16609 | K30: =K28+K29 -> 86225.20919 | M30: =M28+M29 -> 96030.8797 | O30: =O28+O29 -> 103453.8595 | Q30: ='5. SM_Rev_Reqt'!U58 -> 99828.44371 | R30: =R26 -> Allocated per class | T30: =Q30*T29 -> 79506.4019 | V30: =Q30*V29 -> 20322.04181 | X30: =Q30*X29 -> 0 | Z30: =Q30*Z29 -> 0
B32: Operating Expenses | C32: ='5. SM_Rev_Reqt'!G50 -> 0 | E32: ='5. SM_Rev_Reqt'!I50 -> 0 | G32: ='5. SM_Rev_Reqt'!K50 -> 0 | I32: ='5. SM_Rev_Reqt'!M50 -> 94917 | K32: ='5. SM_Rev_Reqt'!O50 -> 122555 | M32: ='5. SM_Rev_Reqt'!Q50 -> 165422 | O32: ='5. SM_Rev_Reqt'!S50 -> 122289 | Q32: ='5. SM_Rev_Reqt'!U50 -> 0 | R32: Number of Smart Meters installed by Class | T32: # | V32: # | X32: # | Z32: #
C33: ='9. SMFA_SMDR_SMIRR'!G32 -> 0 | E33: ='9. SMFA_SMDR_SMIRR'!I32 -> 0 | G33: ='9. SMFA_SMDR_SMIRR'!K32 -> 0 | I33: ='9. SMFA_SMDR_SMIRR'!M32 -> 39.56567542 | K33: ='9. SMFA_SMDR_SMIRR'!O32 -> 1784.959098 | M33: ='9. SMFA_SMDR_SMIRR'!Q32 -> 6750.842786 | O33: ='9. SMFA_SMDR_SMIRR'!S32 -> 10425.36829 | T33: ='10A. Cost_Alloc_SMDR'!T33 -> 5239 | V33: ='10A. Cost_Alloc_SMDR'!V33 -> 750 | X33: ='10A. Cost_Alloc_SMDR'!X33 -> 0 | Z33: ='10A. Cost_Alloc_SMDR'!Z33 -> 0
C34: =C32+C33 -> 0 | E34: =E32+E33 -> 0 | G34: =G32+G33 -> 0 | I34: =I32+I33 -> 94956.56568 | K34: =K32+K33 -> 124339.9591 | M34: =M32+M33 -> 172172.8428 | O34: =O32+O33 -> 132714.3683 | Q34: =SUM(T34,V34,X34,Z34) -> 0 | R34: Allocated per class | T34: =IF(SUM($T33,$V33,$X33,$Z33)=0,0,$Q32*T33/(SUM($T33,$V33,$X33,$Z33))) -> 0 | V34: =IF(SUM($T33,$V33,$X33,$Z33)=0,0,$Q32*V33/(SUM($T33,$V33,$X33,$Z33))) -> 0 | X34: =IF(SUM($T33,$V33,$X33,$Z33)=0,0,$Q32*X33/(SUM($T33,$V33,$X33,$Z33))) -> 0 | Z34: =IF(SUM($T33,$V33,$X33,$Z33)=0,0,$Q32*Z33/(SUM($T33,$V33,$X33,$Z33))) -> 0
B36: Revenue Requirement before Taxes/PILs | Q36: =Q26+Q30+Q32 -> 162142.3888 | T36: =T26+T30+T34 -> 129135.1187 | V36: =V26+V30+V34 -> 33007.27009 | X36: =X26+X30+X34 -> 0 | Z36: =Z26+Z30+Z34 -> 0 | AB36: =Q36-SUM(T36,V36,X36,Z36) -> 0
R38: Revenue Requirement before PILs | T38: =IF(T36=0,0,T36/SUM($T36,$V36,$X36,$Z36)) -> 0.7964303453 | V38: =IF(V36=0,0,V36/SUM($T36,$V36,$X36,$Z36)) -> 0.2035696547 | X38: =IF(X36=0,0,X36/SUM($T36,$V36,$X36,$Z36)) -> 0 | Z38: =IF(Z36=0,0,Z36/SUM($T36,$V36,$X36,$Z36)) -> 0 | AB38: =T38+V38+X38+Z38 -> 1
B40: Grossed-up Taxes/PILs | C40: ='5. SM_Rev_Reqt'!G68 -> 0 | E40: ='5. SM_Rev_Reqt'!I68 -> -528.4757163 | G40: ='5. SM_Rev_Reqt'!K68 -> -1098.064584 | I40: ='5. SM_Rev_Reqt'!M68 -> 2163.548277 | K40: ='5. SM_Rev_Reqt'!O68 -> 3014.534802 | M40: ='5. SM_Rev_Reqt'!Q68 -> 5439.194044 | O40: ='5. SM_Rev_Reqt'!S68 -> 7628.033235 | Q40: ='5. SM_Rev_Reqt'!U68 -> 8922.652733 | T40: =Q40*T38 -> 7106.271397 | V40: =Q40*V38 -> 1816.381335 | X40: =Q40*X38 -> 0 | Z40: =Q40*Z38 -> 0
B42: Total Revenue Requirement for 2013 | Q42: =Q36+Q40 -> 171065.0415 | T42: =T36+T40 -> 136241.3901 | V42: =V36+V40 -> 34823.65143 | X42: =X40+X36 -> 0 | Z42: =Z40+Z36 -> 0
R43: Percentage of costs allocated to each class | T43: =IF(SUM($T42,$V42,$X42,$Z42)=0,0,T42/(SUM($T42,$V42,$X42,$Z42))) -> 0.7964303453 | V43: =IF(SUM($T42,$V42,$X42,$Z42)=0,0,V42/(SUM($T42,$V42,$X42,$Z42))) -> 0.2035696547 | X43: =IF(SUM($T42,$V42,$X42,$Z42)=0,0,X42/(SUM($T42,$V42,$X42,$Z42))) -> 0 | Z43: =IF(SUM($T42,$V42,$X42,$Z42)=0,0,Z42/(SUM($T42,$V42,$X42,$Z42))) -> 0
Q44: =Q42-'9. SMFA_SMDR_SMIRR'!G73 -> 0 | R44: Percentage of costs for classes with SMDR/SMIRR | T44: =IF(T23="X",T43,0) -> 0.7964303453 | V44: =IF(V23="X",V43,0) -> 0.2035696547 | X44: =IF(X23="X",X43,0) -> 0 | Z44: =IF(Z23="X",Z43,0) -> 0
T45: =IF(SUM($T44,$V44,$X44,$Z44)=0,0,T44/SUM($T44,$V44,$X44,$Z44)) -> 0.7964303453 | V45: =IF(SUM($T44,$V44,$X44,$Z44)=0,0,V44/SUM($T44,$V44,$X44,$Z44)) -> 0.2035696547 | X45: =IF(SUM($T44,$V44,$X44,$Z44)=0,0,X44/SUM($T44,$V44,$X44,$Z44)) -> 0 | Z45: =IF(SUM($T44,$V44,$X44,$Z44)=0,0,Z44/SUM($T44,$V44,$X44,$Z44)) -> 0
B48: Average number of metered customers by class (2013) | T48: ='10A. Cost_Alloc_SMDR'!T57 -> 5255 | V48: ='10A. Cost_Alloc_SMDR'!V57 -> 767 | X48: ='10A. Cost_Alloc_SMDR'!X57 -> 0 | Z48: ='10A. Cost_Alloc_SMDR'!Z57 -> 0
B50: The SMIRR is recovered as an annualized rate until the effective date of the distributor's next rebased rates resulting from a cost of service application | Q50: 1 | R50: year | T50: =Q50 -> 1 | V50: =Q50 -> 1 | X50: =Q50 -> 1 | Z50: =Q50 -> 1
B52: Smart Meter Incremental Revenue Requirement Rate Rider ($/month per metered customer in the customer class) | T52: =IF(T23="X",IF(T48*T50=0,"",ROUND(T42/(T48*T50*12),2)),"") -> 2.16 | V52: =IF(V23="X",IF(V48*V50=0,"",ROUND(V42/(V48*V50*12),2)),"") -> 3.78 | X52: =IF(X23="X",IF(X48*X50=0,"",ROUND(X42/(X48*X50*12),2)),"") ->  | Z52: =IF(Z23="X",IF(Z48*Z50=0,"",ROUND(Z42/(Z48*Z50*12),2)),"") -> 
B54: Estimated SMIRR Revenues | Q54: =T54+V54+X54+Z54 -> 171000.72 | T54: =IF(T23="X",IF(T48=0,0,T52*T50*T48*12),0) -> 136209.6 | V54: =IF(V23="X",IF(V48=0,0,V52*V50*V48*12),0) -> 34791.12 | X54: =IF(X23="X",IF(X48=0,0,X52*X50*X48*12),0) -> 0 | Z54: =IF(Z23="X",IF(Z48=0,0,Z52*Z50*Z48*12),0) -> 0
Q56: =Q54-Q42 -> -64.32151983
